Workbook

Sheet CAMP PILOTO EVOL
A1: ATUALIZADA EM: 05/12/24 22:40:38 | D1: OK | F1: OK | H1: OK | J1: OK | L1: OK | N1: OK | P1: OK | R1: OK | T1: DIF. LIDER | U1: DIF. 5º | V1: DIF. PRÓXIMO | W1: OK | Y1: DIF. LIDER | Z1: DIF. 5º | AA1: DIF. PRÓXIMO | AB1: OK | AD1: DIF. LIDER | AE1: DIF. 5º | AF1: DIF. PRÓXIMO | AG1: OK | AI1: DIF. LIDER | AJ1: DIF. 5º | AK1: DIF. PRÓXIMO | AL1: OK | AN1: DIF. LIDER | AO1: DIF. 5º | AP1: DIF. PRÓXIMO
D2: 01 ETAPA | F2: 02 ETAPA | H2: 03 ETAPA | J2: 04 ETAPA | L2: 05 ETAPA | N2: 06 ETAPA | P2: 07 ETAPA | R2: 08 ETAPA | W2: 09 ETAPA | AB2: 10 ETAPA | AG2: 11 ETAPA | AL2: 12 ETAPA
D3: 2024-01-19 | F3: 2024-02-01 | H3: 2024-03-14 | J3: 2024-04-11 | L3: 2024-05-23 | N3: 2024-06-06 | P3: 2024-07-25 | R3: 2024-08-01 | W3: 2024-09-05 | AB3: 2024-10-31 | AG3: 2024-11-14 | AL3: 2024-12-05
B4: Nome do (a) Piloto (a) | D4: PILOTO | E4: PONTOS | F4: PILOTO | G4: PONTOS | H4: PILOTO | I4: PONTOS | J4: PILOTO | K4: PONTOS | L4: PILOTO | M4: PONTOS | N4: PILOTO | O4: PONTOS | P4: PILOTO | Q4: PONTOS | R4: PILOTO | S4: PONTOS | W4: PILOTO | X4: PONTOS | AB4: PILOTO | AC4: PONTOS | AG4: PILOTO | AH4: PONTOS | AL4: PILOTO | AM4: PONTOS
A5: X | B5: Alexandre Melillo | C5: 1 | D5: Wilson Cristofani | E5: 46 | F5: Wilson Cristofani | G5: 87 | H5: Wilson Cristofani | I5: 87 | J5: Wilson Cristofani | K5: 87 | L5: Alexandre Melillo | M5: 122 | N5: Alexandre Melillo | O5: 168 | P5: Alexandre Melillo | Q5: 205 | R5: Alexandre Melillo | S5: 242 | T5: - | U5: - | V5: - | W5: Alexandre Melillo | X5: 273 | Y5: - | Z5: - | AA5: - | AB5: Alexandre Melillo | AC5: 310 | AD5: - | AE5: - | AF5: - | AG5: Alexandre Melillo | AH5: 345 | AI5: - | AJ5: - | AK5: - | AL5: Alexandre Melillo | AM5: 378 | AN5: - | AO5: - | AP5: -
A6: X | B6: Arthur Santiago | C6: 2 | D6: Breno Motta | E6: 40 | F6: Vitor Diniz | G6: 72 | H6: Alexandre Melillo | I6: 82 | J6: Alexandre Melillo | K6: 82 | L6: Matheus Dias | M6: 116 | N6: Matheus Dias | O6: 153 | P6: Matheus Dias | Q6: 193 | R6: Wilson Cristofani | S6: 230 | T6: =S5-S6 -> 12 | U6: - | V6: =S5-S6 -> 12 | W6: Wilson Cristofani | X6: 246 | Y6: =X5-X6 -> 27 | Z6: - | AA6: =X5-X6 -> 27 | AB6: Matheus Dias | AC6: 279 | AD6: =AC5-AC6 -> 31 | AE6: - | AF6: =AC5-AC6 -> 31 | AG6: Arthur Santiago | AH6: 324 | AI6: =AH5-AH6 -> 21 | AJ6: - | AK6: =AH5-AH6 -> 21 | AL6: Arthur Santiago | AM6: 369 | AN6: =AM5-AM6 -> 9 | AO6: - | AP6: =AM5-AM6 -> 9
A7: X | B7: Guilherme Rocha | C7: 3 | D7: Mathias Almeida | E7: 37 | F7: Alexandre Melillo | G7: 66 | H7: Mathias Almeida | I7: 78 | J7: Guilherme Rocha | K7: 81 | L7: Guilherme Rocha | M7: 114 | N7: Guilherme Rocha | O7: 147 | P7: Wilson Cristofani | Q7: 185 | R7: Matheus Dias | S7: 214 | T7: =S5-S7 -> 28 | U7: - | V7: =S6-S7 -> 16 | W7: Matheus Dias | X7: 246 | Y7: =X5-X7 -> 27 | Z7: - | AA7: =X6-X7 -> 0 | AB7: Guilherme Rocha | AC7: 279 | AD7: =AC5-AC7 -> 31 | AE7: - | AF7: =AC6-AC7 -> 0 | AG7: Guilherme Rocha | AH7: 319 | AI7: =AH5-AH7 -> 26 | AJ7: - | AK7: =AH6-AH7 -> 5 | AL7: Guilherme Rocha | AM7: 344 | AN7: =AM5-AM7 -> 34 | AO7: - | AP7: =AM6-AM7 -> 25
A8: X | B8: Wilson Cristofani | C8: 4 | D8: Guilherme Rocha | E8: 35 | F8: Breno Motta | G8: 65 | H8: Breno Motta | I8: 73 | J8: Mathias Almeida | K8: 78 | L8: Luciano Brandão | M8: 103 | N8: Arthur Santiago | O8: 141 | P8: Guilherme Rocha | Q8: 178 | R8: Guilherme Rocha | S8: 214 | T8: =S5-S8 -> 28 | U8: - | V8: =S7-S8 -> 0 | W8: Guilherme Rocha | X8: 243 | Y8: =X5-X8 -> 30 | Z8: - | AA8: =X7-X8 -> 3 | AB8: Arthur Santiago | AC8: 279 | AD8: =AC5-AC8 -> 31 | AE8: - | AF8: =AC7-AC8 -> 0 | AG8: Wilson Cristofani | AH8: 301 | AI8: =AH5-AH8 -> 44 | AJ8: - | AK8: =AH7-AH8 -> 18 | AL8: Wilson Cristofani | AM8: 329 | AN8: =AM5-AM8 -> 49 | AO8: - | AP8: =AM7-AM8 -> 15
A9: X | B9: Matheus Dias | C9: 5 | D9: Matheus Dias | E9: 33 | F9: Mathias Almeida | G9: 65 | H9: Vitor Diniz | I9: 72 | J9: Breno Motta | K9: 73 | L9: Wilson Cristofani | M9: 101 | N9: Wilson Cristofani | O9: 140 | P9: Lúcio Chequer | Q9: 164 | R9: Arthur Santiago | S9: 202 | T9: =S5-S9 -> 40 | U9: - | V9: =S8-S9 -> 12 | W9: Arthur Santiago | X9: 239 | Y9: =X5-X9 -> 34 | Z9: - | AA9: =X8-X9 -> 4 | AB9: Wilson Cristofani | AC9: 274 | AD9: =AC5-AC9 -> 36 | AE9: - | AF9: =AC8-AC9 -> 5 | AG9: Matheus Dias | AH9: 299 | AI9: =AH5-AH9 -> 46 | AJ9: - | AK9: =AH8-AH9 -> 2 | AL9: Matheus Dias | AM9: 328 | AN9: =AM5-AM9 -> 50 | AO9: - | AP9: =AM8-AM9 -> 1
B10: Vitor Diniz | C10: 6 | D10: Luciano Brandão | E10: 31 | F10: Guilherme Rocha | G10: 64 | H10: Matheus Dias | I10: 70 | J10: Vitor Diniz | K10: 72 | L10: Arthur Santiago | M10: 101 | N10: Luciano Brandão | O10: 134 | P10: Luciano Brandão | Q10: 163 | R10: Luciano Brandão | S10: 192 | T10: =S5-S10 -> 50 | U10: =S9-S10 -> 10 | V10: =S9-S10 -> 10 | W10: Vitor Diniz | X10: 234 | Y10: =X5-X10 -> 39 | Z10: =X9-X10 -> 5 | AA10: =X9-X10 -> 5 | AB10: Vitor Diniz | AC10: 262 | AD10: =AC5-AC10 -> 48 | AE10: =AC9-AC10 -> 12 | AF10: =AC9-AC10 -> 12 | AG10: Vitor Diniz | AH10: 295 | AI10: =AH5-AH10 -> 50 | AJ10: =AH9-AH10 -> 4 | AK10: =AH9-AH10 -> 4 | AL10: Vitor Diniz | AM10: 326 | AN10: =AM5-AM10 -> 52 | AO10: =AM9-AM10 -> 2 | AP10: =AM9-AM10 -> 2
B11: Luciano Brandão | C11: 7 | D11: Alexandre Melillo | E11: 29 | F11: Luciano Brandão | G11: 64 | H11: Guilherme Rocha | I11: 66 | J11: Matheus Dias | K11: 70 | L11: Vitor Diniz | M11: 98 | N11: Vitor Diniz | O11: 129 | P11: Arthur Santiago | Q11: 162 | R11: Vitor Diniz | S11: 191 | T11: =S5-S11 -> 51 | U11: =S9-S11 -> 11 | V11: =S10-S11 -> 1 | W11: Lúcio Chequer | X11: 226 | Y11: =X5-X11 -> 47 | Z11: =X9-X11 -> 13 | AA11: =X10-X11 -> 8 | AB11: Lúcio Chequer | AC11: 257 | AD11: =AC5-AC11 -> 53 | AE11: =AC9-AC11 -> 17 | AF11: =AC10-AC11 -> 5 | AG11: Lúcio Chequer | AH11: 286 | AI11: =AH5-AH11 -> 59 | AJ11: =AH9-AH11 -> 13 | AK11: =AH10-AH11 -> 9 | AL11: Luciano Brandão | AM11: 319 | AN11: =AM5-AM11 -> 59 | AO11: =AM9-AM11 -> 9 | AP11: =AM10-AM11 -> 7
B12: Lúcio Chequer | C12: 8 | D12: Gladson Torres | E12: 28 | F12: Uilian Albino | G12: 57 | H12: Luciano Brandão | I12: 64 | J12: Luciano Brandão | K12: 68 | L12: Breno Motta | M12: 98 | N12: Lúcio Chequer | O12: 126 | P12: Vitor Diniz | Q12: 158 | R12: Lúcio Chequer | S12: 187 | T12: =S5-S12 -> 55 | U12: =S9-S12 -> 15 | V12: =S11-S12 -> 4 | W12: Luciano Brandão | X12: 221 | Y12: =X5-X12 -> 52 | Z12: =X9-X12 -> 18 | AA12: =X11-X12 -> 5 | AB12: Mathias Almeida | AC12: 249 | AD12: =AC5-AC12 -> 61 | AE12: =AC9-AC12 -> 25 | AF12: =AC11-AC12 -> 8 | AG12: Luciano Brandão | AH12: 284 | AI12: =AH5-AH12 -> 61 | AJ12: =AH9-AH12 -> 15 | AK12: =AH11-AH12 -> 2 | AL12: Lúcio Chequer | AM12: 310 | AN12: =AM5-AM12 -> 68 | AO12: =AM9-AM12 -> 18 | AP12: =AM11-AM12 -> 9
B13: Mathias Almeida | C13: 9 | D13: Vitor Diniz | E13: 27 | F13: Gladson Torres | G13: 54 | H13: Lúcio Chequer | I13: 62 | J13: Arthur Santiago | K13: 64 | L13: Lúcio Chequer | M13: 91 | N13: Mathias Almeida | O13: 106 | P13: Mathias Almeida | Q13: 141 | R13: Mathias Almeida | S13: 169 | T13: =S5-S13 -> 73 | U13: =S9-S13 -> 33 | V13: =S12-S13 -> 18 | W13: Mathias Almeida | X13: 204 | Y13: =X5-X13 -> 69 | Z13: =X9-X13 -> 35 | AA13: =X12-X13 -> 17 | AB13: Luciano Brandão | AC13: 247 | AD13: =AC5-AC13 -> 63 | AE13: =AC9-AC13 -> 27 | AF13: =AC12-AC13 -> 2 | AG13: Mathias Almeida | AH13: 274 | AI13: =AH5-AH13 -> 71 | AJ13: =AH9-AH13 -> 25 | AK13: =AH12-AH13 -> 10 | AL13: Mathias Almeida | AM13: 301 | AN13: =AM5-AM13 -> 77 | AO13: =AM9-AM13 -> 27 | AP13: =AM12-AM13 -> 9
B14: Uilian Albino | C14: 10 | D14: Uilian Albino | E14: 26 | F14: Leodegario Junior | G14: 46 | H14: Uilian Albino | I14: 59 | J14: Lúcio Chequer | K14: 62 | L14: Hélio Pedrolli | M14: 85 | N14: Gladson Torres | O14: 104 | P14: Breno Motta | Q14: 131 | R14: Leodegario Junior | S14: 156 | T14: =S5-S14 -> 86 | U14: =S9-S14 -> 46 | V14: =S13-S14 -> 13 | W14: Leodegario Junior | X14: 179 | Y14: =X5-X14 -> 94 | Z14: =X9-X14 -> 60 | AA14: =X13-X14 -> 25 | AB14: Hélio Pedrolli | AC14: 210 | AD14: =AC5-AC14 -> 100 | AE14: =AC9-AC14 -> 64 | AF14: =AC13-AC14 -> 37 | AG14: Uilian Albino | AH14: 233 | AI14: =AH5-AH14 -> 112 | AJ14: =AH9-AH14 -> 66 | AK14: =AH13-AH14 -> 41 | AL14: Uilian Albino | AM14: 259 | AN14: =AM5-AM14 -> 119 | AO14: =AM9-AM14 -> 69 | AP14: =AM13-AM14 -> 42
B15: Hélio Pedrolli | C15: 11 | D15: Leodegario Junior | E15: 25 | F15: Lúcio Chequer | G15: 35 | H15: Gladson Torres | I15: 54 | J15: Uilian Albino | K15: 59 | L15: Gladson Torres | M15: 81 | N15: Leodegario Junior | O15: 103 | P15: Leodegario Junior | Q15: 128 | R15: Gladson Torres | S15: 152 | T15: =S5-S15 -> 90 | U15: =S9-S15 -> 50 | V15: =S14-S15 -> 4 | W15: Hélio Pedrolli | X15: 177 | Y15: =X5-X15 -> 96 | Z15: =X9-X15 -> 62 | AA15: =X14-X15 -> 2 | AB15: Uilian Albino | AC15: 201 | AD15: =AC5-AC15 -> 109 | AE15: =AC9-AC15 -> 73 | AF15: =AC14-AC15 -> 9 | AG15: Gladson Torres | AH15: 227 | AI15: =AH5-AH15 -> 118 | AJ15: =AH9-AH15 -> 72 | AK15: =AH14-AH15 -> 6 | AL15: Hélio Pedrolli | AM15: 251 | AN15: =AM5-AM15 -> 127 | AO15: =AM9-AM15 -> 77 | AP15: =AM14-AM15 -> 8
B16: Gladson Torres | C16: 12 | D16: Aparecido Arantes | E16: 24 | F16: Matheus Dias | G16: 33 | H16: Anderson Oliveira | I16: 53 | J16: Gladson Torres | K16: 55 | L16: Mathias Almeida | M16: 78 | N16: Uilian Albino | O16: 101 | P16: Gladson Torres | Q16: 127 | R16: Uilian Albino | S16: 148 | T16: =S5-S16 -> 94 | U16: =S9-S16 -> 54 | V16: =S15-S16 -> 4 | W16: Gladson Torres | X16: 177 | Y16: =X5-X16 -> 96 | Z16: =X9-X16 -> 62 | AA16: =X15-X16 -> 0 | AB16: Leodegario Junior | AC16: 200 | AD16: =AC5-AC16 -> 110 | AE16: =AC9-AC16 -> 74 | AF16: =AC15-AC16 -> 1 | AG16: Hélio Pedrolli | AH16: 210 | AI16: =AH5-AH16 -> 135 | AJ16: =AH9-AH16 -> 89 | AK16: =AH15-AH16 -> 17 | AL16: Gladson Torres | AM16: 248 | AN16: =AM5-AM16 -> 130 | AO16: =AM9-AM16 -> 80 | AP16: =AM15-AM16 -> 3
B17: Breno Motta | C17: 13 | D17: Lúcio Chequer | E17: 0 | F17: Anderson Oliveira | G17: 27 | H17: Leodegario Junior | I17: 50 | J17: Hélio Pedrolli | K17: 54 | L17: Leodegario Junior | M17: 77 | N17: Breno Motta | O17: 98 | P17: Uilian Albino | Q17: 126 | R17: Hélio Pedrolli | S17: 145 | T17: =S5-S17 -> 97 | U17: =S9-S17 -> 57 | V17: =S16-S17 -> 3 | W17: Uilian Albino | X17: 176 | Y17: =X5-X17 -> 97 | Z17: =X9-X17 -> 63 | AA17: =X16-X17 -> 1 | AB17: Gladson Torres | AC17: 199 | AD17: =AC5-AC17 -> 111 | AE17: =AC9-AC17 -> 75 | AF17: =AC16-AC17 -> 1 | AG17: Breno Motta | AH17: 203 | AI17: =AH5-AH17 -> 142 | AJ17: =AH9-AH17 -> 96 | AK17: =AH16-AH17 -> 7 | AL17: Breno Motta | AM17: 240 | AN17: =AM5-AM17 -> 138 | AO17: =AM9-AM17 -> 88 | AP17: =AM16-AM17 -> 8
B18: Leodegario Junior | C18: 14 | D18: Anderson Oliveira | E18: 0 | F18: Aparecido Arantes | G18: 24 | H18: Guilherme Slongo | I18: 46 | J18: Anderson Oliveira | K18: 53 | L18: Uilian Albino | M18: 75 | N18: Guilherme Slongo | O18: 92 | P18: Hélio Pedrolli | Q18: 116 | R18: Breno Motta | S18: 131 | T18: =S5-S18 -> 111 | U18: =S9-S18 -> 71 | V18: =S17-S18 -> 14 | W18: Breno Motta | X18: 155 | Y18: =X5-X18 -> 118 | Z18: =X9-X18 -> 84 | AA18: =X17-X18 -> 21 | AB18: Breno Motta | AC18: 176 | AD18: =AC5-AC18 -> 134 | AE18: =AC9-AC18 -> 98 | AF18: =AC17-AC18 -> 23 | AG18: Leodegario Junior | AH18: 200 | AI18: =AH5-AH18 -> 145 | AJ18: =AH9-AH18 -> 99 | AK18: =AH17-AH18 -> 3 | AL18: Leodegario Junior | AM18: 200 | AN18: =AM5-AM18 -> 178 | AO18: =AM9-AM18 -> 128 | AP18: =AM17-AM18 -> 40
B19: Guilherme Slongo | C19: 15 | D19: Guilherme Slongo | E19: 0 | F19: Guilherme Slongo | G19: 24 | H19: Arthur Santiago | I19: 35 | J19: Leodegario Junior | K19: 50 | L19: Guilherme Slongo | M19: 70 | N19: Hélio Pedrolli | O19: 85 | P19: Guilherme Slongo | Q19: 114 | R19: Guilherme Slongo | S19: 114 | T19: =S5-S19 -> 128 | U19: =S9-S19 -> 88 | V19: =S18-S19 -> 17 | W19: Brian Camelo | X19: 119 | Y19: =X5-X19 -> 154 | Z19: =X9-X19 -> 120 | AA19: =X18-X19 -> 36 | AB19: Brian Camelo | AC19: 143 | AD19: =AC5-AC19 -> 167 | AE19: =AC9-AC19 -> 131 | AF19: =AC18-AC19 -> 33 | AG19: Guilherme Slongo | AH19: 166 | AI19: =AH5-AH19 -> 179 | AJ19: =AH9-AH19 -> 133 | AK19: =AH18-AH19 -> 34 | AL19: Guilherme Slongo | AM19: 166 | AN19: =AM5-AM19 -> 212 | AO19: =AM9-AM19 -> 162 | AP19: =AM18-AM19 -> 34
B20: Brian Camelo | C20: 16 | D20: Hélio Pedrolli | E20: 0 | F20: Hélio Pedrolli | G20: 23 | H20: Aparecido Arantes | I20: 24 | J20: Guilherme Slongo | K20: 48 | L20: Anderson Oliveira | M20: 53 | N20: Anderson Oliveira | O20: 80 | P20: Anderson Oliveira | Q20: 107 | R20: Anderson Oliveira | S20: 107 | T20: =S5-S20 -> 135 | U20: =S9-S20 -> 95 | V20: =S19-S20 -> 7 | W20: Guilherme Slongo | X20: 114 | Y20: =X5-X20 -> 159 | Z20: =X9-X20 -> 125 | AA20: =X19-X20 -> 5 | AB20: Guilherme Slongo | AC20: 140 | AD20: =AC5-AC20 -> 170 | AE20: =AC9-AC20 -> 134 | AF20: =AC19-AC20 -> 3 | AG20: Brian Camelo | AH20: 158 | AI20: =AH5-AH20 -> 187 | AJ20: =AH9-AH20 -> 141 | AK20: =AH19-AH20 -> 8 | AL20: Brian Camelo | AM20: 158 | AN20: =AM5-AM20 -> 220 | AO20: =AM9-AM20 -> 170 | AP20: =AM19-AM20 -> 8
B21: Leandro Leite | C21: 17 | D21: Bruno Rodovalho | E21: 0 | F21: Bruno Rodovalho | G21: 22 | H21: Leandro Leite | I21: 24 | J21: Aparecido Arantes | K21: 24 | L21: Aparecido Arantes | M21: 52 | N21: Brian Camelo | O21: 58 | P21: Aparecido Arantes | Q21: 72 | R21: Brian Camelo | S21: 93 | T21: =S5-S21 -> 149 | U21: =S9-S21 -> 109 | V21: =S20-S21 -> 14 | W21: Anderson Oliveira | X21: 107 | Y21: =X5-X21 -> 166 | Z21: =X9-X21 -> 132 | AA21: =X20-X21 -> 7 | AB21: Anderson Oliveira | AC21: 107 | AD21: =AC5-AC21 -> 203 | AE21: =AC9-AC21 -> 167 | AF21: =AC20-AC21 -> 33 | AG21: Anderson Oliveira | AH21: 107 | AI21: =AH5-AH21 -> 238 | AJ21: =AH9-AH21 -> 192 | AK21: =AH20-AH21 -> 51 | AL21: Leandro Leite | AM21: 121 | AN21: =AM5-AM21 -> 257 | AO21: =AM9-AM21 -> 207 | AP21: =AM20-AM21 -> 37
B22: Anderson Oliveira | C22: 18 | D22: Agostinho Neves | E22: 0 | F22: Agostinho Neves | G22: 0 | H22: Hélio Pedrolli | I22: 23 | J22: Leandro Leite | K22: 24 | L22: Leandro Leite | M22: 24 | N22: Aparecido Arantes | O22: 52 | P22: Brian Camelo | Q22: 69 | R22: Leandro Leite | S22: 83 | T22: =S5-S22 -> 159 | U22: =S9-S22 -> 119 | V22: =S21-S22 -> 10 | W22: Leandro Leite | X22: 81 | Y22: =X5-X22 -> 192 | Z22: =X9-X22 -> 158 | AA22: =X21-X22 -> 26 | AB22: Aparecido Arantes | AC22: 101 | AD22: =AC5-AC22 -> 209 | AE22: =AC9-AC22 -> 173 | AF22: =AC21-AC22 -> 6 | AG22: Aparecido Arantes | AH22: 101 | AI22: =AH5-AH22 -> 244 | AJ22: =AH9-AH22 -> 198 | AK22: =AH21-AH22 -> 6 | AL22: Anderson Oliveira | AM22: 107 | AN22: =AM5-AM22 -> 271 | AO22: =AM9-AM22 -> 221 | AP22: =AM21-AM22 -> 14
B23: Aparecido Arantes | C23: 19 | D23: Arthur Santiago | E23: 0 | F23: Arthur Santiago | G23: 0 | H23: Bruno Rodovalho | I23: 22 | J23: Bruno Rodovalho | K23: 22 | L23: Bruno Rodovalho | M23: 22 | N23: Leandro Leite | O23: 24 | P23: Leandro Leite | Q23: 52 | R23: Aparecido Arantes | S23: 72 | T23: =S5-S23 -> 170 | U23: =S9-S23 -> 130 | V23: =S22-S23 -> 11 | W23: Aparecido Arantes | X23: 72 | Y23: =X5-X23 -> 201 | Z23: =X9-X23 -> 167 | AA23: =X22-X23 -> 9 | AB23: Leandro Leite | AC23: 81 | AD23: =AC5-AC23 -> 229 | AE23: =AC9-AC23 -> 193 | AF23: =AC22-AC23 -> 20 | AG23: Leandro Leite | AH23: 96 | AI23: =AH5-AH23 -> 249 | AJ23: =AH9-AH23 -> 203 | AK23: =AH22-AH23 -> 5 | AL23: Aparecido Arantes | AM23: 101 | AN23: =AM5-AM23 -> 277 | AO23: =AM9-AM23 -> 227 | AP23: =AM22-AM23 -> 6
B24: Bruno Rodovalho | C24: 20 | D24: Joanes Gouvea | E24: 0 | F24: Joanes Gouvea | G24: 0 | H24: Agostinho Neves | I24: 0 | J24: Agostinho Neves | K24: 0 | L24: Agostinho Neves | M24: 0 | N24: Bruno Rodovalho | O24: 22 | P24: Bruno Rodovalho | Q24: 22 | R24: Bruno Rodovalho | S24: 22 | T24: =S5-S24 -> 220 | U24: =S9-S24 -> 180 | V24: =S23-S24 -> 50 | W24: Bruno Rodovalho | X24: 22 | Y24: =X5-X24 -> 251 | Z24: =X9-X24 -> 217 | AA24: =X23-X24 -> 50 | AB24: Bruno Rodovalho | AC24: 22 | AD24: =AC5-AC24 -> 288 | AE24: =AC9-AC24 -> 252 | AF24: =AC23-AC24 -> 59 | AG24: Bruno Rodovalho | AH24: 22 | AI24: =AH5-AH24 -> 323 | AJ24: =AH9-AH24 -> 277 | AK24: =AH23-AH24 -> 74 | AL24: Bruno Rodovalho | AM24: 22 | AN24: =AM5-AM24 -> 356 | AO24: =AM9-AM24 -> 306 | AP24: =AM23-AM24 -> 79
B25: Agostinho Neves | C25: 21 | D25: Leandro Leite | E25: 0 | F25: Leandro Leite | G25: 0 | H25: Joanes Gouvea | I25: 0 | J25: Joanes Gouvea | K25: 0 | L25: Joanes Gouvea | M25: 0 | N25: Agostinho Neves | O25: 0 | P25: Agostinho Neves | Q25: 0 | R25: Agostinho Neves | S25: 0 | T25: =S5-S25 -> 242 | U25: =S9-S25 -> 202 | V25: =S24-S25 -> 22 | W25: Agostinho Neves | X25: 0 | Y25: =X5-X25 -> 273 | Z25: =X9-X25 -> 239 | AA25: =X24-X25 -> 22 | AB25: Agostinho Neves | AC25: 0 | AD25: =AC5-AC25 -> 310 | AE25: =AC9-AC25 -> 274 | AF25: =AC24-AC25 -> 22 | AG25: Agostinho Neves | AH25: 0 | AI25: =AH5-AH25 -> 345 | AJ25: =AH9-AH25 -> 299 | AK25: =AH24-AH25 -> 22 | AL25: Agostinho Neves | AM25: 0 | AN25: =AM5-AM25 -> 378 | AO25: =AM9-AM25 -> 328 | AP25: =AM24-AM25 -> 22
B26: Leonardo Sousa | C26: 22 | D26: Leonardo Sousa | E26: 0 | F26: Leonardo Sousa | G26: 0 | H26: Leonardo Sousa | I26: 0 | J26: Leonardo Sousa | K26: 0 | L26: Leonardo Sousa | M26: 0 | N26: Joanes Gouvea | O26: 0 | P26: Joanes Gouvea | Q26: 0 | R26: Leonardo Sousa | S26: 0 | T26: =S5-S26 -> 242 | U26: =S9-S26 -> 202 | V26: =S25-S26 -> 0 | W26: Leonardo Sousa | X26: 0 | Y26: =X5-X26 -> 273 | Z26: =X9-X26 -> 239 | AA26: =X25-X26 -> 0 | AB26: Leonardo Sousa | AC26: 0 | AD26: =AC5-AC26 -> 310 | AE26: =AC9-AC26 -> 274 | AF26: =AC25-AC26 -> 0 | AG26: Leonardo Sousa | AH26: 0 | AI26: =AH5-AH26 -> 345 | AJ26: =AH9-AH26 -> 299 | AK26: =AH25-AH26 -> 0 | AL26: Leonardo Sousa | AM26: 0 | AN26: =AM5-AM26 -> 378 | AO26: =AM9-AM26 -> 328 | AP26: =AM25-AM26 -> 0
B27: Leonardo Sousa | C27: 23 | N27: Leonardo Sousa | O27: 0 | P27: Leonardo Sousa | Q27: 0 | T27: =S5-S27 -> 242 | U27: =S9-S27 -> 202 | V27: =S26-S27 -> 0 | Y27: =X5-X27 -> 273 | Z27: =X9-X27 -> 239 | AA27: =X26-X27 -> 0 | AD27: =AC5-AC27 -> 310 | AE27: =AC9-AC27 -> 274 | AF27: =AC26-AC27 -> 0 | AI27: =AH5-AH27 -> 345 | AJ27: =AH9-AH27 -> 299 | AK27: =AH26-AH27 -> 0 | AN27: =AM5-AM27 -> 378 | AO27: =AM9-AM27 -> 328 | AP27: =AM26-AM27 -> 0
C28: 24 | T28: =S5-S28 -> 242 | U28: =S9-S28 -> 202 | V28: =S27-S28 -> 0 | Y28: =X5-X28 -> 273 | Z28: =X9-X28 -> 239 | AA28: =X27-X28 -> 0 | AD28: =AC5-AC28 -> 310 | AE28: =AC9-AC28 -> 274 | AF28: =AC27-AC28 -> 0 | AI28: =AH5-AH28 -> 345 | AJ28: =AH9-AH28 -> 299 | AK28: =AH27-AH28 -> 0 | AN28: =AM5-AM28 -> 378 | AO28: =AM9-AM28 -> 328 | AP28: =AM27-AM28 -> 0
C29: 25 | T29: =S5-S29 -> 242 | U29: =S9-S29 -> 202 | V29: =S28-S29 -> 0 | Y29: =X5-X29 -> 273 | Z29: =X9-X29 -> 239 | AA29: =X28-X29 -> 0 | AD29: =AC5-AC29 -> 310 | AE29: =AC9-AC29 -> 274 | AF29: =AC28-AC29 -> 0 | AI29: =AH5-AH29 -> 345 | AJ29: =AH9-AH29 -> 299 | AK29: =AH28-AH29 -> 0 | AN29: =AM5-AM29 -> 378 | AO29: =AM9-AM29 -> 328 | AP29: =AM28-AM29 -> 0
C30: 26 | T30: =S5-S30 -> 242 | U30: =S9-S30 -> 202 | V30: =S29-S30 -> 0 | Y30: =X5-X30 -> 273 | Z30: =X9-X30 -> 239 | AA30: =X29-X30 -> 0 | AD30: =AC5-AC30 -> 310 | AE30: =AC9-AC30 -> 274 | AF30: =AC29-AC30 -> 0 | AI30: =AH5-AH30 -> 345 | AJ30: =AH9-AH30 -> 299 | AK30: =AH29-AH30 -> 0 | AN30: =AM5-AM30 -> 378 | AO30: =AM9-AM30 -> 328 | AP30: =AM29-AM30 -> 0
C31: 27 | T31: =S5-S31 -> 242 | U31: =S9-S31 -> 202 | V31: =S30-S31 -> 0 | Y31: =X5-X31 -> 273 | Z31: =X9-X31 -> 239 | AA31: =X30-X31 -> 0 | AD31: =AC5-AC31 -> 310 | AE31: =AC9-AC31 -> 274 | AF31: =AC30-AC31 -> 0 | AI31: =AH5-AH31 -> 345 | AJ31: =AH9-AH31 -> 299 | AK31: =AH30-AH31 -> 0 | AN31: =AM5-AM31 -> 378 | AO31: =AM9-AM31 -> 328 | AP31: =AM30-AM31 -> 0
C32: 28 | T32: =S5-S32 -> 242 | U32: =S9-S32 -> 202 | V32: =S31-S32 -> 0 | Y32: =X5-X32 -> 273 | Z32: =X9-X32 -> 239 | AA32: =X31-X32 -> 0 | AD32: =AC5-AC32 -> 310 | AE32: =AC9-AC32 -> 274 | AF32: =AC31-AC32 -> 0 | AI32: =AH5-AH32 -> 345 | AJ32: =AH9-AH32 -> 299 | AK32: =AH31-AH32 -> 0 | AN32: =AM5-AM32 -> 378 | AO32: =AM9-AM32 -> 328 | AP32: =AM31-AM32 -> 0
C33: 29 | T33: =S5-S33 -> 242 | U33: =S9-S33 -> 202 | V33: =S32-S33 -> 0 | Y33: =X5-X33 -> 273 | Z33: =X9-X33 -> 239 | AA33: =X32-X33 -> 0 | AD33: =AC5-AC33 -> 310 | AE33: =AC9-AC33 -> 274 | AF33: =AC32-AC33 -> 0 | AI33: =AH5-AH33 -> 345 | AJ33: =AH9-AH33 -> 299 | AK33: =AH32-AH33 -> 0 | AN33: =AM5-AM33 -> 378 | AO33: =AM9-AM33 -> 328 | AP33: =AM32-AM33 -> 0
C34: 30 | T34: =S5-S34 -> 242 | U34: =S9-S34 -> 202 | V34: =S33-S34 -> 0 | Y34: =X5-X34 -> 273 | Z34: =X9-X34 -> 239 | AA34: =X33-X34 -> 0 | AD34: =AC5-AC34 -> 310 | AE34: =AC9-AC34 -> 274 | AF34: =AC33-AC34 -> 0 | AI34: =AH5-AH34 -> 345 | AJ34: =AH9-AH34 -> 299 | AK34: =AH33-AH34 -> 0 | AN34: =AM5-AM34 -> 378 | AO34: =AM9-AM34 -> 328 | AP34: =AM33-AM34 -> 0
C35: 31 | T35: =S5-S35 -> 242 | U35: =S9-S35 -> 202 | V35: =S34-S35 -> 0 | Y35: =X5-X35 -> 273 | Z35: =X9-X35 -> 239 | AA35: =X34-X35 -> 0 | AD35: =AC5-AC35 -> 310 | AE35: =AC9-AC35 -> 274 | AF35: =AC34-AC35 -> 0 | AI35: =AH5-AH35 -> 345 | AJ35: =AH9-AH35 -> 299 | AK35: =AH34-AH35 -> 0 | AN35: =AM5-AM35 -> 378 | AO35: =AM9-AM35 -> 328 | AP35: =AM34-AM35 -> 0
C36: 32 | T36: =S5-S36 -> 242 | U36: =S9-S36 -> 202 | V36: =S35-S36 -> 0 | Y36: =X5-X36 -> 273 | Z36: =X9-X36 -> 239 | AA36: =X35-X36 -> 0 | AD36: =AC5-AC36 -> 310 | AE36: =AC9-AC36 -> 274 | AF36: =AC35-AC36 -> 0 | AI36: =AH5-AH36 -> 345 | AJ36: =AH9-AH36 -> 299 | AK36: =AH35-AH36 -> 0 | AN36: =AM5-AM36 -> 378 | AO36: =AM9-AM36 -> 328 | AP36: =AM35-AM36 -> 0
C37: 33 | T37: =S5-S37 -> 242 | U37: =S9-S37 -> 202 | V37: =S36-S37 -> 0 | Y37: =X5-X37 -> 273 | Z37: =X9-X37 -> 239 | AA37: =X36-X37 -> 0 | AD37: =AC5-AC37 -> 310 | AE37: =AC9-AC37 -> 274 | AF37: =AC36-AC37 -> 0 | AI37: =AH5-AH37 -> 345 | AJ37: =AH9-AH37 -> 299 | AK37: =AH36-AH37 -> 0 | AN37: =AM5-AM37 -> 378 | AO37: =AM9-AM37 -> 328 | AP37: =AM36-AM37 -> 0
C38: 34 | T38: =S5-S38 -> 242 | U38: =S9-S38 -> 202 | V38: =S37-S38 -> 0 | Y38: =X5-X38 -> 273 | Z38: =X9-X38 -> 239 | AA38: =X37-X38 -> 0 | AD38: =AC5-AC38 -> 310 | AE38: =AC9-AC38 -> 274 | AF38: =AC37-AC38 -> 0 | AI38: =AH5-AH38 -> 345 | AJ38: =AH9-AH38 -> 299 | AK38: =AH37-AH38 -> 0 | AN38: =AM5-AM38 -> 378 | AO38: =AM9-AM38 -> 328 | AP38: =AM37-AM38 -> 0
C39: 35 | T39: =S5-S39 -> 242 | U39: =S9-S39 -> 202 | V39: =S38-S39 -> 0 | Y39: =X5-X39 -> 273 | Z39: =X9-X39 -> 239 | AA39: =X38-X39 -> 0 | AD39: =AC5-AC39 -> 310 | AE39: =AC9-AC39 -> 274 | AF39: =AC38-AC39 -> 0 | AI39: =AH5-AH39 -> 345 | AJ39: =AH9-AH39 -> 299 | AK39: =AH38-AH39 -> 0 | AN39: =AM5-AM39 -> 378 | AO39: =AM9-AM39 -> 328 | AP39: =AM38-AM39 -> 0
C40: 36 | T40: =S5-S40 -> 242 | U40: =S9-S40 -> 202 | V40: =S39-S40 -> 0 | Y40: =X5-X40 -> 273 | Z40: =X9-X40 -> 239 | AA40: =X39-X40 -> 0 | AD40: =AC5-AC40 -> 310 | AE40: =AC9-AC40 -> 274 | AF40: =AC39-AC40 -> 0 | AI40: =AH5-AH40 -> 345 | AJ40: =AH9-AH40 -> 299 | AK40: =AH39-AH40 -> 0 | AN40: =AM5-AM40 -> 378 | AO40: =AM9-AM40 -> 328 | AP40: =AM39-AM40 -> 0
C41: 37 | T41: =S5-S41 -> 242 | U41: =S9-S41 -> 202 | V41: =S40-S41 -> 0 | Y41: =X5-X41 -> 273 | Z41: =X9-X41 -> 239 | AA41: =X40-X41 -> 0 | AD41: =AC5-AC41 -> 310 | AE41: =AC9-AC41 -> 274 | AF41: =AC40-AC41 -> 0 | AI41: =AH5-AH41 -> 345 | AJ41: =AH9-AH41 -> 299 | AK41: =AH40-AH41 -> 0 | AN41: =AM5-AM41 -> 378 | AO41: =AM9-AM41 -> 328 | AP41: =AM40-AM41 -> 0
C42: 38 | T42: =S5-S42 -> 242 | U42: =S9-S42 -> 202 | V42: =S41-S42 -> 0 | Y42: =X5-X42 -> 273 | Z42: =X9-X42 -> 239 | AA42: =X41-X42 -> 0 | AD42: =AC5-AC42 -> 310 | AE42: =AC9-AC42 -> 274 | AF42: =AC41-AC42 -> 0 | AI42: =AH5-AH42 -> 345 | AJ42: =AH9-AH42 -> 299 | AK42: =AH41-AH42 -> 0 | AN42: =AM5-AM42 -> 378 | AO42: =AM9-AM42 -> 328 | AP42: =AM41-AM42 -> 0
C43: 39 | T43: =S5-S43 -> 242 | U43: =S9-S43 -> 202 | V43: =S42-S43 -> 0 | Y43: =X5-X43 -> 273 | Z43: =X9-X43 -> 239 | AA43: =X42-X43 -> 0 | AD43: =AC5-AC43 -> 310 | AE43: =AC9-AC43 -> 274 | AF43: =AC42-AC43 -> 0 | AI43: =AH5-AH43 -> 345 | AJ43: =AH9-AH43 -> 299 | AK43: =AH42-AH43 -> 0 | AN43: =AM5-AM43 -> 378 | AO43: =AM9-AM43 -> 328 | AP43: =AM42-AM43 -> 0
C44: 40 | T44: =S5-S44 -> 242 | U44: =S9-S44 -> 202 | V44: =S43-S44 -> 0 | Y44: =X5-X44 -> 273 | Z44: =X9-X44 -> 239 | AA44: =X43-X44 -> 0 | AD44: =AC5-AC44 -> 310 | AE44: =AC9-AC44 -> 274 | AF44: =AC43-AC44 -> 0 | AI44: =AH5-AH44 -> 345 | AJ44: =AH9-AH44 -> 299 | AK44: =AH43-AH44 -> 0 | AN44: =AM5-AM44 -> 378 | AO44: =AM9-AM44 -> 328 | AP44: =AM43-AM44 -> 0
C45: 41 | T45: =S5-S45 -> 242 | U45: =S9-S45 -> 202 | V45: =S44-S45 -> 0 | Y45: =X5-X45 -> 273 | Z45: =X9-X45 -> 239 | AA45: =X44-X45 -> 0 | AD45: =AC5-AC45 -> 310 | AE45: =AC9-AC45 -> 274 | AF45: =AC44-AC45 -> 0 | AI45: =AH5-AH45 -> 345 | AJ45: =AH9-AH45 -> 299 | AK45: =AH44-AH45 -> 0 | AN45: =AM5-AM45 -> 378 | AO45: =AM9-AM45 -> 328 | AP45: =AM44-AM45 -> 0
C46: 42 | T46: =S5-S46 -> 242 | U46: =S9-S46 -> 202 | V46: =S45-S46 -> 0 | Y46: =X5-X46 -> 273 | Z46: =X9-X46 -> 239 | AA46: =X45-X46 -> 0 | AD46: =AC5-AC46 -> 310 | AE46: =AC9-AC46 -> 274 | AF46: =AC45-AC46 -> 0 | AI46: =AH5-AH46 -> 345 | AJ46: =AH9-AH46 -> 299 | AK46: =AH45-AH46 -> 0 | AN46: =AM5-AM46 -> 378 | AO46: =AM9-AM46 -> 328 | AP46: =AM45-AM46 -> 0
C47: 43 | T47: =S5-S47 -> 242 | U47: =S9-S47 -> 202 | V47: =S46-S47 -> 0 | Y47: =X5-X47 -> 273 | Z47: =X9-X47 -> 239 | AA47: =X46-X47 -> 0 | AD47: =AC5-AC47 -> 310 | AE47: =AC9-AC47 -> 274 | AF47: =AC46-AC47 -> 0 | AI47: =AH5-AH47 -> 345 | AJ47: =AH9-AH47 -> 299 | AK47: =AH46-AH47 -> 0 | AN47: =AM5-AM47 -> 378 | AO47: =AM9-AM47 -> 328 | AP47: =AM46-AM47 -> 0
C48: 44 | T48: =S5-S48 -> 242 | U48: =S9-S48 -> 202 | V48: =S47-S48 -> 0 | Y48: =X5-X48 -> 273 | Z48: =X9-X48 -> 239 | AA48: =X47-X48 -> 0 | AD48: =AC5-AC48 -> 310 | AE48: =AC9-AC48 -> 274 | AF48: =AC47-AC48 -> 0 | AI48: =AH5-AH48 -> 345 | AJ48: =AH9-AH48 -> 299 | AK48: =AH47-AH48 -> 0 | AN48: =AM5-AM48 -> 378 | AO48: =AM9-AM48 -> 328 | AP48: =AM47-AM48 -> 0
C49: 45 | E49: 0 | L49: XXXXXXX | M49: 0 | N49: XXXXXXX | O49: 0 | R49: XXXXXXX | S49: 0 | T49: - | U49: - | V49: - | W49: XXXXXXX | X49: 0 | Y49: - | Z49: - | AA49: - | AB49: XXXXXXX | AC49: 0 | AD49: - | AE49: - | AF49: - | AI49: - | AJ49: - | AK49: - | AL49: - | AM49: - | AN49: - | AO49: - | AP49: -

Sheet CAMP EQUIPE EVOL
A1: 2024 | B1: OK | D1: OK | F1: OK | H1: OK | J1: OK | L1: OK | N1: OK | P1: OK | R1: DIF. LIDER | S1: DIF. 3º | T1: DIF. PRÓXIMO | U1: OK | W1: DIF. LIDER | X1: DIF. 3º | Y1: DIF. PRÓXIMO | Z1: OK | AB1: DIF. LIDER | AC1: DIF. 3º | AD1: DIF. PRÓXIMO | AE1: OK | AG1: DIF. LIDER | AH1: DIF. 3º | AI1: DIF. PRÓXIMO | AJ1: OK | AL1: DIF. LIDER | AM1: DIF. 3º | AN1: DIF. PRÓXIMO
B2: 01 ETAPA | D2: 02 ETAPA | F2: 03 ETAPA | H2: 04 ETAPA | J2: 05 ETAPA | L2: 06 ETAPA | N2: 07 ETAPA | P2: 08 ETAPA | U2: 09 ETAPA | Z2: 10 ETAPA | AE2: 11 ETAPA | AJ2: 12 ETAPA
B3: 2024-01-19 | D3: 2024-02-01 | F3: 2024-03-14 | H3: 2024-04-11 | J3: 2024-05-23 | L3: 2024-06-06 | N3: 2024-07-25 | P3: 2024-08-01 | U3: 2024-09-05 | Z3: 2024-10-31 | AE3: 2024-11-14 | AJ3: 2024-12-05
A4: EQUIPES | B4: EQUIPES | C4: Pontuação Geral | D4: EQUIPES | E4: Pontuação Geral | F4: EQUIPES | G4: Pontuação Geral | H4: EQUIPES | I4: Pontuação Geral | J4: EQUIPES | K4: Pontuação Geral | L4: EQUIPES | M4: Pontuação Geral | N4: Posição | O4: Pontos | P4: Posição | Q4: Pontos | U4: Posição | V4: Pontos | Z4: Posição | AA4: Pontos | AE4: Posição | AF4: Pontos | AJ4: Posição | AK4: Pontos
A5: 1º | B5: Grupo Santiago | C5: 73 | D5: Grupo Santiago | E5: 159 | F5: Grupo Santiago | G5: 159 | H5: Grupo Santiago | I5: 159 | J5: Grupo Santiago | K5: 230 | L5: Multiseg | M5: 296 | N5: Multiseg | O5: 366 | P5: Grupo Santiago | Q5: 443 | R5: - | S5: - | T5: - | U5: Grupo Santiago | V5: 520 | W5: - | X5: - | Y5: - | Z5: Multiseg | AA5: 600 | AB5: - | AC5: - | AD5: - | AE5: Multiseg | AF5: 685 | AG5: - | AH5: - | AI5: - | AJ5: Multiseg | AK5: 757 | AL5: - | AM5: - | AN5: -
B6: Wilson Cristofani | C6: 45 | D6: Wilson Cristofani | E6: 85 | F6: Wilson Cristofani | G6: 87 | H6: Wilson Cristofani | I6: 87 | J6: Wilson Cristofani | K6: 127 | L6: Guilherme Rocha | M6: 114 | N6: Guilherme Rocha | O6: 147 | P6: Wilson Cristofani | Q6: 245 | R6: - | S6: - | T6: - | U6: Wilson Cristofani | V6: 246 | W6: - | X6: - | Y6: - | Z6: Guilherme Rocha | AA6: 184 | AB6: - | AC6: - | AD6: - | AE6: Guilherme Rocha | AF6: 224 | AG6: - | AH6: - | AI6: - | AJ6: Guilherme Rocha | AK6: 224 | AL6: - | AM6: - | AN6: -
B7: Vitor Diniz | C7: 28 | D7: Vitor Diniz | E7: 74 | F7: Vitor Diniz | G7: 72 | H7: Vitor Diniz | I7: 72 | J7: Vitor Diniz | K7: 72 | L7: Mathias Almeida | M7: 78 | N7: Mathias Almeida | O7: 78 | P7: Vitor Diniz | Q7: 136 | R7: - | S7: - | T7: - | U7: Vitor Diniz | V7: 179 | W7: - | X7: - | Y7: - | Z7: Mathias Almeida | AA7: 158 | AB7: - | AC7: - | AD7: - | AE7: Mathias Almeida | AF7: 158 | AG7: - | AH7: - | AI7: - | AJ7: Mathias Almeida | AK7: 185 | AL7: - | AM7: - | AN7: -
B8: Hélio Pedrolli | C8: 0 | D8: Hélio Pedrolli | E8: 0 | F8: Hélio Pedrolli | G8: 0 | H8: Hélio Pedrolli | I8: 0 | J8: Hélio Pedrolli | K8: 31 | L8: Arthur Santiago | M8: 104 | N8: Arthur Santiago | O8: 141 | P8: Hélio Pedrolli | Q8: 62 | R8: - | S8: - | T8: - | U8: Hélio Pedrolli | V8: 95 | W8: - | X8: - | Y8: - | Z8: Arthur Santiago | AA8: 258 | AB8: - | AC8: - | AD8: - | AE8: Arthur Santiago | AF8: 303 | AG8: - | AH8: - | AI8: - | AJ8: Arthur Santiago | AK8: 348 | AL8: - | AM8: - | AN8: -
B9: XXXXXX | D9: XXXXXX | F9: XXXXXX | H9: XXXXXX | J9: XXXXXX | L9: Bruno Rodovalho | M9: 0 | N9: Bruno Rodovalho | O9: 0 | P9: XXXXXX | R9: - | S9: - | T9: - | U9: XXXXXX | W9: - | X9: - | Y9: - | Z9: Bruno Rodovalho | AA9: 0 | AB9: - | AC9: - | AD9: - | AE9: Bruno Rodovalho | AF9: 0 | AG9: - | AH9: - | AI9: - | AJ9: Bruno Rodovalho | AK9: 0 | AL9: - | AM9: - | AN9: -
B10: XXXXXX | C10: 0 | D10: XXXXXX | E10: 0 | F10: XXXXXX | G10: 0 | H10: XXXXXX | I10: 0 | J10: XXXXXX | K10: 0 | L10: X | M10: 0 | N10: X | O10: 0 | P10: XXXXXX | Q10: 0 | R10: - | S10: - | T10: - | U10: XXXXXX | V10: 0 | W10: - | X10: - | Y10: - | Z10: X | AA10: 0 | AB10: - | AC10: - | AD10: - | AE10: X | AF10: 0 | AG10: - | AH10: - | AI10: - | AJ10: X | AK10: 0 | AL10: - | AM10: - | AN10: -
A11: 2º | B11: ComOferta | C11: 73 | D11: Multiseg | E11: 129 | F11: Multiseg | G11: 148 | H11: Multiseg | I11: 151 | J11: Multiseg | K11: 223 | L11: Grupo Santiago | M11: 289 | N11: Grupo Santiago | O11: 365 | P11: Multiseg | Q11: 442 | R11: =Q5-Q11 -> 1 | S11: - | T11: =Q5-Q11 -> 1 | U11: Multiseg | V11: 514 | W11: =V5-V11 -> 6 | X11: - | Y11: =V5-V11 -> 6 | Z11: Grupo Santiago | AA11: 581 | AB11: =AA5-AA11 -> 19 | AC11: - | AD11: =AA5-AA11 -> 19 | AE11: Grupo Santiago | AF11: 638 | AG11: =AF5-AF11 -> 47 | AH11: - | AI11: =AF5-AF11 -> 47 | AJ11: Grupo Santiago | AK11: 710 | AL11: =AK5-AK11 -> 47 | AM11: - | AN11: =AK5-AK11 -> 47
B12: Matheus Dias | C12: 33 | D12: Guilherme Rocha | E12: 64 | F12: Guilherme Rocha | G12: 35 | H12: Guilherme Rocha | I12: 46 | J12: Guilherme Rocha | K12: 81 | L12: Wilson Cristofani | M12: 155 | N12: Wilson Cristofani | O12: 200 | P12: Guilherme Rocha | Q12: 183 | R12: - | S12: - | T12: - | U12: Guilherme Rocha | V12: 183 | W12: - | X12: - | Y12: - | Z12: Wilson Cristofani | AA12: 246 | AB12: - | AC12: - | AD12: - | AE12: Wilson Cristofani | AF12: 246 | AG12: - | AH12: - | AI12: - | AJ12: Wilson Cristofani | AK12: 246 | AL12: - | AM12: - | AN12: -
B13: Breno Motta | C13: 40 | D13: Mathias Almeida | E13: 65 | F13: Mathias Almeida | G13: 78 | H13: Mathias Almeida | I13: 41 | J13: Mathias Almeida | K13: 78 | L13: Vitor Diniz | M13: 103 | N13: Vitor Diniz | O13: 103 | P13: Mathias Almeida | Q13: 78 | R13: - | S13: - | T13: - | U13: Mathias Almeida | V13: 113 | W13: - | X13: - | Y13: - | Z13: Vitor Diniz | AA13: 207 | AB13: - | AC13: - | AD13: - | AE13: Vitor Diniz | AF13: 233 | AG13: - | AH13: - | AI13: - | AJ13: Vitor Diniz | AK13: 264 | AL13: - | AM13: - | AN13: -
B14: Gladson Torres | C14: 0 | D14: Arthur Santiago | E14: 0 | F14: Arthur Santiago | G14: 35 | H14: Arthur Santiago | I14: 64 | J14: Arthur Santiago | K14: 64 | L14: Hélio Pedrolli | M14: 31 | N14: Hélio Pedrolli | O14: 62 | P14: Arthur Santiago | Q14: 181 | R14: - | S14: - | T14: - | U14: Arthur Santiago | V14: 218 | W14: - | X14: - | Y14: - | Z14: Hélio Pedrolli | AA14: 128 | AB14: - | AC14: - | AD14: - | AE14: Hélio Pedrolli | AF14: 159 | AG14: - | AH14: - | AI14: - | AJ14: Hélio Pedrolli | AK14: 200 | AL14: - | AM14: - | AN14: -
B15: XX | D15: Bruno Rodovalho | E15: 0 | F15: Bruno Rodovalho | G15: 0 | H15: Bruno Rodovalho | I15: 0 | J15: Bruno Rodovalho | K15: 0 | L15: XXXXXX | N15: XXXXXX | P15: Bruno Rodovalho | Q15: 0 | R15: - | S15: - | T15: - | U15: Bruno Rodovalho | V15: 0 | W15: - | X15: - | Y15: - | Z15: XXXXXX | AB15: - | AC15: - | AD15: - | AE15: XXXXXX | AG15: - | AH15: - | AI15: - | AJ15: XXXXXX | AL15: - | AM15: - | AN15: -
B16: XX | D16: X | E16: 0 | F16: X | G16: 0 | H16: X | I16: 0 | J16: X | K16: 0 | L16: XXXXXX | M16: 0 | N16: XXXXXX | O16: 0 | P16: X | Q16: 0 | R16: - | S16: - | T16: - | U16: X | V16: 0 | W16: - | X16: - | Y16: - | Z16: XXXXXX | AA16: 0 | AB16: - | AC16: - | AD16: - | AE16: XXXXXX | AF16: 0 | AG16: - | AH16: - | AI16: - | AJ16: XXXXXX | AK16: 0 | AL16: - | AM16: - | AN16: -
A17: 3º | B17: Multiseg | C17: 72 | D17: ComOferta | E17: 124 | F17: ComOferta | G17: 143 | H17: ComOferta | I17: 143 | J17: ComOferta | K17: 204 | L17: Essencia Studio | M17: 271 | N17: ComOferta | O17: 337 | P17: Essencia Studio | Q17: 397 | R17: =Q5-Q17 -> 46 | S17: - | T17: =Q11-Q17 -> 45 | U17: Essencia Studio | V17: 450 | W17: =V5-V17 -> 70 | X17: - | Y17: =V11-V17 -> 64 | Z17: Essencia Studio | AA17: 513 | AB17: =AA5-AA17 -> 87 | AC17: - | AD17: =AA11-AA17 -> 68 | AE17: Essencia Studio | AF17: 574 | AG17: =AF5-AF17 -> 111 | AH17: - | AI17: =AF11-AF17 -> 64 | AJ17: Essencia Studio | AK17: 623 | AL17: =AK5-AK17 -> 134 | AM17: - | AN17: =AK11-AK17 -> 87
B18: Guilherme Rocha | C18: 35 | D18: Matheus Dias | E18: 33 | F18: Matheus Dias | G18: 70 | H18: Matheus Dias | I18: 70 | J18: Matheus Dias | K18: 104 | L18: Alexandre Melillo | M18: 168 | N18: Matheus Dias | O18: 181 | P18: Alexandre Melillo | Q18: 242 | R18: - | S18: - | T18: - | U18: Alexandre Melillo | V18: 271 | W18: - | X18: - | Y18: - | Z18: Alexandre Melillo | AA18: 308 | AB18: - | AC18: - | AD18: - | AE18: Alexandre Melillo | AF18: 343 | AG18: - | AH18: - | AI18: - | AJ18: Alexandre Melillo | AK18: 368 | AL18: - | AM18: - | AN18: -
B19: Mathias Almeida | C19: 37 | D19: Breno Motta | E19: 65 | F19: Breno Motta | G19: 73 | H19: Breno Motta | I19: 73 | J19: Breno Motta | K19: 73 | L19: Leodegario Junior | M19: 103 | N19: Breno Motta | O19: 106 | P19: Leodegario Junior | Q19: 131 | R19: - | S19: - | T19: - | U19: Leodegario Junior | V19: 155 | W19: - | X19: - | Y19: - | Z19: Leodegario Junior | AA19: 155 | AB19: - | AC19: - | AD19: - | AE19: Leodegario Junior | AF19: 155 | AG19: - | AH19: - | AI19: - | AJ19: Leodegario Junior | AK19: 179 | AL19: - | AM19: - | AN19: -
B20: Arthur Santiago | C20: 0 | D20: Gladson Torres | E20: 26 | F20: Gladson Torres | G20: 0 | H20: Gladson Torres | I20: 0 | J20: Gladson Torres | K20: 27 | L20: Guilherme Slongo | M20: 0 | N20: Gladson Torres | O20: 50 | P20: Guilherme Slongo | Q20: 24 | R20: - | S20: - | T20: - | U20: Guilherme Slongo | V20: 24 | W20: - | X20: - | Y20: - | Z20: Guilherme Slongo | AA20: 50 | AB20: - | AC20: - | AD20: - | AE20: Guilherme Slongo | AF20: 76 | AG20: - | AH20: - | AI20: - | AJ20: Guilherme Slongo | AK20: 76 | AL20: - | AM20: - | AN20: -
B21: Bruno Rodovalho | C21: 0 | D21: XX | F21: XX | H21: XX | J21: XX | L21: XXX | N21: XX | P21: XXX | R21: - | S21: - | T21: - | U21: XXX | W21: - | X21: - | Y21: - | Z21: XXX | AB21: - | AC21: - | AD21: - | AE21: XXX | AG21: - | AH21: - | AI21: - | AJ21: XXX | AL21: - | AM21: - | AN21: -
B22: X | C22: 0 | D22: XX | F22: XX | H22: XX | J22: XX | L22: XXX | M22: 0 | N22: XX | P22: XXX | Q22: 0 | R22: - | S22: - | T22: - | U22: XXX | V22: 0 | W22: - | X22: - | Y22: - | Z22: XXX | AA22: 0 | AB22: - | AC22: - | AD22: - | AE22: XXX | AF22: 0 | AG22: - | AH22: - | AI22: - | AJ22: XXX | AK22: 0 | AL22: - | AM22: - | AN22: -
A23: 4º | B23: Essencia Studio | C23: 54 | D23: Essencia Studio | E23: 115 | F23: Essencia Studio | G23: 131 | H23: Essencia Studio | I23: 132 | J23: Essencia Studio | K23: 199 | L23: ComOferta | M23: 264 | N23: Essencia Studio | O23: 332 | P23: ComOferta | Q23: 388 | R23: =Q5-Q23 -> 55 | S23: =Q$17-Q23 -> 9 | T23: =Q17-Q23 -> 9 | U23: ComOferta | V23: 445 | W23: =V5-V23 -> 75 | X23: =V$17-V23 -> 5 | Y23: =V17-V23 -> 5 | Z23: ComOferta | AA23: 495 | AB23: =AA5-AA23 -> 105 | AC23: =AA$17-AA23 -> 18 | AD23: =AA17-AA23 -> 18 | AE23: ComOferta | AF23: 550 | AG23: =AF5-AF23 -> 135 | AH23: =AF$17-AF23 -> 24 | AI23: =AF17-AF23 -> 24 | AJ23: ComOferta | AK23: 616 | AL23: =AK5-AK23 -> 141 | AM23: =AK$17-AK23 -> 7 | AN23: =AK17-AK23 -> 7
B24: Alexandre Melillo | C24: 29 | D24: Alexandre Melillo | E24: 66 | F24: Alexandre Melillo | G24: 82 | H24: Alexandre Melillo | I24: 82 | J24: Alexandre Melillo | K24: 122 | L24: Matheus Dias | M24: 149 | N24: Alexandre Melillo | O24: 205 | P24: Matheus Dias | Q24: 181 | R24: - | S24: - | T24: - | U24: Matheus Dias | V24: 214 | W24: - | X24: - | Y24: - | Z24: Matheus Dias | AA24: 214 | AB24: - | AC24: - | AD24: - | AE24: Matheus Dias | AF24: 214 | AG24: - | AH24: - | AI24: - | AJ24: Matheus Dias | AK24: 243 | AL24: - | AM24: - | AN24: -
B25: Leodegario Junior | C25: 25 | D25: Leodegario Junior | E25: 25 | F25: Leodegario Junior | G25: 25 | H25: Leodegario Junior | I25: 50 | J25: Leodegario Junior | K25: 77 | L25: Breno Motta | M25: 73 | N25: Leodegario Junior | O25: 103 | P25: Breno Motta | Q25: 131 | R25: - | S25: - | T25: - | U25: Breno Motta | V25: 131 | W25: - | X25: - | Y25: - | Z25: Breno Motta | AA25: 155 | AB25: - | AC25: - | AD25: - | AE25: Breno Motta | AF25: 182 | AG25: - | AH25: - | AI25: - | AJ25: Breno Motta | AK25: 219 | AL25: - | AM25: - | AN25: -
B26: Guilherme Slongo | C26: 0 | D26: Guilherme Slongo | E26: 24 | F26: Guilherme Slongo | G26: 24 | H26: Guilherme Slongo | I26: 0 | J26: Guilherme Slongo | K26: 0 | L26: Gladson Torres | M26: 27 | N26: Guilherme Slongo | O26: 24 | P26: Gladson Torres | Q26: 76 | R26: - | S26: - | T26: - | U26: Gladson Torres | V26: 100 | W26: - | X26: - | Y26: - | Z26: Gladson Torres | AA26: 126 | AB26: - | AC26: - | AD26: - | AE26: Gladson Torres | AF26: 154 | AG26: - | AH26: - | AI26: - | AJ26: Gladson Torres | AK26: 154 | AL26: - | AM26: - | AN26: -
B27: XXX | D27: XXX | F27: XXX | H27: XXX | J27: XXX | L27: Brian Camelo | M27: 15 | N27: XXX | P27: XX | R27: - | S27: - | T27: - | U27: XX | W27: - | X27: - | Y27: - | Z27: XX | AB27: - | AC27: - | AD27: - | AE27: XX | AG27: - | AH27: - | AI27: - | AJ27: XX | AL27: - | AM27: - | AN27: -
B28: XXX | C28: 0 | D28: XXX | E28: 0 | F28: XXX | G28: 0 | H28: XXX | I28: 0 | J28: XXX | K28: 0 | L28: XX | N28: XXX | O28: 0 | P28: XX | R28: - | S28: - | T28: - | U28: XX | W28: - | X28: - | Y28: - | Z28: XX | AB28: - | AC28: - | AD28: - | AE28: XX | AG28: - | AH28: - | AI28: - | AJ28: XX | AL28: - | AM28: - | AN28: -
A29: 5º | B29: AST Estrutura | C29: 31 | D29: Inovesa | E29: 92 | F29: Inovesa | G29: 121 | H29: Inovesa | I29: 121 | J29: Inovesa | K29: 166 | L29: Inovesa | M29: 226 | N29: Inovesa | O29: 290 | P29: Inovesa | Q29: 337 | R29: =Q5-Q29 -> 106 | S29: =Q$17-Q29 -> 60 | T29: =Q23-Q29 -> 51 | U29: Inovesa | V29: 403 | W29: =V5-V29 -> 117 | X29: =V$17-V29 -> 47 | Y29: =V23-V29 -> 42 | Z29: Inovesa | AA29: 459 | AB29: =AA5-AA29 -> 141 | AC29: =AA$17-AA29 -> 54 | AD29: =AA23-AA29 -> 36 | AE29: Inovesa | AF29: 520 | AG29: =AF5-AF29 -> 165 | AH29: =AF$17-AF29 -> 54 | AI29: =AF23-AF29 -> 30 | AJ29: Inovesa | AK29: 570 | AL29: =AK5-AK29 -> 187 | AM29: =AK$17-AK29 -> 53 | AN29: =AK23-AK29 -> 46
B30: Luciano Brandão | C30: 31 | D30: Joanes Gouvea | E30: 0 | F30: Joanes Gouvea | G30: 0 | H30: Joanes Gouvea | I30: 0 | J30: Joanes Gouvea | K30: 0 | L30: Joanes Gouvea | M30: 0 | N30: Brian Camelo | O30: 49 | P30: Brian Camelo | Q30: 73 | R30: - | S30: - | T30: - | U30: Brian Camelo | V30: 49 | W30: - | X30: - | Y30: - | Z30: Brian Camelo | AA30: 49 | AB30: - | AC30: - | AD30: - | AE30: Brian Camelo | AF30: 49 | AG30: - | AH30: - | AI30: - | AJ30: Brian Camelo | AK30: 49 | AL30: - | AM30: - | AN30: -
B31: Anderson Oliveira | C31: 0 | D31: Lúcio Chequer | E31: 35 | F31: Lúcio Chequer | G31: 62 | H31: Lúcio Chequer | I31: 62 | J31: Lúcio Chequer | K31: 91 | L31: Lúcio Chequer | M31: 126 | N31: Lúcio Chequer | O31: 135 | P31: Lúcio Chequer | Q31: 158 | R31: - | S31: - | T31: - | U31: Lúcio Chequer | V31: 204 | W31: - | X31: - | Y31: - | Z31: Lúcio Chequer | AA31: 235 | AB31: - | AC31: - | AD31: - | AE31: Lúcio Chequer | AF31: 264 | AG31: - | AH31: - | AI31: - | AJ31: Lúcio Chequer | AK31: 288 | AL31: - | AM31: - | AN31: -
B32: Leonardo Sousa | C32: 0 | D32: Uilian Albino | E32: 57 | F32: Uilian Albino | G32: 59 | H32: Uilian Albino | I32: 59 | J32: Uilian Albino | K32: 75 | L32: Uilian Albino | M32: 100 | N32: Uilian Albino | O32: 106 | P32: Uilian Albino | Q32: 106 | R32: - | S32: - | T32: - | U32: Uilian Albino | V32: 150 | W32: - | X32: - | Y32: - | Z32: Uilian Albino | AA32: 175 | AB32: - | AC32: - | AD32: - | AE32: Uilian Albino | AF32: 207 | AG32: - | AH32: - | AI32: - | AJ32: Uilian Albino | AK32: 233 | AL32: - | AM32: - | AN32: -
B33: XXXX | C33: 0 | D33: XXXXX | F33: XXXXX | H33: XXXXX | J33: XXXXX | L33: XXXXX | N33: XXXXX | P33: XXXXX | R33: - | S33: - | T33: - | U33: XXXXX | W33: - | X33: - | Y33: - | Z33: XXXXX | AB33: - | AC33: - | AD33: - | AE33: XXXXX | AG33: - | AH33: - | AI33: - | AJ33: XXXXX | AL33: - | AM33: - | AN33: -
B34: XXXX | C34: 0 | D34: XXXXX | E34: 0 | F34: XXXXX | G34: 0 | H34: XXXXX | I34: 0 | J34: XXXXX | K34: 0 | L34: XXXXX | M34: 0 | N34: XXXXX | O34: 0 | P34: XXXXX | Q34: 0 | R34: - | S34: - | T34: - | U34: XXXXX | V34: 0 | W34: - | X34: - | Y34: - | Z34: XXXXX | AA34: 0 | AB34: - | AC34: - | AD34: - | AE34: XXXXX | AF34: 0 | AG34: - | AH34: - | AI34: - | AJ34: XXXXX | AK34: 0 | AL34: - | AM34: - | AN34: -
A35: 6º | B35: Inovesa | C35: 26 | D35: AST Estrutura | E35: 91 | F35: AST Estrutura | G35: 115 | H35: AST Estrutura | I35: 115 | J35: AST Estrutura | K35: 150 | L35: AST Estrutura | M35: 206 | N35: AST Estrutura | O35: 241 | P35: AST Estrutura | Q35: 272 | R35: =Q5-Q35 -> 171 | S35: =Q$17-Q35 -> 125 | T35: =Q29-Q35 -> 65 | U35: AST Estrutura | V35: 301 | W35: =V5-V35 -> 219 | X35: =V$17-V35 -> 149 | Y35: =V29-V35 -> 102 | Z35: AST Estrutura | AA35: 328 | AB35: =AA5-AA35 -> 272 | AC35: =AA$17-AA35 -> 185 | AD35: =AA29-AA35 -> 131 | AE35: AST Estrutura | AF35: 365 | AG35: =AF5-AF35 -> 320 | AH35: =AF$17-AF35 -> 209 | AI35: =AF29-AF35 -> 155 | AJ35: AST Estrutura | AK35: 400 | AL35: =AK5-AK35 -> 357 | AM35: =AK$17-AK35 -> 223 | AN35: =AK29-AK35 -> 170
B36: Joanes Gouvea | C36: 0 | D36: Luciano Brandão | E36: 64 | F36: Luciano Brandão | G36: 62 | H36: Luciano Brandão | I36: 62 | J36: Luciano Brandão | K36: 97 | L36: Luciano Brandão | M36: 126 | N36: Luciano Brandão | O36: 161 | P36: Luciano Brandão | Q36: 192 | R36: - | S36: - | T36: - | U36: Luciano Brandão | V36: 221 | W36: - | X36: - | Y36: - | Z36: Luciano Brandão | AA36: 221 | AB36: - | AC36: - | AD36: - | AE36: Luciano Brandão | AF36: 258 | AG36: - | AH36: - | AI36: - | AJ36: Luciano Brandão | AK36: 293 | AL36: - | AM36: - | AN36: -
B37: Lúcio Chequer | C37: 0 | D37: Anderson Oliveira | E37: 27 | F37: Anderson Oliveira | G37: 53 | H37: Anderson Oliveira | I37: 53 | J37: Anderson Oliveira | K37: 53 | L37: Anderson Oliveira | M37: 80 | N37: Anderson Oliveira | O37: 80 | P37: Anderson Oliveira | Q37: 80 | R37: - | S37: - | T37: - | U37: Anderson Oliveira | V37: 80 | W37: - | X37: - | Y37: - | Z37: Anderson Oliveira | AA37: 107 | AB37: - | AC37: - | AD37: - | AE37: Anderson Oliveira | AF37: 107 | AG37: - | AH37: - | AI37: - | AJ37: Anderson Oliveira | AK37: 107 | AL37: - | AM37: - | AN37: -
B38: Uilian Albino | C38: 26 | D38: Leonardo Sousa | E38: 0 | F38: Leonardo Sousa | G38: 0 | H38: Leonardo Sousa | I38: 0 | J38: Leonardo Sousa | K38: 0 | L38: Leonardo Sousa | M38: 0 | N38: Leonardo Sousa | O38: 0 | P38: Leonardo Sousa | Q38: 0 | R38: - | S38: - | T38: - | U38: Leonardo Sousa | V38: 0 | W38: - | X38: - | Y38: - | Z38: Leonardo Sousa | AA38: 0 | AB38: - | AC38: - | AD38: - | AE38: Leonardo Sousa | AF38: 0 | AG38: - | AH38: - | AI38: - | AJ38: Leonardo Sousa | AK38: 0 | AL38: - | AM38: - | AN38: -
B39: XXXXX | D39: XXXX | E39: 0 | F39: XXXX | G39: 0 | H39: XXXX | I39: 0 | J39: XXXX | K39: 0 | L39: XXXX | M39: 0 | N39: XXXX | O39: 0 | P39: XXXX | Q39: 0 | R39: - | S39: - | T39: - | U39: XXXX | V39: 0 | W39: - | X39: - | Y39: - | Z39: XXXX | AA39: 0 | AB39: - | AC39: - | AD39: - | AE39: XXXX | AF39: 0 | AG39: - | AH39: - | AI39: - | AJ39: XXXX | AK39: 0 | AL39: - | AM39: - | AN39: -
B40: XXXXX | C40: 0 | D40: XXXX | E40: 0 | F40: XXXX | G40: 0 | H40: XXXX | I40: 0 | J40: XXXX | K40: 0 | L40: XXXX | M40: 0 | N40: XXXX | O40: 0 | P40: XXXX | Q40: 0 | R40: - | S40: - | T40: - | U40: XXXX | V40: 0 | W40: - | X40: - | Y40: - | Z40: XXXX | AA40: 0 | AB40: - | AC40: - | AD40: - | AE40: XXXX | AF40: 0 | AG40: - | AH40: - | AI40: - | AJ40: XXXX | AK40: 0 | AL40: - | AM40: - | AN40: -
A41: 7º | B41: Os Piratas | C41: 24 | D41: Os Piratas | E41: 24 | F41: Os Piratas | G41: 48 | H41: Os Piratas | I41: 48 | J41: Os Piratas | K41: 76 | L41: Os Piratas | M41: 76 | N41: Os Piratas | O41: 124 | P41: Os Piratas | Q41: 155 | R41: =Q5-Q41 -> 288 | S41: =Q$17-Q41 -> 242 | T41: =Q35-Q41 -> 117 | U41: Os Piratas | V41: 153 | W41: =V5-V41 -> 367 | X41: =V$17-V41 -> 297 | Y41: =V35-V41 -> 148 | Z41: Os Piratas | AA41: 182 | AB41: =AA5-AA41 -> 418 | AC41: =AA$17-AA41 -> 331 | AD41: =AA35-AA41 -> 146 | AE41: Os Piratas | AF41: 197 | AG41: =AF5-AF41 -> 488 | AH41: =AF$17-AF41 -> 377 | AI41: =AF35-AF41 -> 168 | AJ41: Os Piratas | AK41: 222 | AL41: =AK5-AK41 -> 535 | AM41: =AK$17-AK41 -> 401 | AN41: =AK35-AK41 -> 178
B42: Agostinho Neves | C42: 0 | D42: Agostinho Neves | E42: 0 | F42: Agostinho Neves | G42: 0 | H42: Agostinho Neves | I42: 0 | J42: Agostinho Neves | K42: 0 | L42: Agostinho Neves | M42: 0 | N42: Agostinho Neves | O42: 0 | P42: Agostinho Neves | Q42: 0 | R42: - | S42: - | T42: - | U42: Agostinho Neves | V42: 0 | W42: - | X42: - | Y42: - | Z42: Agostinho Neves | AA42: 0 | AB42: - | AC42: - | AD42: - | AE42: Agostinho Neves | AF42: 0 | AG42: - | AH42: - | AI42: - | AJ42: Agostinho Neves | AK42: 0 | AL42: - | AM42: - | AN42: -
B43: Leandro Leite | C43: 0 | D43: Leandro Leite | E43: 0 | F43: Leandro Leite | G43: 24 | H43: Leandro Leite | I43: 24 | J43: Leandro Leite | K43: 24 | L43: Leandro Leite | M43: 24 | N43: Leandro Leite | O43: 52 | P43: Leandro Leite | Q43: 83 | R43: - | S43: - | T43: - | U43: Leandro Leite | V43: 81 | W43: - | X43: - | Y43: - | Z43: Leandro Leite | AA43: 81 | AB43: - | AC43: - | AD43: - | AE43: Leandro Leite | AF43: 96 | AG43: - | AH43: - | AI43: - | AJ43: Leandro Leite | AK43: 121 | AL43: - | AM43: - | AN43: -
B44: Aparecido Arantes | C44: 24 | D44: Aparecido Arantes | E44: 24 | F44: Aparecido Arantes | G44: 24 | H44: Aparecido Arantes | I44: 24 | J44: Aparecido Arantes | K44: 52 | L44: Aparecido Arantes | M44: 52 | N44: Aparecido Arantes | O44: 72 | P44: Aparecido Arantes | Q44: 72 | R44: - | S44: - | T44: - | U44: Aparecido Arantes | V44: 72 | W44: - | X44: - | Y44: - | Z44: Aparecido Arantes | AA44: 101 | AB44: - | AC44: - | AD44: - | AE44: Aparecido Arantes | AF44: 101 | AG44: - | AH44: - | AI44: - | AJ44: Aparecido Arantes | AK44: 101 | AL44: - | AM44: - | AN44: -
B45: XXXXXXX | D45: XXXXXXX | F45: XXXXXXX | H45: XXXXXXX | J45: XXXXXXX | L45: XXXXXXX | N45: XXXXXXX | P45: XXXXXXX | R45: - | S45: - | T45: - | U45: XXXXXXX | W45: - | X45: - | Y45: - | Z45: XXXXXXX | AB45: - | AC45: - | AD45: - | AE45: XXXXXXX | AG45: - | AH45: - | AI45: - | AJ45: XXXXXXX | AL45: - | AM45: - | AN45: -
B46: XXXXXXX | C46: 0 | D46: XXXXXXX | E46: 0 | F46: XXXXXXX | G46: 0 | H46: XXXXXXX | I46: 0 | J46: XXXXXXX | K46: 0 | L46: XXXXXXX | M46: 0 | N46: XXXXXXX | O46: 0 | P46: XXXXXXX | Q46: 0 | R46: - | S46: - | T46: - | U46: XXXXXXX | V46: 0 | W46: - | X46: - | Y46: - | Z46: XXXXXXX | AA46: 0 | AB46: - | AC46: - | AD46: - | AE46: XXXXXXX | AF46: 0 | AG46: - | AH46: - | AI46: - | AJ46: XXXXXXX | AK46: 0 | AL46: - | AM46: - | AN46: -
A47: 8º
A53: 9º

Sheet TABELA
A1: 2024 | E1: OK | I1: OK | M1: OK | Q1: OK | U1: OK | Y1: OK | AC1: OK | AG1: OK | AK1: OK | AO1: OK | AS1: OK | AW1: OK
D2: 01 ETAPA | H2: 02 ETAPA | L2: 03 ETAPA | P2: 04 ETAPA | T2: 05 ETAPA | X2: 06 ETAPA | AB2: 07 ETAPA | AF2: 08 ETAPA | AJ2: 09 ETAPA | AN2: 10 ETAPA | AR2: 11 ETAPA | AV2: 12 ETAPA
D3: 2024-01-18 | H3: 2024-02-01 | L3: 2024-03-14 | P3: 2024-04-11 | T3: 2024-05-23 | X3: 2024-06-06 | AB3: 2024-07-25 | AF3: 2024-08-01 | AJ3: 2024-09-05 | AN3: 2024-10-31 | AR3: 2024-11-14 | AV3: 2024-12-05
B4: Nome do (a) Piloto (a) | C4: Pontuação Geral | D4: Posição | E4: Pontos | F4: Bônus | G4: Penalidade | H4: Posição | I4: Pontos | J4: Bônus | K4: Penalidade | L4: Posição | M4: Pontos | N4: Bônus | O4: Penalidade | P4: Posição | Q4: Pontos | R4: Bônus | S4: Penalidade | T4: Posição | U4: Pontos | V4: Bônus | W4: Penalidade | X4: Posição | Y4: Pontos | Z4: Bônus | AA4: Penalidade | AB4: Posição | AC4: Pontos | AD4: Bônus | AE4: Penalidade | AF4: Posição | AG4: Pontos | AH4: Bônus | AI4: Penalidade | AJ4: Posição | AK4: Pontos | AL4: Bônus | AM4: Penalidade | AN4: Posição | AO4: Pontos | AP4: Bônus | AQ4: Penalidade | AR4: Posição | AS4: Pontos | AT4: Bônus | AU4: Penalidade | AV4: Posição | AW4: Pontos | AX4: Bônus | AY4: Penalidade | AZ4: 1º LUGAR | BA4: 2º LUGAR | BB4: 3º LUGAR | BC4: 4º LUGAR | BD4: 5º LUGAR | BE4: 6º LUGAR | BF4: 7º LUGAR | BG4: 8º LUGAR | BH4: 9º LUGAR | BI4: 10º LUGAR | BJ4: 11º LUGAR | BK4: 12º LUGAR | BL4: 13º LUGAR | BM4: 14º LUGAR | BN4: 15º LUGAR | BO4: 16º LUGAR | BP4: 17º LUGAR | BQ4: 18º LUGAR | BR4: 19º LUGAR | BS4: 20º LUGAR | BT4: 21º LUGAR | BU4: 22º LUGAR | BV4: 23º LUGAR | BW4: 24º LUGAR | BX4: 25º LUGAR | BY4: 26º LUGAR | BZ4: 27º LUGAR | CA4: 28º LUGAR | CB4: 29º LUGAR | CC4: 30º LUGAR | CD4: 31º LUGAR | CE4: 32º LUGAR | CF4: 33º LUGAR | CG4: 34º LUGAR | CH4: 35º LUGAR | CI4: 36º LUGAR | CJ4: 37º LUGAR | CK4: 38º LUGAR | CL4: 39º LUGAR | CM4: 40º LUGAR | CN4: 41º LUGAR
A5: 1 | B5: Agostinho Neves | C5: 0 | E5: 0 | I5: 0 | M5: 0 | Q5: 0 | U5: 0 | Y5: 0 | AC5: 0 | AG5: 0 | AK5: 0 | AO5: 0 | AS5: 0 | AW5: 0 | AZ5: 0 | BA5: 0 | BB5: 0 | BC5: 0 | BD5: 0 | BE5: 0 | BF5: 0 | BG5: 0 | BH5: 0 | BI5: 0 | BJ5: 0 | BK5: 0 | BL5: 0 | BM5: 0 | BN5: 0 | BO5: 0 | BP5: 0 | BQ5: 0 | BR5: 0 | BS5: 0 | BT5: 0 | BU5: 0 | BV5: 0 | BW5: 0 | BX5: 0 | BY5: 0 | BZ5: 0 | CA5: 0 | CB5: 0 | CC5: 0 | CD5: 0 | CE5: 0 | CF5: 0 | CG5: 0 | CH5: 0 | CI5: 0 | CJ5: 0 | CK5: 0 | CL5: 0 | CM5: 0 | CN5: 0
A6: 2 | B6: Alexandre Melillo | C6: 432 | D6: 7 | E6: 29 | H6: 3 | I6: 37 | L6: 1 | M6: 45 | P6: 3 | Q6: 37 | T6: 2 | U6: 40 | X6: 1 | Y6: 45 | Z6: 1 | AB6: 11 | AC6: 25 | AF6: 3 | AG6: 37 | AJ6: 6 | AK6: 31 | AN6: 3 | AO6: 37 | AR6: 4 | AS6: 35 | AV6: 5 | AW6: 33 | AZ6: 2 | BA6: 1 | BB6: 4 | BC6: 1 | BD6: 1 | BE6: 1 | BF6: 1 | BG6: 0 | BH6: 0 | BI6: 0 | BJ6: 1 | BK6: 0 | BL6: 0 | BM6: 0 | BN6: 0 | BO6: 0 | BP6: 0 | BQ6: 0 | BR6: 0 | BS6: 0 | BT6: 0 | BU6: 0 | BV6: 0 | BW6: 0 | BX6: 0 | BY6: 0 | BZ6: 0 | CA6: 0 | CB6: 0 | CC6: 0 | CD6: 0 | CE6: 0 | CF6: 0 | CG6: 0 | CH6: 0 | CI6: 0 | CJ6: 0 | CK6: 0 | CL6: 0 | CM6: 0 | CN6: 0
A7: 3 | B7: Anderson Oliveira | C7: 107 | E7: 0 | H7: 9 | I7: 27 | L7: 10 | M7: 26 | Q7: 0 | U7: 0 | X7: 9 | Y7: 27 | AB7: 9 | AC7: 27 | AG7: 0 | AK7: 0 | AO7: 0 | AS7: 0 | AW7: 0 | AZ7: 0 | BA7: 0 | BB7: 0 | BC7: 0 | BD7: 0 | BE7: 0 | BF7: 0 | BG7: 0 | BH7: 3 | BI7: 1 | BJ7: 0 | BK7: 0 | BL7: 0 | BM7: 0 | BN7: 0 | BO7: 0 | BP7: 0 | BQ7: 0 | BR7: 0 | BS7: 0 | BT7: 0 | BU7: 0 | BV7: 0 | BW7: 0 | BX7: 0 | BY7: 0 | BZ7: 0 | CA7: 0 | CB7: 0 | CC7: 0 | CD7: 0 | CE7: 0 | CF7: 0 | CG7: 0 | CH7: 0 | CI7: 0 | CJ7: 0 | CK7: 0 | CL7: 0 | CM7: 0 | CN7: 0
A8: 4 | B8: Aparecido Arantes | C8: 101 | D8: 12 | E8: 24 | I8: 0 | M8: 0 | Q8: 0 | T8: 8 | U8: 28 | Y8: 0 | AB8: 16 | AC8: 20 | AG8: 0 | AK8: 0 | AN8: 7 | AO8: 29 | AS8: 0 | AW8: 0 | AZ8: 0 | BA8: 0 | BB8: 0 | BC8: 0 | BD8: 0 | BE8: 0 | BF8: 1 | BG8: 1 | BH8: 0 | BI8: 0 | BJ8: 0 | BK8: 1 | BL8: 0 | BM8: 0 | BN8: 0 | BO8: 1 | BP8: 0 | BQ8: 0 | BR8: 0 | BS8: 0 | BT8: 0 | BU8: 0 | BV8: 0 | BW8: 0 | BX8: 0 | BY8: 0 | BZ8: 0 | CA8: 0 | CB8: 0 | CC8: 0 | CD8: 0 | CE8: 0 | CF8: 0 | CG8: 0 | CH8: 0 | CI8: 0 | CJ8: 0 | CK8: 0 | CL8: 0 | CM8: 0 | CN8: 0
A9: 5 | B9: Arthur Santiago | C9: 369 | E9: 0 | I9: 0 | L9: 4 | M9: 35 | P9: 7 | Q9: 29 | T9: 3 | U9: 37 | X9: 2 | Y9: 40 | AB9: 15 | AC9: 21 | AF9: 2 | AG9: 40 | AJ9: 3 | AK9: 37 | AN9: 2 | AO9: 40 | AR9: 1 | AS9: 45 | AV9: 1 | AW9: 45 | AZ9: 2 | BA9: 3 | BB9: 2 | BC9: 1 | BD9: 0 | BE9: 0 | BF9: 1 | BG9: 0 | BH9: 0 | BI9: 0 | BJ9: 0 | BK9: 0 | BL9: 0 | BM9: 0 | BN9: 1 | BO9: 0 | BP9: 0 | BQ9: 0 | BR9: 0 | BS9: 0 | BT9: 0 | BU9: 0 | BV9: 0 | BW9: 0 | BX9: 0 | BY9: 0 | BZ9: 0 | CA9: 0 | CB9: 0 | CC9: 0 | CD9: 0 | CE9: 0 | CF9: 0 | CG9: 0 | CH9: 0 | CI9: 0 | CJ9: 0 | CK9: 0 | CL9: 0 | CM9: 0 | CN9: 0
A10: 6 | B10: Breno Motta | C10: 240 | D10: 2 | E10: 40 | H10: 11 | I10: 25 | L10: 5 | M10: 33 | Q10: 0 | U10: 0 | Y10: 0 | AB10: 5 | AC10: 33 | AG10: 0 | AJ10: 12 | AK10: 24 | AN10: 15 | AO10: 21 | AR10: 9 | AS10: 27 | AV10: 3 | AW10: 37 | AZ10: 0 | BA10: 1 | BB10: 1 | BC10: 0 | BD10: 2 | BE10: 0 | BF10: 0 | BG10: 0 | BH10: 1 | BI10: 0 | BJ10: 1 | BK10: 1 | BL10: 0 | BM10: 0 | BN10: 1 | BO10: 0 | BP10: 0 | BQ10: 0 | BR10: 0 | BS10: 0 | BT10: 0 | BU10: 0 | BV10: 0 | BW10: 0 | BX10: 0 | BY10: 0 | BZ10: 0 | CA10: 0 | CB10: 0 | CC10: 0 | CD10: 0 | CE10: 0 | CF10: 0 | CG10: 0 | CH10: 0 | CI10: 0 | CJ10: 0 | CK10: 0 | CL10: 0 | CM10: 0 | CN10: 0
A11: 7 | B11: Bruno Rodovalho | C11: 22 | E11: 0 | H11: 14 | I11: 22 | M11: 0 | Q11: 0 | U11: 0 | Y11: 0 | AC11: 0 | AG11: 0 | AK11: 0 | AO11: 0 | AS11: 0 | AW11: 0 | AZ11: 0 | BA11: 0 | BB11: 0 | BC11: 0 | BD11: 0 | BE11: 0 | BF11: 0 | BG11: 0 | BH11: 0 | BI11: 0 | BJ11: 0 | BK11: 0 | BL11: 0 | BM11: 1 | BN11: 0 | BO11: 0 | BP11: 0 | BQ11: 0 | BR11: 0 | BS11: 0 | BT11: 0 | BU11: 0 | BV11: 0 | BW11: 0 | BX11: 0 | BY11: 0 | BZ11: 0 | CA11: 0 | CB11: 0 | CC11: 0 | CD11: 0 | CE11: 0 | CF11: 0 | CG11: 0 | CH11: 0 | CI11: 0 | CJ11: 0 | CK11: 0 | CL11: 0 | CM11: 0 | CN11: 0
A12: 8 | B12: Gladson Torres | C12: 248 | D12: 8 | E12: 28 | H12: 10 | I12: 26 | L12: 15 | M12: 21 | P12: 9 | Q12: 27 | U12: 0 | X12: 13 | Y12: 23 | AB12: 13 | AC12: 23 | AF12: 12 | AG12: 24 | AJ12: 10 | AK12: 26 | AN12: 14 | AO12: 22 | AR12: 8 | AS12: 28 | AW12: 0 | AZ12: 0 | BA12: 0 | BB12: 0 | BC12: 0 | BD12: 0 | BE12: 0 | BF12: 0 | BG12: 2 | BH12: 1 | BI12: 2 | BJ12: 0 | BK12: 1 | BL12: 2 | BM12: 1 | BN12: 1 | BO12: 0 | BP12: 0 | BQ12: 0 | BR12: 0 | BS12: 0 | BT12: 0 | BU12: 0 | BV12: 0 | BW12: 0 | BX12: 0 | BY12: 0 | BZ12: 0 | CA12: 0 | CB12: 0 | CC12: 0 | CD12: 0 | CE12: 0 | CF12: 0 | CG12: 0 | CH12: 0 | CI12: 0 | CJ12: 0 | CK12: 0 | CL12: 0 | CM12: 0 | CN12: 0
A13: 9 | B13: Guilherme Rocha | C13: 344 | D13: 4 | E13: 35 | H13: 7 | I13: 29 | L13: 6 | M13: 31 | P13: 1 | Q13: 45 | R13: 1 | T13: 5 | U13: 33 | X13: 5 | Y13: 33 | AC13: 0 | AF13: 4 | AG13: 35 | AH13: 1 | AJ13: 11 | AK13: 25 | AN13: 4 | AO13: 35 | AP13: 1 | AR13: 2 | AS13: 40 | AW13: 0 | AZ13: 1 | BA13: 1 | BB13: 0 | BC13: 3 | BD13: 2 | BE13: 1 | BF13: 1 | BG13: 0 | BH13: 0 | BI13: 0 | BJ13: 1 | BK13: 0 | BL13: 0 | BM13: 0 | BN13: 0 | BO13: 0 | BP13: 0 | BQ13: 0 | BR13: 0 | BS13: 0 | BT13: 0 | BU13: 0 | BV13: 0 | BW13: 0 | BX13: 0 | BY13: 0 | BZ13: 0 | CA13: 0 | CB13: 0 | CC13: 0 | CD13: 0 | CE13: 0 | CF13: 0 | CG13: 0 | CH13: 0 | CI13: 0 | CJ13: 0 | CK13: 0 | CL13: 0 | CM13: 0 | CN13: 0
A14: 10 | B14: Guilherme Slongo | C14: 166 | E14: 0 | H14: 12 | I14: 24 | L14: 14 | M14: 22 | P14: 12 | Q14: 24 | U14: 0 | X14: 14 | Y14: 22 | AB14: 14 | AC14: 22 | AG14: 0 | AK14: 0 | AN14: 10 | AO14: 26 | AR14: 10 | AS14: 26 | AW14: 0 | AZ14: 0 | BA14: 0 | BB14: 0 | BC14: 0 | BD14: 0 | BE14: 0 | BF14: 0 | BG14: 0 | BH14: 0 | BI14: 2 | BJ14: 0 | BK14: 2 | BL14: 0 | BM14: 3 | BN14: 0 | BO14: 0 | BP14: 0 | BQ14: 0 | BR14: 0 | BS14: 0 | BT14: 0 | BU14: 0 | BV14: 0 | BW14: 0 | BX14: 0 | BY14: 0 | BZ14: 0 | CA14: 0 | CB14: 0 | CC14: 0 | CD14: 0 | CE14: 0 | CF14: 0 | CG14: 0 | CH14: 0 | CI14: 0 | CJ14: 0 | CK14: 0 | CL14: 0 | CM14: 0 | CN14: 0
A15: 11 | B15: Hélio Pedrolli | C15: 251 | E15: 0 | H15: 13 | I15: 23 | M15: 0 | P15: 6 | Q15: 31 | T15: 6 | U15: 31 | Y15: 0 | AB15: 6 | AC15: 31 | AF15: 8 | AG15: 28 | AJ15: 5 | AK15: 33 | AN15: 5 | AO15: 33 | AS15: 0 | AV15: 2 | AW15: 40 | AX15: 1 | AZ15: 0 | BA15: 1 | BB15: 0 | BC15: 0 | BD15: 2 | BE15: 3 | BF15: 0 | BG15: 1 | BH15: 0 | BI15: 0 | BJ15: 0 | BK15: 0 | BL15: 1 | BM15: 0 | BN15: 0 | BO15: 0 | BP15: 0 | BQ15: 0 | BR15: 0 | BS15: 0 | BT15: 0 | BU15: 0 | BV15: 0 | BW15: 0 | BX15: 0 | BY15: 0 | BZ15: 0 | CA15: 0 | CB15: 0 | CC15: 0 | CD15: 0 | CE15: 0 | CF15: 0 | CG15: 0 | CH15: 0 | CI15: 0 | CJ15: 0 | CK15: 0 | CL15: 0 | CM15: 0 | CN15: 0
A16: 12 | B16: Brian Camelo | C16: 158 | E16: 0 | G16: NÃO | I16: 0 | K16: NÃO | L16: 16 | M16: 20 | P16: 13 | Q16: 23 | T16: 21 | U16: 15 | Y16: 0 | AB16: 10 | AC16: 26 | AF16: 13 | AG16: 23 | AJ16: 9 | AK16: 27 | AN16: 12 | AO16: 24 | AS16: 0 | AW16: 0 | AZ16: 0 | BA16: 0 | BB16: 0 | BC16: 0 | BD16: 0 | BE16: 0 | BF16: 0 | BG16: 0 | BH16: 1 | BI16: 1 | BJ16: 0 | BK16: 1 | BL16: 2 | BM16: 0 | BN16: 0 | BO16: 1 | BP16: 0 | BQ16: 0 | BR16: 0 | BS16: 0 | BT16: 1 | BU16: 0 | BV16: 0 | BW16: 0 | BX16: 0 | BY16: 0 | BZ16: 0 | CA16: 0 | CB16: 0 | CC16: 0 | CD16: 0 | CE16: 0 | CF16: 0 | CG16: 0 | CH16: 0 | CI16: 0 | CJ16: 0 | CK16: 0 | CL16: 0 | CM16: 0 | CN16: 0
A17: 13 | B17: Leandro Leite | C17: 121 | E17: 0 | I17: 0 | L17: 12 | M17: 24 | Q17: 0 | U17: 0 | Y17: 0 | AB17: 8 | AC17: 28 | AF17: 7 | AG17: 29 | AK17: 0 | AO17: 0 | AR17: 21 | AS17: 15 | AU17: SIM | AV17: 11 | AW17: 25 | AZ17: 0 | BA17: 0 | BB17: 0 | BC17: 0 | BD17: 0 | BE17: 0 | BF17: 1 | BG17: 1 | BH17: 0 | BI17: 0 | BJ17: 1 | BK17: 1 | BL17: 0 | BM17: 0 | BN17: 0 | BO17: 0 | BP17: 0 | BQ17: 0 | BR17: 0 | BS17: 0 | BT17: 1 | BU17: 0 | BV17: 0 | BW17: 0 | BX17: 0 | BY17: 0 | BZ17: 0 | CA17: 0 | CB17: 0 | CC17: 0 | CD17: 0 | CE17: 0 | CF17: 0 | CG17: 0 | CH17: 0 | CI17: 0 | CJ17: 0 | CK17: 0 | CL17: 0 | CM17: 0 | CN17: 0
A18: 14 | B18: Leodegario Junior | C18: 200 | D18: 11 | E18: 25 | H18: 15 | I18: 21 | L18: 11 | M18: 25 | P18: 11 | Q18: 25 | T18: 9 | U18: 27 | X18: 10 | Y18: 26 | AB18: 12 | AC18: 24 | AF18: 9 | AG18: 27 | AK18: 0 | AO18: 0 | AS18: 0 | AW18: 0 | AZ18: 0 | BA18: 0 | BB18: 0 | BC18: 0 | BD18: 0 | BE18: 0 | BF18: 0 | BG18: 0 | BH18: 2 | BI18: 1 | BJ18: 3 | BK18: 1 | BL18: 0 | BM18: 0 | BN18: 1 | BO18: 0 | BP18: 0 | BQ18: 0 | BR18: 0 | BS18: 0 | BT18: 0 | BU18: 0 | BV18: 0 | BW18: 0 | BX18: 0 | BY18: 0 | BZ18: 0 | CA18: 0 | CB18: 0 | CC18: 0 | CD18: 0 | CE18: 0 | CF18: 0 | CG18: 0 | CH18: 0 | CI18: 0 | CJ18: 0 | CK18: 0 | CL18: 0 | CM18: 0 | CN18: 0
A19: 15 | B19: Leonardo Sousa | C19: 0 | E19: 0 | I19: 0 | M19: 0 | Q19: 0 | U19: 0 | Y19: 0 | AC19: 0 | AG19: 0 | AK19: 0 | AO19: 0 | AS19: 0 | AW19: 0 | AZ19: 0 | BA19: 0 | BB19: 0 | BC19: 0 | BD19: 0 | BE19: 0 | BF19: 0 | BG19: 0 | BH19: 0 | BI19: 0 | BJ19: 0 | BK19: 0 | BL19: 0 | BM19: 0 | BN19: 0 | BO19: 0 | BP19: 0 | BQ19: 0 | BR19: 0 | BS19: 0 | BT19: 0 | BU19: 0 | BV19: 0 | BW19: 0 | BX19: 0 | BY19: 0 | BZ19: 0 | CA19: 0 | CB19: 0 | CC19: 0 | CD19: 0 | CE19: 0 | CF19: 0 | CG19: 0 | CH19: 0 | CI19: 0 | CJ19: 0 | CK19: 0 | CL19: 0 | CM19: 0 | CN19: 0
A20: 16 | B20: Luciano Brandão | C20: 342 | D20: 6 | E20: 31 | H20: 5 | I20: 33 | L20: 7 | M20: 29 | P20: 4 | Q20: 35 | T20: 4 | U20: 35 | X20: 7 | Y20: 29 | AC20: 0 | AF20: 10 | AG20: 26 | AJ20: 7 | AK20: 29 | AN20: 13 | AO20: 23 | AR20: 3 | AS20: 37 | AV20: 4 | AW20: 35 | AZ20: 0 | BA20: 0 | BB20: 1 | BC20: 3 | BD20: 1 | BE20: 1 | BF20: 3 | BG20: 0 | BH20: 0 | BI20: 1 | BJ20: 0 | BK20: 0 | BL20: 1 | BM20: 0 | BN20: 0 | BO20: 0 | BP20: 0 | BQ20: 0 | BR20: 0 | BS20: 0 | BT20: 0 | BU20: 0 | BV20: 0 | BW20: 0 | BX20: 0 | BY20: 0 | BZ20: 0 | CA20: 0 | CB20: 0 | CC20: 0 | CD20: 0 | CE20: 0 | CF20: 0 | CG20: 0 | CH20: 0 | CI20: 0 | CJ20: 0 | CK20: 0 | CL20: 0 | CM20: 0 | CN20: 0
A21: 17 | B21: Lúcio Chequer | C21: 310 | E21: 0 | H21: 4 | I21: 35 | L21: 9 | M21: 27 | Q21: 0 | T21: 7 | U21: 29 | X21: 4 | Y21: 35 | AB21: 3 | AC21: 37 | AD21: 1 | AF21: 14 | AG21: 22 | AJ21: 2 | AK21: 40 | AN21: 6 | AO21: 31 | AR21: 7 | AS21: 29 | AV21: 12 | AW21: 24 | AZ21: 0 | BA21: 1 | BB21: 1 | BC21: 2 | BD21: 0 | BE21: 1 | BF21: 2 | BG21: 0 | BH21: 1 | BI21: 0 | BJ21: 0 | BK21: 1 | BL21: 0 | BM21: 1 | BN21: 0 | BO21: 0 | BP21: 0 | BQ21: 0 | BR21: 0 | BS21: 0 | BT21: 0 | BU21: 0 | BV21: 0 | BW21: 0 | BX21: 0 | BY21: 0 | BZ21: 0 | CA21: 0 | CB21: 0 | CC21: 0 | CD21: 0 | CE21: 0 | CF21: 0 | CG21: 0 | CH21: 0 | CI21: 0 | CJ21: 0 | CK21: 0 | CL21: 0 | CM21: 0 | CN21: 0
A22: 18 | B22: Matheus Dias | C22: 328 | D22: 5 | E22: 33 | I22: 0 | L22: 3 | M22: 37 | P22: 5 | Q22: 33 | T22: 1 | U22: 45 | V22: 1 | X22: 3 | Y22: 37 | AB22: 2 | AC22: 40 | AF22: 5 | AG22: 33 | AJ22: 16 | AK22: 20 | AM22: SIM | AN22: 16 | AO22: 20 | AS22: 0 | AV22: 7 | AW22: 29 | AZ22: 1 | BA22: 1 | BB22: 2 | BC22: 0 | BD22: 3 | BE22: 0 | BF22: 1 | BG22: 0 | BH22: 0 | BI22: 0 | BJ22: 0 | BK22: 0 | BL22: 0 | BM22: 0 | BN22: 0 | BO22: 2 | BP22: 0 | BQ22: 0 | BR22: 0 | BS22: 0 | BT22: 0 | BU22: 0 | BV22: 0 | BW22: 0 | BX22: 0 | BY22: 0 | BZ22: 0 | CA22: 0 | CB22: 0 | CC22: 0 | CD22: 0 | CE22: 0 | CF22: 0 | CG22: 0 | CH22: 0 | CI22: 0 | CJ22: 0 | CK22: 0 | CL22: 0 | CM22: 0 | CN22: 0
A23: 19 | B23: Mathias Almeida | C23: 325 | D23: 3 | E23: 37 | H23: 8 | I23: 28 | L23: 2 | M23: 40 | N23: 1 | P23: 8 | Q23: 28 | T23: 0 | U23: 0 | W23: SIM | X23: 12 | Y23: 24 | AB23: 4 | AC23: 35 | AF23: 11 | AG23: 25 | AJ23: 4 | AK23: 35 | AN23: 1 | AO23: 45 | AS23: 0 | AV23: 9 | AW23: 27 | AZ23: 1 | BA23: 1 | BB23: 1 | BC23: 2 | BD23: 0 | BE23: 0 | BF23: 0 | BG23: 2 | BH23: 1 | BI23: 0 | BJ23: 1 | BK23: 1 | BL23: 0 | BM23: 0 | BN23: 0 | BO23: 0 | BP23: 0 | BQ23: 0 | BR23: 0 | BS23: 0 | BT23: 0 | BU23: 0 | BV23: 0 | BW23: 0 | BX23: 0 | BY23: 0 | BZ23: 0 | CA23: 0 | CB23: 0 | CC23: 0 | CD23: 0 | CE23: 0 | CF23: 0 | CG23: 0 | CH23: 0 | CI23: 0 | CJ23: 0 | CK23: 0 | CL23: 0 | CM23: 0 | CN23: 0
A24: 20 | B24: Uilian Albino | C24: 259 | D24: 10 | E24: 26 | H24: 6 | I24: 31 | L24: 8 | M24: 28 | P24: 14 | Q24: 22 | T24: 20 | U24: 16 | W24: SIM | X24: 11 | Y24: 25 | AC24: 0 | AG24: 0 | AJ24: 8 | AK24: 28 | AN24: 11 | AO24: 25 | AR24: 6 | AS24: 31 | AT24: 1 | AV24: 10 | AW24: 26 | AZ24: 0 | BA24: 0 | BB24: 0 | BC24: 0 | BD24: 0 | BE24: 2 | BF24: 0 | BG24: 2 | BH24: 0 | BI24: 2 | BJ24: 2 | BK24: 0 | BL24: 0 | BM24: 1 | BN24: 0 | BO24: 0 | BP24: 0 | BQ24: 0 | BR24: 0 | BS24: 1 | BT24: 0 | BU24: 0 | BV24: 0 | BW24: 0 | BX24: 0 | BY24: 0 | BZ24: 0 | CA24: 0 | CB24: 0 | CC24: 0 | CD24: 0 | CE24: 0 | CF24: 0 | CG24: 0 | CH24: 0 | CI24: 0 | CJ24: 0 | CK24: 0 | CL24: 0 | CM24: 0 | CN24: 0
A25: 21 | B25: Vitor Diniz | C25: 375 | D25: 9 | E25: 27 | H25: 1 | I25: 45 | L25: 13 | M25: 23 | P25: 10 | Q25: 26 | T25: 10 | U25: 26 | X25: 6 | Y25: 31 | AB25: 7 | AC25: 29 | AF25: 6 | AG25: 31 | AJ25: 1 | AK25: 45 | AN25: 8 | AO25: 28 | AR25: 5 | AS25: 33 | AV25: 6 | AW25: 31 | AZ25: 2 | BA25: 0 | BB25: 0 | BC25: 0 | BD25: 1 | BE25: 3 | BF25: 1 | BG25: 1 | BH25: 1 | BI25: 2 | BJ25: 0 | BK25: 0 | BL25: 1 | BM25: 0 | BN25: 0 | BO25: 0 | BP25: 0 | BQ25: 0 | BR25: 0 | BS25: 0 | BT25: 0 | BU25: 0 | BV25: 0 | BW25: 0 | BX25: 0 | BY25: 0 | BZ25: 0 | CA25: 0 | CB25: 0 | CC25: 0 | CD25: 0 | CE25: 0 | CF25: 0 | CG25: 0 | CH25: 0 | CI25: 0 | CJ25: 0 | CK25: 0 | CL25: 0 | CM25: 0 | CN25: 0
A26: 22 | B26: Wilson Cristofani | C26: 348 | D26: 1 | E26: 45 | F26: 1 | H26: 2 | I26: 40 | J26: 1 | L26: 17 | M26: 19 | P26: 2 | Q26: 40 | T26: 23 | U26: 13 | W26: SIM | X26: 8 | Y26: 28 | AB26: 1 | AC26: 45 | AF26: 1 | AG26: 45 | AJ26: 21 | AK26: 15 | AL26: 1 | AM26: SIM | AN26: 9 | AO26: 27 | AS26: 0 | AV26: 8 | AW26: 28 | AZ26: 3 | BA26: 2 | BB26: 0 | BC26: 0 | BD26: 0 | BE26: 0 | BF26: 0 | BG26: 2 | BH26: 1 | BI26: 0 | BJ26: 0 | BK26: 0 | BL26: 0 | BM26: 0 | BN26: 0 | BO26: 0 | BP26: 1 | BQ26: 0 | BR26: 0 | BS26: 0 | BT26: 1 | BU26: 0 | BV26: 1 | BW26: 0 | BX26: 0 | BY26: 0 | BZ26: 0 | CA26: 0 | CB26: 0 | CC26: 0 | CD26: 0 | CE26: 0 | CF26: 0 | CG26: 0 | CH26: 0 | CI26: 0 | CJ26: 0 | CK26: 0 | CL26: 0 | CM26: 0 | CN26: 0
A27: 23 | C27: 0 | E27: 0 | I27: 0 | M27: 0 | Q27: 0 | U27: 0 | Y27: 0 | AC27: 0 | AG27: 0 | AK27: 0 | AO27: 0 | AS27: 0 | AW27: 0 | AZ27: 0 | BA27: 0 | BB27: 0 | BC27: 0 | BD27: 0 | BE27: 0 | BF27: 0 | BG27: 0 | BH27: 0 | BI27: 0 | BJ27: 0 | BK27: 0 | BL27: 0 | BM27: 0 | BN27: 0 | BO27: 0 | BP27: 0 | BQ27: 0 | BR27: 0 | BS27: 0 | BT27: 0 | BU27: 0 | BV27: 0 | BW27: 0 | BX27: 0 | BY27: 0 | BZ27: 0 | CA27: 0 | CB27: 0 | CC27: 0 | CD27: 0 | CE27: 0 | CF27: 0 | CG27: 0 | CH27: 0 | CI27: 0 | CJ27: 0 | CK27: 0 | CL27: 0 | CM27: 0 | CN27: 0
A28: 24 | C28: 0 | E28: 0 | I28: 0 | M28: 0 | Q28: 0 | U28: 0 | Y28: 0 | AC28: 0 | AG28: 0 | AK28: 0 | AO28: 0 | AS28: 0 | AW28: 0 | AZ28: 0 | BA28: 0 | BB28: 0 | BC28: 0 | BD28: 0 | BE28: 0 | BF28: 0 | BG28: 0 | BH28: 0 | BI28: 0 | BJ28: 0 | BK28: 0 | BL28: 0 | BM28: 0 | BN28: 0 | BO28: 0 | BP28: 0 | BQ28: 0 | BR28: 0 | BS28: 0 | BT28: 0 | BU28: 0 | BV28: 0 | BW28: 0 | BX28: 0 | BY28: 0 | BZ28: 0 | CA28: 0 | CB28: 0 | CC28: 0 | CD28: 0 | CE28: 0 | CF28: 0 | CG28: 0 | CH28: 0 | CI28: 0 | CJ28: 0 | CK28: 0 | CL28: 0 | CM28: 0 | CN28: 0
A29: 25 | C29: 0 | E29: 0 | I29: 0 | M29: 0 | Q29: 0 | U29: 0 | Y29: 0 | AC29: 0 | AG29: 0 | AK29: 0 | AO29: 0 | AS29: 0 | AW29: 0 | AZ29: 0 | BA29: 0 | BB29: 0 | BC29: 0 | BD29: 0 | BE29: 0 | BF29: 0 | BG29: 0 | BH29: 0 | BI29: 0 | BJ29: 0 | BK29: 0 | BL29: 0 | BM29: 0 | BN29: 0 | BO29: 0 | BP29: 0 | BQ29: 0 | BR29: 0 | BS29: 0 | BT29: 0 | BU29: 0 | BV29: 0 | BW29: 0 | BX29: 0 | BY29: 0 | BZ29: 0 | CA29: 0 | CB29: 0 | CC29: 0 | CD29: 0 | CE29: 0 | CF29: 0 | CG29: 0 | CH29: 0 | CI29: 0 | CJ29: 0 | CK29: 0 | CL29: 0 | CM29: 0 | CN29: 0
A30: 26 | C30: 0 | E30: 0 | I30: 0 | M30: 0 | Q30: 0 | U30: 0 | Y30: 0 | AC30: 0 | AG30: 0 | AK30: 0 | AO30: 0 | AS30: 0 | AW30: 0 | AZ30: 0 | BA30: 0 | BB30: 0 | BC30: 0 | BD30: 0 | BE30: 0 | BF30: 0 | BG30: 0 | BH30: 0 | BI30: 0 | BJ30: 0 | BK30: 0 | BL30: 0 | BM30: 0 | BN30: 0 | BO30: 0 | BP30: 0 | BQ30: 0 | BR30: 0 | BS30: 0 | BT30: 0 | BU30: 0 | BV30: 0 | BW30: 0 | BX30: 0 | BY30: 0 | BZ30: 0 | CA30: 0 | CB30: 0 | CC30: 0 | CD30: 0 | CE30: 0 | CF30: 0 | CG30: 0 | CH30: 0 | CI30: 0 | CJ30: 0 | CK30: 0 | CL30: 0 | CM30: 0 | CN30: 0
A31: 27 | C31: 0 | E31: 0 | I31: 0 | M31: 0 | Q31: 0 | U31: 0 | Y31: 0 | AC31: 0 | AG31: 0 | AK31: 0 | AO31: 0 | AS31: 0 | AW31: 0 | AZ31: 0 | BA31: 0 | BB31: 0 | BC31: 0 | BD31: 0 | BE31: 0 | BF31: 0 | BG31: 0 | BH31: 0 | BI31: 0 | BJ31: 0 | BK31: 0 | BL31: 0 | BM31: 0 | BN31: 0 | BO31: 0 | BP31: 0 | BQ31: 0 | BR31: 0 | BS31: 0 | BT31: 0 | BU31: 0 | BV31: 0 | BW31: 0 | BX31: 0 | BY31: 0 | BZ31: 0 | CA31: 0 | CB31: 0 | CC31: 0 | CD31: 0 | CE31: 0 | CF31: 0 | CG31: 0 | CH31: 0 | CI31: 0 | CJ31: 0 | CK31: 0 | CL31: 0 | CM31: 0 | CN31: 0
A32: 28 | C32: 0 | E32: 0 | I32: 0 | M32: 0 | Q32: 0 | U32: 0 | Y32: 0 | AC32: 0 | AG32: 0 | AK32: 0 | AO32: 0 | AS32: 0 | AW32: 0 | AZ32: 0 | BA32: 0 | BB32: 0 | BC32: 0 | BD32: 0 | BE32: 0 | BF32: 0 | BG32: 0 | BH32: 0 | BI32: 0 | BJ32: 0 | BK32: 0 | BL32: 0 | BM32: 0 | BN32: 0 | BO32: 0 | BP32: 0 | BQ32: 0 | BR32: 0 | BS32: 0 | BT32: 0 | BU32: 0 | BV32: 0 | BW32: 0 | BX32: 0 | BY32: 0 | BZ32: 0 | CA32: 0 | CB32: 0 | CC32: 0 | CD32: 0 | CE32: 0 | CF32: 0 | CG32: 0 | CH32: 0 | CI32: 0 | CJ32: 0 | CK32: 0 | CL32: 0 | CM32: 0 | CN32: 0
A33: 29 | C33: 0 | E33: 0 | I33: 0 | M33: 0 | Q33: 0 | U33: 0 | Y33: 0 | AC33: 0 | AG33: 0 | AK33: 0 | AO33: 0 | AS33: 0 | AW33: 0 | AZ33: 0 | BA33: 0 | BB33: 0 | BC33: 0 | BD33: 0 | BE33: 0 | BF33: 0 | BG33: 0 | BH33: 0 | BI33: 0 | BJ33: 0 | BK33: 0 | BL33: 0 | BM33: 0 | BN33: 0 | BO33: 0 | BP33: 0 | BQ33: 0 | BR33: 0 | BS33: 0 | BT33: 0 | BU33: 0 | BV33: 0 | BW33: 0 | BX33: 0 | BY33: 0 | BZ33: 0 | CA33: 0 | CB33: 0 | CC33: 0 | CD33: 0 | CE33: 0 | CF33: 0 | CG33: 0 | CH33: 0 | CI33: 0 | CJ33: 0 | CK33: 0 | CL33: 0 | CM33: 0 | CN33: 0
A34: 30 | C34: 0 | E34: 0 | I34: 0 | M34: 0 | Q34: 0 | U34: 0 | Y34: 0 | AC34: 0 | AG34: 0 | AK34: 0 | AO34: 0 | AS34: 0 | AW34: 0 | AZ34: 0 | BA34: 0 | BB34: 0 | BC34: 0 | BD34: 0 | BE34: 0 | BF34: 0 | BG34: 0 | BH34: 0 | BI34: 0 | BJ34: 0 | BK34: 0 | BL34: 0 | BM34: 0 | BN34: 0 | BO34: 0 | BP34: 0 | BQ34: 0 | BR34: 0 | BS34: 0 | BT34: 0 | BU34: 0 | BV34: 0 | BW34: 0 | BX34: 0 | BY34: 0 | BZ34: 0 | CA34: 0 | CB34: 0 | CC34: 0 | CD34: 0 | CE34: 0 | CF34: 0 | CG34: 0 | CH34: 0 | CI34: 0 | CJ34: 0 | CK34: 0 | CL34: 0 | CM34: 0 | CN34: 0
A35: 31 | C35: 0 | E35: 0 | I35: 0 | M35: 0 | Q35: 0 | U35: 0 | Y35: 0 | AC35: 0 | AG35: 0 | AK35: 0 | AO35: 0 | AS35: 0 | AW35: 0 | AZ35: 0 | BA35: 0 | BB35: 0 | BC35: 0 | BD35: 0 | BE35: 0 | BF35: 0 | BG35: 0 | BH35: 0 | BI35: 0 | BJ35: 0 | BK35: 0 | BL35: 0 | BM35: 0 | BN35: 0 | BO35: 0 | BP35: 0 | BQ35: 0 | BR35: 0 | BS35: 0 | BT35: 0 | BU35: 0 | BV35: 0 | BW35: 0 | BX35: 0 | BY35: 0 | BZ35: 0 | CA35: 0 | CB35: 0 | CC35: 0 | CD35: 0 | CE35: 0 | CF35: 0 | CG35: 0 | CH35: 0 | CI35: 0 | CJ35: 0 | CK35: 0 | CL35: 0 | CM35: 0 | CN35: 0
A36: 32 | C36: 0 | E36: 0 | I36: 0 | M36: 0 | Q36: 0 | U36: 0 | Y36: 0 | AC36: 0 | AG36: 0 | AK36: 0 | AO36: 0 | AS36: 0 | AW36: 0 | AZ36: 0 | BA36: 0 | BB36: 0 | BC36: 0 | BD36: 0 | BE36: 0 | BF36: 0 | BG36: 0 | BH36: 0 | BI36: 0 | BJ36: 0 | BK36: 0 | BL36: 0 | BM36: 0 | BN36: 0 | BO36: 0 | BP36: 0 | BQ36: 0 | BR36: 0 | BS36: 0 | BT36: 0 | BU36: 0 | BV36: 0 | BW36: 0 | BX36: 0 | BY36: 0 | BZ36: 0 | CA36: 0 | CB36: 0 | CC36: 0 | CD36: 0 | CE36: 0 | CF36: 0 | CG36: 0 | CH36: 0 | CI36: 0 | CJ36: 0 | CK36: 0 | CL36: 0 | CM36: 0 | CN36: 0
A37: 33 | C37: 0 | E37: 0 | I37: 0 | M37: 0 | Q37: 0 | U37: 0 | Y37: 0 | AC37: 0 | AG37: 0 | AK37: 0 | AO37: 0 | AS37: 0 | AW37: 0 | AZ37: 0 | BA37: 0 | BB37: 0 | BC37: 0 | BD37: 0 | BE37: 0 | BF37: 0 | BG37: 0 | BH37: 0 | BI37: 0 | BJ37: 0 | BK37: 0 | BL37: 0 | BM37: 0 | BN37: 0 | BO37: 0 | BP37: 0 | BQ37: 0 | BR37: 0 | BS37: 0 | BT37: 0 | BU37: 0 | BV37: 0 | BW37: 0 | BX37: 0 | BY37: 0 | BZ37: 0 | CA37: 0 | CB37: 0 | CC37: 0 | CD37: 0 | CE37: 0 | CF37: 0 | CG37: 0 | CH37: 0 | CI37: 0 | CJ37: 0 | CK37: 0 | CL37: 0 | CM37: 0 | CN37: 0
A38: 34 | C38: 0 | E38: 0 | I38: 0 | M38: 0 | Q38: 0 | U38: 0 | Y38: 0 | AC38: 0 | AG38: 0 | AK38: 0 | AO38: 0 | AS38: 0 | AW38: 0 | AZ38: 0 | BA38: 0 | BB38: 0 | BC38: 0 | BD38: 0 | BE38: 0 | BF38: 0 | BG38: 0 | BH38: 0 | BI38: 0 | BJ38: 0 | BK38: 0 | BL38: 0 | BM38: 0 | BN38: 0 | BO38: 0 | BP38: 0 | BQ38: 0 | BR38: 0 | BS38: 0 | BT38: 0 | BU38: 0 | BV38: 0 | BW38: 0 | BX38: 0 | BY38: 0 | BZ38: 0 | CA38: 0 | CB38: 0 | CC38: 0 | CD38: 0 | CE38: 0 | CF38: 0 | CG38: 0 | CH38: 0 | CI38: 0 | CJ38: 0 | CK38: 0 | CL38: 0 | CM38: 0 | CN38: 0
A39: 35 | C39: 0 | E39: 0 | I39: 0 | M39: 0 | Q39: 0 | U39: 0 | Y39: 0 | AC39: 0 | AG39: 0 | AK39: 0 | AO39: 0 | AS39: 0 | AW39: 0 | AZ39: 0 | BA39: 0 | BB39: 0 | BC39: 0 | BD39: 0 | BE39: 0 | BF39: 0 | BG39: 0 | BH39: 0 | BI39: 0 | BJ39: 0 | BK39: 0 | BL39: 0 | BM39: 0 | BN39: 0 | BO39: 0 | BP39: 0 | BQ39: 0 | BR39: 0 | BS39: 0 | BT39: 0 | BU39: 0 | BV39: 0 | BW39: 0 | BX39: 0 | BY39: 0 | BZ39: 0 | CA39: 0 | CB39: 0 | CC39: 0 | CD39: 0 | CE39: 0 | CF39: 0 | CG39: 0 | CH39: 0 | CI39: 0 | CJ39: 0 | CK39: 0 | CL39: 0 | CM39: 0 | CN39: 0
A40: 36 | C40: 0 | E40: 0 | I40: 0 | M40: 0 | Q40: 0 | U40: 0 | Y40: 0 | AC40: 0 | AG40: 0 | AK40: 0 | AO40: 0 | AS40: 0 | AW40: 0 | AZ40: 0 | BA40: 0 | BB40: 0 | BC40: 0 | BD40: 0 | BE40: 0 | BF40: 0 | BG40: 0 | BH40: 0 | BI40: 0 | BJ40: 0 | BK40: 0 | BL40: 0 | BM40: 0 | BN40: 0 | BO40: 0 | BP40: 0 | BQ40: 0 | BR40: 0 | BS40: 0 | BT40: 0 | BU40: 0 | BV40: 0 | BW40: 0 | BX40: 0 | BY40: 0 | BZ40: 0 | CA40: 0 | CB40: 0 | CC40: 0 | CD40: 0 | CE40: 0 | CF40: 0 | CG40: 0 | CH40: 0 | CI40: 0 | CJ40: 0 | CK40: 0 | CL40: 0 | CM40: 0 | CN40: 0
A41: 37 | C41: 0 | E41: 0 | I41: 0 | M41: 0 | Q41: 0 | U41: 0 | Y41: 0 | AC41: 0 | AG41: 0 | AK41: 0 | AO41: 0 | AS41: 0 | AW41: 0 | AZ41: 0 | BA41: 0 | BB41: 0 | BC41: 0 | BD41: 0 | BE41: 0 | BF41: 0 | BG41: 0 | BH41: 0 | BI41: 0 | BJ41: 0 | BK41: 0 | BL41: 0 | BM41: 0 | BN41: 0 | BO41: 0 | BP41: 0 | BQ41: 0 | BR41: 0 | BS41: 0 | BT41: 0 | BU41: 0 | BV41: 0 | BW41: 0 | BX41: 0 | BY41: 0 | BZ41: 0 | CA41: 0 | CB41: 0 | CC41: 0 | CD41: 0 | CE41: 0 | CF41: 0 | CG41: 0 | CH41: 0 | CI41: 0 | CJ41: 0 | CK41: 0 | CL41: 0 | CM41: 0 | CN41: 0
A42: 38 | C42: 0 | E42: 0 | I42: 0 | M42: 0 | Q42: 0 | U42: 0 | Y42: 0 | AC42: 0 | AG42: 0 | AK42: 0 | AO42: 0 | AS42: 0 | AW42: 0 | AZ42: 0 | BA42: 0 | BB42: 0 | BC42: 0 | BD42: 0 | BE42: 0 | BF42: 0 | BG42: 0 | BH42: 0 | BI42: 0 | BJ42: 0 | BK42: 0 | BL42: 0 | BM42: 0 | BN42: 0 | BO42: 0 | BP42: 0 | BQ42: 0 | BR42: 0 | BS42: 0 | BT42: 0 | BU42: 0 | BV42: 0 | BW42: 0 | BX42: 0 | BY42: 0 | BZ42: 0 | CA42: 0 | CB42: 0 | CC42: 0 | CD42: 0 | CE42: 0 | CF42: 0 | CG42: 0 | CH42: 0 | CI42: 0 | CJ42: 0 | CK42: 0 | CL42: 0 | CM42: 0 | CN42: 0
A43: 39 | C43: 0 | E43: 0 | I43: 0 | M43: 0 | Q43: 0 | U43: 0 | Y43: 0 | AC43: 0 | AG43: 0 | AK43: 0 | AO43: 0 | AS43: 0 | AW43: 0 | AZ43: 0 | BA43: 0 | BB43: 0 | BC43: 0 | BD43: 0 | BE43: 0 | BF43: 0 | BG43: 0 | BH43: 0 | BI43: 0 | BJ43: 0 | BK43: 0 | BL43: 0 | BM43: 0 | BN43: 0 | BO43: 0 | BP43: 0 | BQ43: 0 | BR43: 0 | BS43: 0 | BT43: 0 | BU43: 0 | BV43: 0 | BW43: 0 | BX43: 0 | BY43: 0 | BZ43: 0 | CA43: 0 | CB43: 0 | CC43: 0 | CD43: 0 | CE43: 0 | CF43: 0 | CG43: 0 | CH43: 0 | CI43: 0 | CJ43: 0 | CK43: 0 | CL43: 0 | CM43: 0 | CN43: 0
A44: 40 | C44: 0 | E44: 0 | I44: 0 | M44: 0 | Q44: 0 | U44: 0 | Y44: 0 | AC44: 0 | AG44: 0 | AK44: 0 | AO44: 0 | AS44: 0 | AW44: 0 | AZ44: 0 | BA44: 0 | BB44: 0 | BC44: 0 | BD44: 0 | BE44: 0 | BF44: 0 | BG44: 0 | BH44: 0 | BI44: 0 | BJ44: 0 | BK44: 0 | BL44: 0 | BM44: 0 | BN44: 0 | BO44: 0 | BP44: 0 | BQ44: 0 | BR44: 0 | BS44: 0 | BT44: 0 | BU44: 0 | BV44: 0 | BW44: 0 | BX44: 0 | BY44: 0 | BZ44: 0 | CA44: 0 | CB44: 0 | CC44: 0 | CD44: 0 | CE44: 0 | CF44: 0 | CG44: 0 | CH44: 0 | CI44: 0 | CJ44: 0 | CK44: 0 | CL44: 0 | CM44: 0 | CN44: 0
A45: 41 | C45: 0 | E45: 0 | I45: 0 | M45: 0 | Q45: 0 | U45: 0 | Y45: 0 | AC45: 0 | AG45: 0 | AK45: 0 | AO45: 0 | AS45: 0 | AW45: 0 | AZ45: 0 | BA45: 0 | BB45: 0 | BC45: 0 | BD45: 0 | BE45: 0 | BF45: 0 | BG45: 0 | BH45: 0 | BI45: 0 | BJ45: 0 | BK45: 0 | BL45: 0 | BM45: 0 | BN45: 0 | BO45: 0 | BP45: 0 | BQ45: 0 | BR45: 0 | BS45: 0 | BT45: 0 | BU45: 0 | BV45: 0 | BW45: 0 | BX45: 0 | BY45: 0 | BZ45: 0 | CA45: 0 | CB45: 0 | CC45: 0 | CD45: 0 | CE45: 0 | CF45: 0 | CG45: 0 | CH45: 0 | CI45: 0 | CJ45: 0 | CK45: 0 | CL45: 0 | CM45: 0 | CN45: 0
A46: 42 | C46: 0 | E46: 0 | I46: 0 | M46: 0 | Q46: 0 | U46: 0 | Y46: 0 | AC46: 0 | AG46: 0 | AK46: 0 | AO46: 0 | AS46: 0 | AW46: 0 | AZ46: 0 | BA46: 0 | BB46: 0 | BC46: 0 | BD46: 0 | BE46: 0 | BF46: 0 | BG46: 0 | BH46: 0 | BI46: 0 | BJ46: 0 | BK46: 0 | BL46: 0 | BM46: 0 | BN46: 0 | BO46: 0 | BP46: 0 | BQ46: 0 | BR46: 0 | BS46: 0 | BT46: 0 | BU46: 0 | BV46: 0 | BW46: 0 | BX46: 0 | BY46: 0 | BZ46: 0 | CA46: 0 | CB46: 0 | CC46: 0 | CD46: 0 | CE46: 0 | CF46: 0 | CG46: 0 | CH46: 0 | CI46: 0 | CJ46: 0 | CK46: 0 | CL46: 0 | CM46: 0 | CN46: 0
A47: 43 | C47: 0 | E47: 0 | I47: 0 | M47: 0 | Q47: 0 | U47: 0 | Y47: 0 | AC47: 0 | AG47: 0 | AK47: 0 | AO47: 0 | AS47: 0 | AW47: 0 | AZ47: 0 | BA47: 0 | BB47: 0 | BC47: 0 | BD47: 0 | BE47: 0 | BF47: 0 | BG47: 0 | BH47: 0 | BI47: 0 | BJ47: 0 | BK47: 0 | BL47: 0 | BM47: 0 | BN47: 0 | BO47: 0 | BP47: 0 | BQ47: 0 | BR47: 0 | BS47: 0 | BT47: 0 | BU47: 0 | BV47: 0 | BW47: 0 | BX47: 0 | BY47: 0 | BZ47: 0 | CA47: 0 | CB47: 0 | CC47: 0 | CD47: 0 | CE47: 0 | CF47: 0 | CG47: 0 | CH47: 0 | CI47: 0 | CJ47: 0 | CK47: 0 | CL47: 0 | CM47: 0 | CN47: 0
A48: 44 | C48: 0 | E48: 0 | I48: 0 | M48: 0 | Q48: 0 | U48: 0 | Y48: 0 | AC48: 0 | AG48: 0 | AK48: 0 | AO48: 0 | AS48: 0 | AW48: 0 | AZ48: 0 | BA48: 0 | BB48: 0 | BC48: 0 | BD48: 0 | BE48: 0 | BF48: 0 | BG48: 0 | BH48: 0 | BI48: 0 | BJ48: 0 | BK48: 0 | BL48: 0 | BM48: 0 | BN48: 0 | BO48: 0 | BP48: 0 | BQ48: 0 | BR48: 0 | BS48: 0 | BT48: 0 | BU48: 0 | BV48: 0 | BW48: 0 | BX48: 0 | BY48: 0 | BZ48: 0 | CA48: 0 | CB48: 0 | CC48: 0 | CD48: 0 | CE48: 0 | CF48: 0 | CG48: 0 | CH48: 0 | CI48: 0 | CJ48: 0 | CK48: 0 | CL48: 0 | CM48: 0 | CN48: 0
A49: 45 | C49: 0 | E49: 0 | I49: 0 | M49: 0 | Q49: 0 | U49: 0 | Y49: 0 | AC49: 0 | AG49: 0 | AK49: 0 | AO49: 0 | AS49: 0 | AW49: 0 | AZ49: 0 | BA49: 0 | BB49: 0 | BC49: 0 | BD49: 0 | BE49: 0 | BF49: 0 | BG49: 0 | BH49: 0 | BI49: 0 | BJ49: 0 | BK49: 0 | BL49: 0 | BM49: 0 | BN49: 0 | BO49: 0 | BP49: 0 | BQ49: 0 | BR49: 0 | BS49: 0 | BT49: 0 | BU49: 0 | BV49: 0 | BW49: 0 | BX49: 0 | BY49: 0 | BZ49: 0 | CA49: 0 | CB49: 0 | CC49: 0 | CD49: 0 | CE49: 0 | CF49: 0 | CG49: 0 | CH49: 0 | CI49: 0 | CJ49: 0 | CK49: 0 | CL49: 0 | CM49: 0 | CN49: 0

Sheet Classificação Geral
A1: 2024 | E1: OK | I1: OK | M1: OK | Q1: OK | U1: OK | Y1: OK | AC1: OK | AG1: OK | AK1: OK | AO1: OK | AS1: OK | AW1: OK
D2: 01 ETAPA | H2: 02 ETAPA | L2: 03 ETAPA | P2: 04 ETAPA | T2: 05 ETAPA | X2: 06 ETAPA | AB2: 07 ETAPA | AF2: 08 ETAPA | AJ2: 09 ETAPA | AN2: 10 ETAPA | AR2: 11 ETAPA | AV2: 12 ETAPA
D3: 2024-01-18 | H3: 2024-02-01 | L3: 2024-03-14 | P3: 2024-04-11 | T3: 2024-05-23 | X3: 2024-06-06 | AB3: 2024-07-25 | AF3: 2024-08-01 | AJ3: 2024-09-05 | AN3: 2024-10-31 | AR3: 2024-11-14 | AV3: 2024-12-05
B4: Nome do (a) Piloto (a) | C4: Pontuação Geral | D4: Posição | E4: Pontos | F4: Bônus | G4: Penalidade | H4: Posição | I4: Pontos | J4: Bônus | K4: Penalidade | L4: Posição | M4: Pontos | N4: Bônus | O4: Penalidade | P4: Posição | Q4: Pontos | R4: Bônus | S4: Penalidade | T4: Posição | U4: Pontos | V4: Bônus | W4: Penalidade | X4: Posição | Y4: Pontos | Z4: Bônus | AA4: Penalidade | AB4: Posição | AC4: Pontos | AD4: Bônus | AE4: Penalidade | AF4: Posição | AG4: Pontos | AH4: Bônus | AI4: Penalidade | AJ4: Posição | AK4: Pontos | AL4: Bônus | AM4: Penalidade | AN4: Posição | AO4: Pontos | AP4: Bônus | AQ4: Penalidade | AR4: Posição | AS4: Pontos | AT4: Bônus | AU4: Penalidade | AV4: Posição | AW4: Pontos | AX4: Bônus | AY4: Penalidade | AZ4: 1º LUGAR | BA4: 2º LUGAR | BB4: 3º LUGAR | BC4: 4º LUGAR | BD4: 5º LUGAR | BE4: 6º LUGAR | BF4: 7º LUGAR | BG4: 8º LUGAR | BH4: 9º LUGAR | BI4: 10º LUGAR | BJ4: 11º LUGAR | BK4: 12º LUGAR | BL4: 13º LUGAR | BM4: 14º LUGAR | BN4: 15º LUGAR | BO4: 16º LUGAR | BP4: 17º LUGAR | BQ4: 18º LUGAR | BR4: 19º LUGAR | BS4: 20º LUGAR | BT4: 21º LUGAR | BU4: 22º LUGAR | BV4: 23º LUGAR | BW4: 24º LUGAR | BX4: 25º LUGAR | BY4: 26º LUGAR | BZ4: 27º LUGAR | CA4: 28º LUGAR | CB4: 29º LUGAR | CC4: 30º LUGAR | CD4: 31º LUGAR | CE4: 32º LUGAR | CF4: 33º LUGAR | CG4: 34º LUGAR | CH4: 35º LUGAR | CI4: 36º LUGAR | CJ4: 37º LUGAR | CK4: 38º LUGAR | CL4: 39º LUGAR | CM4: 40º LUGAR | CN4: 41º LUGAR
A5: 1 | B5: Alexandre Melillo | C5: 432 | D5: 7 | E5: 29 | H5: 3 | I5: 37 | L5: 1 | M5: 45 | P5: 3 | Q5: 37 | T5: 2 | U5: 40 | X5: 1 | Y5: 45 | Z5: 1 | AB5: 11 | AC5: 25 | AF5: 3 | AG5: 37 | AJ5: 6 | AK5: 31 | AN5: 3 | AO5: 37 | AR5: 4 | AS5: 35 | AV5: 5 | AW5: 33 | AZ5: 2 | BA5: 1 | BB5: 4 | BC5: 1 | BD5: 1 | BE5: 1 | BF5: 1 | BG5: 0 | BH5: 0 | BI5: 0 | BJ5: 1 | BK5: 0 | BL5: 0 | BM5: 0 | BN5: 0 | BO5: 0 | BP5: 0 | BQ5: 0 | BR5: 0 | BS5: 0 | BT5: 0 | BU5: 0 | BV5: 0 | BW5: 0 | BX5: 0 | BY5: 0 | BZ5: 0 | CA5: 0 | CB5: 0 | CC5: 0 | CD5: 0 | CE5: 0 | CF5: 0 | CG5: 0 | CH5: 0 | CI5: 0 | CJ5: 0 | CK5: 0 | CL5: 0 | CM5: 0 | CN5: 0
A6: 2 | B6: Vitor Diniz | C6: 375 | D6: 9 | E6: 27 | H6: 1 | I6: 45 | L6: 13 | M6: 23 | P6: 10 | Q6: 26 | T6: 10 | U6: 26 | X6: 6 | Y6: 31 | AB6: 7 | AC6: 29 | AF6: 6 | AG6: 31 | AJ6: 1 | AK6: 45 | AN6: 8 | AO6: 28 | AR6: 5 | AS6: 33 | AV6: 6 | AW6: 31 | AZ6: 2 | BA6: 0 | BB6: 0 | BC6: 0 | BD6: 1 | BE6: 3 | BF6: 1 | BG6: 1 | BH6: 1 | BI6: 2 | BJ6: 0 | BK6: 0 | BL6: 1 | BM6: 0 | BN6: 0 | BO6: 0 | BP6: 0 | BQ6: 0 | BR6: 0 | BS6: 0 | BT6: 0 | BU6: 0 | BV6: 0 | BW6: 0 | BX6: 0 | BY6: 0 | BZ6: 0 | CA6: 0 | CB6: 0 | CC6: 0 | CD6: 0 | CE6: 0 | CF6: 0 | CG6: 0 | CH6: 0 | CI6: 0 | CJ6: 0 | CK6: 0 | CL6: 0 | CM6: 0 | CN6: 0
A7: 3 | B7: Arthur Santiago | C7: 369 | E7: 0 | I7: 0 | L7: 4 | M7: 35 | P7: 7 | Q7: 29 | T7: 3 | U7: 37 | X7: 2 | Y7: 40 | AB7: 15 | AC7: 21 | AF7: 2 | AG7: 40 | AJ7: 3 | AK7: 37 | AN7: 2 | AO7: 40 | AR7: 1 | AS7: 45 | AV7: 1 | AW7: 45 | AZ7: 2 | BA7: 3 | BB7: 2 | BC7: 1 | BD7: 0 | BE7: 0 | BF7: 1 | BG7: 0 | BH7: 0 | BI7: 0 | BJ7: 0 | BK7: 0 | BL7: 0 | BM7: 0 | BN7: 1 | BO7: 0 | BP7: 0 | BQ7: 0 | BR7: 0 | BS7: 0 | BT7: 0 | BU7: 0 | BV7: 0 | BW7: 0 | BX7: 0 | BY7: 0 | BZ7: 0 | CA7: 0 | CB7: 0 | CC7: 0 | CD7: 0 | CE7: 0 | CF7: 0 | CG7: 0 | CH7: 0 | CI7: 0 | CJ7: 0 | CK7: 0 | CL7: 0 | CM7: 0 | CN7: 0
A8: 4 | B8: Wilson Cristofani | C8: 348 | D8: 1 | E8: 45 | F8: 1 | H8: 2 | I8: 40 | J8: 1 | L8: 17 | M8: 19 | P8: 2 | Q8: 40 | T8: 23 | U8: 13 | W8: SIM | X8: 8 | Y8: 28 | AB8: 1 | AC8: 45 | AF8: 1 | AG8: 45 | AJ8: 21 | AK8: 15 | AL8: 1 | AM8: SIM | AN8: 9 | AO8: 27 | AS8: 0 | AV8: 8 | AW8: 28 | AZ8: 3 | BA8: 2 | BB8: 0 | BC8: 0 | BD8: 0 | BE8: 0 | BF8: 0 | BG8: 2 | BH8: 1 | BI8: 0 | BJ8: 0 | BK8: 0 | BL8: 0 | BM8: 0 | BN8: 0 | BO8: 0 | BP8: 1 | BQ8: 0 | BR8: 0 | BS8: 0 | BT8: 1 | BU8: 0 | BV8: 1 | BW8: 0 | BX8: 0 | BY8: 0 | BZ8: 0 | CA8: 0 | CB8: 0 | CC8: 0 | CD8: 0 | CE8: 0 | CF8: 0 | CG8: 0 | CH8: 0 | CI8: 0 | CJ8: 0 | CK8: 0 | CL8: 0 | CM8: 0 | CN8: 0
A9: 5 | B9: Guilherme Rocha | C9: 344 | D9: 4 | E9: 35 | H9: 7 | I9: 29 | L9: 6 | M9: 31 | P9: 1 | Q9: 45 | R9: 1 | T9: 5 | U9: 33 | X9: 5 | Y9: 33 | AC9: 0 | AF9: 4 | AG9: 35 | AH9: 1 | AJ9: 11 | AK9: 25 | AN9: 4 | AO9: 35 | AP9: 1 | AR9: 2 | AS9: 40 | AW9: 0 | AZ9: 1 | BA9: 1 | BB9: 0 | BC9: 3 | BD9: 2 | BE9: 1 | BF9: 1 | BG9: 0 | BH9: 0 | BI9: 0 | BJ9: 1 | BK9: 0 | BL9: 0 | BM9: 0 | BN9: 0 | BO9: 0 | BP9: 0 | BQ9: 0 | BR9: 0 | BS9: 0 | BT9: 0 | BU9: 0 | BV9: 0 | BW9: 0 | BX9: 0 | BY9: 0 | BZ9: 0 | CA9: 0 | CB9: 0 | CC9: 0 | CD9: 0 | CE9: 0 | CF9: 0 | CG9: 0 | CH9: 0 | CI9: 0 | CJ9: 0 | CK9: 0 | CL9: 0 | CM9: 0 | CN9: 0
A10: 6 | B10: Luciano Brandão | C10: 342 | D10: 6 | E10: 31 | H10: 5 | I10: 33 | L10: 7 | M10: 29 | P10: 4 | Q10: 35 | T10: 4 | U10: 35 | X10: 7 | Y10: 29 | AC10: 0 | AF10: 10 | AG10: 26 | AJ10: 7 | AK10: 29 | AN10: 13 | AO10: 23 | AR10: 3 | AS10: 37 | AV10: 4 | AW10: 35 | AZ10: 0 | BA10: 0 | BB10: 1 | BC10: 3 | BD10: 1 | BE10: 1 | BF10: 3 | BG10: 0 | BH10: 0 | BI10: 1 | BJ10: 0 | BK10: 0 | BL10: 1 | BM10: 0 | BN10: 0 | BO10: 0 | BP10: 0 | BQ10: 0 | BR10: 0 | BS10: 0 | BT10: 0 | BU10: 0 | BV10: 0 | BW10: 0 | BX10: 0 | BY10: 0 | BZ10: 0 | CA10: 0 | CB10: 0 | CC10: 0 | CD10: 0 | CE10: 0 | CF10: 0 | CG10: 0 | CH10: 0 | CI10: 0 | CJ10: 0 | CK10: 0 | CL10: 0 | CM10: 0 | CN10: 0
A11: 7 | B11: Matheus Dias | C11: 328 | D11: 5 | E11: 33 | I11: 0 | L11: 3 | M11: 37 | P11: 5 | Q11: 33 | T11: 1 | U11: 45 | V11: 1 | X11: 3 | Y11: 37 | AB11: 2 | AC11: 40 | AF11: 5 | AG11: 33 | AJ11: 16 | AK11: 20 | AM11: SIM | AN11: 16 | AO11: 20 | AS11: 0 | AV11: 7 | AW11: 29 | AZ11: 1 | BA11: 1 | BB11: 2 | BC11: 0 | BD11: 3 | BE11: 0 | BF11: 1 | BG11: 0 | BH11: 0 | BI11: 0 | BJ11: 0 | BK11: 0 | BL11: 0 | BM11: 0 | BN11: 0 | BO11: 2 | BP11: 0 | BQ11: 0 | BR11: 0 | BS11: 0 | BT11: 0 | BU11: 0 | BV11: 0 | BW11: 0 | BX11: 0 | BY11: 0 | BZ11: 0 | CA11: 0 | CB11: 0 | CC11: 0 | CD11: 0 | CE11: 0 | CF11: 0 | CG11: 0 | CH11: 0 | CI11: 0 | CJ11: 0 | CK11: 0 | CL11: 0 | CM11: 0 | CN11: 0
A12: 8 | B12: Mathias Almeida | C12: 325 | D12: 3 | E12: 37 | H12: 8 | I12: 28 | L12: 2 | M12: 40 | N12: 1 | P12: 8 | Q12: 28 | T12: 0 | U12: 0 | W12: SIM | X12: 12 | Y12: 24 | AB12: 4 | AC12: 35 | AF12: 11 | AG12: 25 | AJ12: 4 | AK12: 35 | AN12: 1 | AO12: 45 | AS12: 0 | AV12: 9 | AW12: 27 | AZ12: 1 | BA12: 1 | BB12: 1 | BC12: 2 | BD12: 0 | BE12: 0 | BF12: 0 | BG12: 2 | BH12: 1 | BI12: 0 | BJ12: 1 | BK12: 1 | BL12: 0 | BM12: 0 | BN12: 0 | BO12: 0 | BP12: 0 | BQ12: 0 | BR12: 0 | BS12: 0 | BT12: 0 | BU12: 0 | BV12: 0 | BW12: 0 | BX12: 0 | BY12: 0 | BZ12: 0 | CA12: 0 | CB12: 0 | CC12: 0 | CD12: 0 | CE12: 0 | CF12: 0 | CG12: 0 | CH12: 0 | CI12: 0 | CJ12: 0 | CK12: 0 | CL12: 0 | CM12: 0 | CN12: 0
A13: 9 | B13: Lúcio Chequer | C13: 310 | E13: 0 | H13: 4 | I13: 35 | L13: 9 | M13: 27 | Q13: 0 | T13: 7 | U13: 29 | X13: 4 | Y13: 35 | AB13: 3 | AC13: 37 | AD13: 1 | AF13: 14 | AG13: 22 | AJ13: 2 | AK13: 40 | AN13: 6 | AO13: 31 | AR13: 7 | AS13: 29 | AV13: 12 | AW13: 24 | AZ13: 0 | BA13: 1 | BB13: 1 | BC13: 2 | BD13: 0 | BE13: 1 | BF13: 2 | BG13: 0 | BH13: 1 | BI13: 0 | BJ13: 0 | BK13: 1 | BL13: 0 | BM13: 1 | BN13: 0 | BO13: 0 | BP13: 0 | BQ13: 0 | BR13: 0 | BS13: 0 | BT13: 0 | BU13: 0 | BV13: 0 | BW13: 0 | BX13: 0 | BY13: 0 | BZ13: 0 | CA13: 0 | CB13: 0 | CC13: 0 | CD13: 0 | CE13: 0 | CF13: 0 | CG13: 0 | CH13: 0 | CI13: 0 | CJ13: 0 | CK13: 0 | CL13: 0 | CM13: 0 | CN13: 0
A14: 10 | B14: Uilian Albino | C14: 259 | D14: 10 | E14: 26 | H14: 6 | I14: 31 | L14: 8 | M14: 28 | P14: 14 | Q14: 22 | T14: 20 | U14: 16 | W14: SIM | X14: 11 | Y14: 25 | AC14: 0 | AG14: 0 | AJ14: 8 | AK14: 28 | AN14: 11 | AO14: 25 | AR14: 6 | AS14: 31 | AT14: 1 | AV14: 10 | AW14: 26 | AZ14: 0 | BA14: 0 | BB14: 0 | BC14: 0 | BD14: 0 | BE14: 2 | BF14: 0 | BG14: 2 | BH14: 0 | BI14: 2 | BJ14: 2 | BK14: 0 | BL14: 0 | BM14: 1 | BN14: 0 | BO14: 0 | BP14: 0 | BQ14: 0 | BR14: 0 | BS14: 1 | BT14: 0 | BU14: 0 | BV14: 0 | BW14: 0 | BX14: 0 | BY14: 0 | BZ14: 0 | CA14: 0 | CB14: 0 | CC14: 0 | CD14: 0 | CE14: 0 | CF14: 0 | CG14: 0 | CH14: 0 | CI14: 0 | CJ14: 0 | CK14: 0 | CL14: 0 | CM14: 0 | CN14: 0
A15: 11 | B15: Hélio Pedrolli | C15: 251 | E15: 0 | H15: 13 | I15: 23 | M15: 0 | P15: 6 | Q15: 31 | T15: 6 | U15: 31 | Y15: 0 | AB15: 6 | AC15: 31 | AF15: 8 | AG15: 28 | AJ15: 5 | AK15: 33 | AN15: 5 | AO15: 33 | AS15: 0 | AV15: 2 | AW15: 40 | AX15: 1 | AZ15: 0 | BA15: 1 | BB15: 0 | BC15: 0 | BD15: 2 | BE15: 3 | BF15: 0 | BG15: 1 | BH15: 0 | BI15: 0 | BJ15: 0 | BK15: 0 | BL15: 1 | BM15: 0 | BN15: 0 | BO15: 0 | BP15: 0 | BQ15: 0 | BR15: 0 | BS15: 0 | BT15: 0 | BU15: 0 | BV15: 0 | BW15: 0 | BX15: 0 | BY15: 0 | BZ15: 0 | CA15: 0 | CB15: 0 | CC15: 0 | CD15: 0 | CE15: 0 | CF15: 0 | CG15: 0 | CH15: 0 | CI15: 0 | CJ15: 0 | CK15: 0 | CL15: 0 | CM15: 0 | CN15: 0
A16: 12 | B16: Gladson Torres | C16: 248 | D16: 8 | E16: 28 | H16: 10 | I16: 26 | L16: 15 | M16: 21 | P16: 9 | Q16: 27 | U16: 0 | X16: 13 | Y16: 23 | AB16: 13 | AC16: 23 | AF16: 12 | AG16: 24 | AJ16: 10 | AK16: 26 | AN16: 14 | AO16: 22 | AR16: 8 | AS16: 28 | AW16: 0 | AZ16: 0 | BA16: 0 | BB16: 0 | BC16: 0 | BD16: 0 | BE16: 0 | BF16: 0 | BG16: 2 | BH16: 1 | BI16: 2 | BJ16: 0 | BK16: 1 | BL16: 2 | BM16: 1 | BN16: 1 | BO16: 0 | BP16: 0 | BQ16: 0 | BR16: 0 | BS16: 0 | BT16: 0 | BU16: 0 | BV16: 0 | BW16: 0 | BX16: 0 | BY16: 0 | BZ16: 0 | CA16: 0 | CB16: 0 | CC16: 0 | CD16: 0 | CE16: 0 | CF16: 0 | CG16: 0 | CH16: 0 | CI16: 0 | CJ16: 0 | CK16: 0 | CL16: 0 | CM16: 0 | CN16: 0
A17: 13 | B17: Breno Motta | C17: 240 | D17: 2 | E17: 40 | H17: 11 | I17: 25 | L17: 5 | M17: 33 | Q17: 0 | U17: 0 | Y17: 0 | AB17: 5 | AC17: 33 | AG17: 0 | AJ17: 12 | AK17: 24 | AN17: 15 | AO17: 21 | AR17: 9 | AS17: 27 | AV17: 3 | AW17: 37 | AZ17: 0 | BA17: 1 | BB17: 1 | BC17: 0 | BD17: 2 | BE17: 0 | BF17: 0 | BG17: 0 | BH17: 1 | BI17: 0 | BJ17: 1 | BK17: 1 | BL17: 0 | BM17: 0 | BN17: 1 | BO17: 0 | BP17: 0 | BQ17: 0 | BR17: 0 | BS17: 0 | BT17: 0 | BU17: 0 | BV17: 0 | BW17: 0 | BX17: 0 | BY17: 0 | BZ17: 0 | CA17: 0 | CB17: 0 | CC17: 0 | CD17: 0 | CE17: 0 | CF17: 0 | CG17: 0 | CH17: 0 | CI17: 0 | CJ17: 0 | CK17: 0 | CL17: 0 | CM17: 0 | CN17: 0
A18: 14 | B18: Leodegario Junior | C18: 200 | D18: 11 | E18: 25 | H18: 15 | I18: 21 | L18: 11 | M18: 25 | P18: 11 | Q18: 25 | T18: 9 | U18: 27 | X18: 10 | Y18: 26 | AB18: 12 | AC18: 24 | AF18: 9 | AG18: 27 | AK18: 0 | AO18: 0 | AS18: 0 | AW18: 0 | AZ18: 0 | BA18: 0 | BB18: 0 | BC18: 0 | BD18: 0 | BE18: 0 | BF18: 0 | BG18: 0 | BH18: 2 | BI18: 1 | BJ18: 3 | BK18: 1 | BL18: 0 | BM18: 0 | BN18: 1 | BO18: 0 | BP18: 0 | BQ18: 0 | BR18: 0 | BS18: 0 | BT18: 0 | BU18: 0 | BV18: 0 | BW18: 0 | BX18: 0 | BY18: 0 | BZ18: 0 | CA18: 0 | CB18: 0 | CC18: 0 | CD18: 0 | CE18: 0 | CF18: 0 | CG18: 0 | CH18: 0 | CI18: 0 | CJ18: 0 | CK18: 0 | CL18: 0 | CM18: 0 | CN18: 0
A19: 15 | B19: Guilherme Slongo | C19: 166 | E19: 0 | H19: 12 | I19: 24 | L19: 14 | M19: 22 | P19: 12 | Q19: 24 | U19: 0 | X19: 14 | Y19: 22 | AB19: 14 | AC19: 22 | AG19: 0 | AK19: 0 | AN19: 10 | AO19: 26 | AR19: 10 | AS19: 26 | AW19: 0 | AZ19: 0 | BA19: 0 | BB19: 0 | BC19: 0 | BD19: 0 | BE19: 0 | BF19: 0 | BG19: 0 | BH19: 0 | BI19: 2 | BJ19: 0 | BK19: 2 | BL19: 0 | BM19: 3 | BN19: 0 | BO19: 0 | BP19: 0 | BQ19: 0 | BR19: 0 | BS19: 0 | BT19: 0 | BU19: 0 | BV19: 0 | BW19: 0 | BX19: 0 | BY19: 0 | BZ19: 0 | CA19: 0 | CB19: 0 | CC19: 0 | CD19: 0 | CE19: 0 | CF19: 0 | CG19: 0 | CH19: 0 | CI19: 0 | CJ19: 0 | CK19: 0 | CL19: 0 | CM19: 0 | CN19: 0
A20: 16 | B20: Brian Camelo | C20: 158 | E20: 0 | G20: NÃO | I20: 0 | K20: NÃO | L20: 16 | M20: 20 | P20: 13 | Q20: 23 | T20: 21 | U20: 15 | Y20: 0 | AB20: 10 | AC20: 26 | AF20: 13 | AG20: 23 | AJ20: 9 | AK20: 27 | AN20: 12 | AO20: 24 | AS20: 0 | AW20: 0 | AZ20: 0 | BA20: 0 | BB20: 0 | BC20: 0 | BD20: 0 | BE20: 0 | BF20: 0 | BG20: 0 | BH20: 1 | BI20: 1 | BJ20: 0 | BK20: 1 | BL20: 2 | BM20: 0 | BN20: 0 | BO20: 1 | BP20: 0 | BQ20: 0 | BR20: 0 | BS20: 0 | BT20: 1 | BU20: 0 | BV20: 0 | BW20: 0 | BX20: 0 | BY20: 0 | BZ20: 0 | CA20: 0 | CB20: 0 | CC20: 0 | CD20: 0 | CE20: 0 | CF20: 0 | CG20: 0 | CH20: 0 | CI20: 0 | CJ20: 0 | CK20: 0 | CL20: 0 | CM20: 0 | CN20: 0
A21: 17 | B21: Leandro Leite | C21: 121 | E21: 0 | I21: 0 | L21: 12 | M21: 24 | Q21: 0 | U21: 0 | Y21: 0 | AB21: 8 | AC21: 28 | AF21: 7 | AG21: 29 | AK21: 0 | AO21: 0 | AR21: 21 | AS21: 15 | AU21: SIM | AV21: 11 | AW21: 25 | AZ21: 0 | BA21: 0 | BB21: 0 | BC21: 0 | BD21: 0 | BE21: 0 | BF21: 1 | BG21: 1 | BH21: 0 | BI21: 0 | BJ21: 1 | BK21: 1 | BL21: 0 | BM21: 0 | BN21: 0 | BO21: 0 | BP21: 0 | BQ21: 0 | BR21: 0 | BS21: 0 | BT21: 1 | BU21: 0 | BV21: 0 | BW21: 0 | BX21: 0 | BY21: 0 | BZ21: 0 | CA21: 0 | CB21: 0 | CC21: 0 | CD21: 0 | CE21: 0 | CF21: 0 | CG21: 0 | CH21: 0 | CI21: 0 | CJ21: 0 | CK21: 0 | CL21: 0 | CM21: 0 | CN21: 0
A22: 18 | B22: Anderson Oliveira | C22: 107 | E22: 0 | H22: 9 | I22: 27 | L22: 10 | M22: 26 | Q22: 0 | U22: 0 | X22: 9 | Y22: 27 | AB22: 9 | AC22: 27 | AG22: 0 | AK22: 0 | AO22: 0 | AS22: 0 | AW22: 0 | AZ22: 0 | BA22: 0 | BB22: 0 | BC22: 0 | BD22: 0 | BE22: 0 | BF22: 0 | BG22: 0 | BH22: 3 | BI22: 1 | BJ22: 0 | BK22: 0 | BL22: 0 | BM22: 0 | BN22: 0 | BO22: 0 | BP22: 0 | BQ22: 0 | BR22: 0 | BS22: 0 | BT22: 0 | BU22: 0 | BV22: 0 | BW22: 0 | BX22: 0 | BY22: 0 | BZ22: 0 | CA22: 0 | CB22: 0 | CC22: 0 | CD22: 0 | CE22: 0 | CF22: 0 | CG22: 0 | CH22: 0 | CI22: 0 | CJ22: 0 | CK22: 0 | CL22: 0 | CM22: 0 | CN22: 0
A23: 19 | B23: Aparecido Arantes | C23: 101 | D23: 12 | E23: 24 | I23: 0 | M23: 0 | Q23: 0 | T23: 8 | U23: 28 | Y23: 0 | AB23: 16 | AC23: 20 | AG23: 0 | AK23: 0 | AN23: 7 | AO23: 29 | AS23: 0 | AW23: 0 | AZ23: 0 | BA23: 0 | BB23: 0 | BC23: 0 | BD23: 0 | BE23: 0 | BF23: 1 | BG23: 1 | BH23: 0 | BI23: 0 | BJ23: 0 | BK23: 1 | BL23: 0 | BM23: 0 | BN23: 0 | BO23: 1 | BP23: 0 | BQ23: 0 | BR23: 0 | BS23: 0 | BT23: 0 | BU23: 0 | BV23: 0 | BW23: 0 | BX23: 0 | BY23: 0 | BZ23: 0 | CA23: 0 | CB23: 0 | CC23: 0 | CD23: 0 | CE23: 0 | CF23: 0 | CG23: 0 | CH23: 0 | CI23: 0 | CJ23: 0 | CK23: 0 | CL23: 0 | CM23: 0 | CN23: 0
A24: 20 | B24: Bruno Rodovalho | C24: 22 | E24: 0 | H24: 14 | I24: 22 | M24: 0 | Q24: 0 | U24: 0 | Y24: 0 | AC24: 0 | AG24: 0 | AK24: 0 | AO24: 0 | AS24: 0 | AW24: 0 | AZ24: 0 | BA24: 0 | BB24: 0 | BC24: 0 | BD24: 0 | BE24: 0 | BF24: 0 | BG24: 0 | BH24: 0 | BI24: 0 | BJ24: 0 | BK24: 0 | BL24: 0 | BM24: 1 | BN24: 0 | BO24: 0 | BP24: 0 | BQ24: 0 | BR24: 0 | BS24: 0 | BT24: 0 | BU24: 0 | BV24: 0 | BW24: 0 | BX24: 0 | BY24: 0 | BZ24: 0 | CA24: 0 | CB24: 0 | CC24: 0 | CD24: 0 | CE24: 0 | CF24: 0 | CG24: 0 | CH24: 0 | CI24: 0 | CJ24: 0 | CK24: 0 | CL24: 0 | CM24: 0 | CN24: 0
A25: 21 | B25: Agostinho Neves | C25: 0 | E25: 0 | I25: 0 | M25: 0 | Q25: 0 | U25: 0 | Y25: 0 | AC25: 0 | AG25: 0 | AK25: 0 | AO25: 0 | AS25: 0 | AW25: 0 | AZ25: 0 | BA25: 0 | BB25: 0 | BC25: 0 | BD25: 0 | BE25: 0 | BF25: 0 | BG25: 0 | BH25: 0 | BI25: 0 | BJ25: 0 | BK25: 0 | BL25: 0 | BM25: 0 | BN25: 0 | BO25: 0 | BP25: 0 | BQ25: 0 | BR25: 0 | BS25: 0 | BT25: 0 | BU25: 0 | BV25: 0 | BW25: 0 | BX25: 0 | BY25: 0 | BZ25: 0 | CA25: 0 | CB25: 0 | CC25: 0 | CD25: 0 | CE25: 0 | CF25: 0 | CG25: 0 | CH25: 0 | CI25: 0 | CJ25: 0 | CK25: 0 | CL25: 0 | CM25: 0 | CN25: 0
A26: 22 | B26: Leonardo Sousa | C26: 0 | E26: 0 | I26: 0 | M26: 0 | Q26: 0 | U26: 0 | Y26: 0 | AC26: 0 | AG26: 0 | AK26: 0 | AO26: 0 | AS26: 0 | AW26: 0 | AZ26: 0 | BA26: 0 | BB26: 0 | BC26: 0 | BD26: 0 | BE26: 0 | BF26: 0 | BG26: 0 | BH26: 0 | BI26: 0 | BJ26: 0 | BK26: 0 | BL26: 0 | BM26: 0 | BN26: 0 | BO26: 0 | BP26: 0 | BQ26: 0 | BR26: 0 | BS26: 0 | BT26: 0 | BU26: 0 | BV26: 0 | BW26: 0 | BX26: 0 | BY26: 0 | BZ26: 0 | CA26: 0 | CB26: 0 | CC26: 0 | CD26: 0 | CE26: 0 | CF26: 0 | CG26: 0 | CH26: 0 | CI26: 0 | CJ26: 0 | CK26: 0 | CL26: 0 | CM26: 0 | CN26: 0
A27: 23 | C27: 0 | E27: 0 | I27: 0 | M27: 0 | Q27: 0 | U27: 0 | Y27: 0 | AC27: 0 | AG27: 0 | AK27: 0 | AO27: 0 | AS27: 0 | AW27: 0 | AZ27: 0 | BA27: 0 | BB27: 0 | BC27: 0 | BD27: 0 | BE27: 0 | BF27: 0 | BG27: 0 | BH27: 0 | BI27: 0 | BJ27: 0 | BK27: 0 | BL27: 0 | BM27: 0 | BN27: 0 | BO27: 0 | BP27: 0 | BQ27: 0 | BR27: 0 | BS27: 0 | BT27: 0 | BU27: 0 | BV27: 0 | BW27: 0 | BX27: 0 | BY27: 0 | BZ27: 0 | CA27: 0 | CB27: 0 | CC27: 0 | CD27: 0 | CE27: 0 | CF27: 0 | CG27: 0 | CH27: 0 | CI27: 0 | CJ27: 0 | CK27: 0 | CL27: 0 | CM27: 0 | CN27: 0
A28: 24 | C28: 0 | E28: 0 | I28: 0 | M28: 0 | Q28: 0 | U28: 0 | Y28: 0 | AC28: 0 | AG28: 0 | AK28: 0 | AO28: 0 | AS28: 0 | AW28: 0 | AZ28: 0 | BA28: 0 | BB28: 0 | BC28: 0 | BD28: 0 | BE28: 0 | BF28: 0 | BG28: 0 | BH28: 0 | BI28: 0 | BJ28: 0 | BK28: 0 | BL28: 0 | BM28: 0 | BN28: 0 | BO28: 0 | BP28: 0 | BQ28: 0 | BR28: 0 | BS28: 0 | BT28: 0 | BU28: 0 | BV28: 0 | BW28: 0 | BX28: 0 | BY28: 0 | BZ28: 0 | CA28: 0 | CB28: 0 | CC28: 0 | CD28: 0 | CE28: 0 | CF28: 0 | CG28: 0 | CH28: 0 | CI28: 0 | CJ28: 0 | CK28: 0 | CL28: 0 | CM28: 0 | CN28: 0
A29: 25 | C29: 0 | E29: 0 | I29: 0 | M29: 0 | Q29: 0 | U29: 0 | Y29: 0 | AC29: 0 | AG29: 0 | AK29: 0 | AO29: 0 | AS29: 0 | AW29: 0 | AZ29: 0 | BA29: 0 | BB29: 0 | BC29: 0 | BD29: 0 | BE29: 0 | BF29: 0 | BG29: 0 | BH29: 0 | BI29: 0 | BJ29: 0 | BK29: 0 | BL29: 0 | BM29: 0 | BN29: 0 | BO29: 0 | BP29: 0 | BQ29: 0 | BR29: 0 | BS29: 0 | BT29: 0 | BU29: 0 | BV29: 0 | BW29: 0 | BX29: 0 | BY29: 0 | BZ29: 0 | CA29: 0 | CB29: 0 | CC29: 0 | CD29: 0 | CE29: 0 | CF29: 0 | CG29: 0 | CH29: 0 | CI29: 0 | CJ29: 0 | CK29: 0 | CL29: 0 | CM29: 0 | CN29: 0
A30: 26 | C30: 0 | E30: 0 | I30: 0 | M30: 0 | Q30: 0 | U30: 0 | Y30: 0 | AC30: 0 | AG30: 0 | AK30: 0 | AO30: 0 | AS30: 0 | AW30: 0 | AZ30: 0 | BA30: 0 | BB30: 0 | BC30: 0 | BD30: 0 | BE30: 0 | BF30: 0 | BG30: 0 | BH30: 0 | BI30: 0 | BJ30: 0 | BK30: 0 | BL30: 0 | BM30: 0 | BN30: 0 | BO30: 0 | BP30: 0 | BQ30: 0 | BR30: 0 | BS30: 0 | BT30: 0 | BU30: 0 | BV30: 0 | BW30: 0 | BX30: 0 | BY30: 0 | BZ30: 0 | CA30: 0 | CB30: 0 | CC30: 0 | CD30: 0 | CE30: 0 | CF30: 0 | CG30: 0 | CH30: 0 | CI30: 0 | CJ30: 0 | CK30: 0 | CL30: 0 | CM30: 0 | CN30: 0
A31: 27 | C31: 0 | E31: 0 | I31: 0 | M31: 0 | Q31: 0 | U31: 0 | Y31: 0 | AC31: 0 | AG31: 0 | AK31: 0 | AO31: 0 | AS31: 0 | AW31: 0 | AZ31: 0 | BA31: 0 | BB31: 0 | BC31: 0 | BD31: 0 | BE31: 0 | BF31: 0 | BG31: 0 | BH31: 0 | BI31: 0 | BJ31: 0 | BK31: 0 | BL31: 0 | BM31: 0 | BN31: 0 | BO31: 0 | BP31: 0 | BQ31: 0 | BR31: 0 | BS31: 0 | BT31: 0 | BU31: 0 | BV31: 0 | BW31: 0 | BX31: 0 | BY31: 0 | BZ31: 0 | CA31: 0 | CB31: 0 | CC31: 0 | CD31: 0 | CE31: 0 | CF31: 0 | CG31: 0 | CH31: 0 | CI31: 0 | CJ31: 0 | CK31: 0 | CL31: 0 | CM31: 0 | CN31: 0
A32: 28 | C32: 0 | E32: 0 | I32: 0 | M32: 0 | Q32: 0 | U32: 0 | Y32: 0 | AC32: 0 | AG32: 0 | AK32: 0 | AO32: 0 | AS32: 0 | AW32: 0 | AZ32: 0 | BA32: 0 | BB32: 0 | BC32: 0 | BD32: 0 | BE32: 0 | BF32: 0 | BG32: 0 | BH32: 0 | BI32: 0 | BJ32: 0 | BK32: 0 | BL32: 0 | BM32: 0 | BN32: 0 | BO32: 0 | BP32: 0 | BQ32: 0 | BR32: 0 | BS32: 0 | BT32: 0 | BU32: 0 | BV32: 0 | BW32: 0 | BX32: 0 | BY32: 0 | BZ32: 0 | CA32: 0 | CB32: 0 | CC32: 0 | CD32: 0 | CE32: 0 | CF32: 0 | CG32: 0 | CH32: 0 | CI32: 0 | CJ32: 0 | CK32: 0 | CL32: 0 | CM32: 0 | CN32: 0
A33: 29 | C33: 0 | E33: 0 | I33: 0 | M33: 0 | Q33: 0 | U33: 0 | Y33: 0 | AC33: 0 | AG33: 0 | AK33: 0 | AO33: 0 | AS33: 0 | AW33: 0 | AZ33: 0 | BA33: 0 | BB33: 0 | BC33: 0 | BD33: 0 | BE33: 0 | BF33: 0 | BG33: 0 | BH33: 0 | BI33: 0 | BJ33: 0 | BK33: 0 | BL33: 0 | BM33: 0 | BN33: 0 | BO33: 0 | BP33: 0 | BQ33: 0 | BR33: 0 | BS33: 0 | BT33: 0 | BU33: 0 | BV33: 0 | BW33: 0 | BX33: 0 | BY33: 0 | BZ33: 0 | CA33: 0 | CB33: 0 | CC33: 0 | CD33: 0 | CE33: 0 | CF33: 0 | CG33: 0 | CH33: 0 | CI33: 0 | CJ33: 0 | CK33: 0 | CL33: 0 | CM33: 0 | CN33: 0
A34: 30 | C34: 0 | E34: 0 | I34: 0 | M34: 0 | Q34: 0 | U34: 0 | Y34: 0 | AC34: 0 | AG34: 0 | AK34: 0 | AO34: 0 | AS34: 0 | AW34: 0 | AZ34: 0 | BA34: 0 | BB34: 0 | BC34: 0 | BD34: 0 | BE34: 0 | BF34: 0 | BG34: 0 | BH34: 0 | BI34: 0 | BJ34: 0 | BK34: 0 | BL34: 0 | BM34: 0 | BN34: 0 | BO34: 0 | BP34: 0 | BQ34: 0 | BR34: 0 | BS34: 0 | BT34: 0 | BU34: 0 | BV34: 0 | BW34: 0 | BX34: 0 | BY34: 0 | BZ34: 0 | CA34: 0 | CB34: 0 | CC34: 0 | CD34: 0 | CE34: 0 | CF34: 0 | CG34: 0 | CH34: 0 | CI34: 0 | CJ34: 0 | CK34: 0 | CL34: 0 | CM34: 0 | CN34: 0
A35: 31 | C35: 0 | E35: 0 | I35: 0 | M35: 0 | Q35: 0 | U35: 0 | Y35: 0 | AC35: 0 | AG35: 0 | AK35: 0 | AO35: 0 | AS35: 0 | AW35: 0 | AZ35: 0 | BA35: 0 | BB35: 0 | BC35: 0 | BD35: 0 | BE35: 0 | BF35: 0 | BG35: 0 | BH35: 0 | BI35: 0 | BJ35: 0 | BK35: 0 | BL35: 0 | BM35: 0 | BN35: 0 | BO35: 0 | BP35: 0 | BQ35: 0 | BR35: 0 | BS35: 0 | BT35: 0 | BU35: 0 | BV35: 0 | BW35: 0 | BX35: 0 | BY35: 0 | BZ35: 0 | CA35: 0 | CB35: 0 | CC35: 0 | CD35: 0 | CE35: 0 | CF35: 0 | CG35: 0 | CH35: 0 | CI35: 0 | CJ35: 0 | CK35: 0 | CL35: 0 | CM35: 0 | CN35: 0
A36: 32 | C36: 0 | E36: 0 | I36: 0 | M36: 0 | Q36: 0 | U36: 0 | Y36: 0 | AC36: 0 | AG36: 0 | AK36: 0 | AO36: 0 | AS36: 0 | AW36: 0 | AZ36: 0 | BA36: 0 | BB36: 0 | BC36: 0 | BD36: 0 | BE36: 0 | BF36: 0 | BG36: 0 | BH36: 0 | BI36: 0 | BJ36: 0 | BK36: 0 | BL36: 0 | BM36: 0 | BN36: 0 | BO36: 0 | BP36: 0 | BQ36: 0 | BR36: 0 | BS36: 0 | BT36: 0 | BU36: 0 | BV36: 0 | BW36: 0 | BX36: 0 | BY36: 0 | BZ36: 0 | CA36: 0 | CB36: 0 | CC36: 0 | CD36: 0 | CE36: 0 | CF36: 0 | CG36: 0 | CH36: 0 | CI36: 0 | CJ36: 0 | CK36: 0 | CL36: 0 | CM36: 0 | CN36: 0
A37: 33 | C37: 0 | E37: 0 | I37: 0 | M37: 0 | Q37: 0 | U37: 0 | Y37: 0 | AC37: 0 | AG37: 0 | AK37: 0 | AO37: 0 | AS37: 0 | AW37: 0 | AZ37: 0 | BA37: 0 | BB37: 0 | BC37: 0 | BD37: 0 | BE37: 0 | BF37: 0 | BG37: 0 | BH37: 0 | BI37: 0 | BJ37: 0 | BK37: 0 | BL37: 0 | BM37: 0 | BN37: 0 | BO37: 0 | BP37: 0 | BQ37: 0 | BR37: 0 | BS37: 0 | BT37: 0 | BU37: 0 | BV37: 0 | BW37: 0 | BX37: 0 | BY37: 0 | BZ37: 0 | CA37: 0 | CB37: 0 | CC37: 0 | CD37: 0 | CE37: 0 | CF37: 0 | CG37: 0 | CH37: 0 | CI37: 0 | CJ37: 0 | CK37: 0 | CL37: 0 | CM37: 0 | CN37: 0
A38: 34 | C38: 0 | E38: 0 | I38: 0 | M38: 0 | Q38: 0 | U38: 0 | Y38: 0 | AC38: 0 | AG38: 0 | AK38: 0 | AO38: 0 | AS38: 0 | AW38: 0 | AZ38: 0 | BA38: 0 | BB38: 0 | BC38: 0 | BD38: 0 | BE38: 0 | BF38: 0 | BG38: 0 | BH38: 0 | BI38: 0 | BJ38: 0 | BK38: 0 | BL38: 0 | BM38: 0 | BN38: 0 | BO38: 0 | BP38: 0 | BQ38: 0 | BR38: 0 | BS38: 0 | BT38: 0 | BU38: 0 | BV38: 0 | BW38: 0 | BX38: 0 | BY38: 0 | BZ38: 0 | CA38: 0 | CB38: 0 | CC38: 0 | CD38: 0 | CE38: 0 | CF38: 0 | CG38: 0 | CH38: 0 | CI38: 0 | CJ38: 0 | CK38: 0 | CL38: 0 | CM38: 0 | CN38: 0
A39: 35 | C39: 0 | E39: 0 | I39: 0 | M39: 0 | Q39: 0 | U39: 0 | Y39: 0 | AC39: 0 | AG39: 0 | AK39: 0 | AO39: 0 | AS39: 0 | AW39: 0 | AZ39: 0 | BA39: 0 | BB39: 0 | BC39: 0 | BD39: 0 | BE39: 0 | BF39: 0 | BG39: 0 | BH39: 0 | BI39: 0 | BJ39: 0 | BK39: 0 | BL39: 0 | BM39: 0 | BN39: 0 | BO39: 0 | BP39: 0 | BQ39: 0 | BR39: 0 | BS39: 0 | BT39: 0 | BU39: 0 | BV39: 0 | BW39: 0 | BX39: 0 | BY39: 0 | BZ39: 0 | CA39: 0 | CB39: 0 | CC39: 0 | CD39: 0 | CE39: 0 | CF39: 0 | CG39: 0 | CH39: 0 | CI39: 0 | CJ39: 0 | CK39: 0 | CL39: 0 | CM39: 0 | CN39: 0
A40: 36 | C40: 0 | E40: 0 | I40: 0 | M40: 0 | Q40: 0 | U40: 0 | Y40: 0 | AC40: 0 | AG40: 0 | AK40: 0 | AO40: 0 | AS40: 0 | AW40: 0 | AZ40: 0 | BA40: 0 | BB40: 0 | BC40: 0 | BD40: 0 | BE40: 0 | BF40: 0 | BG40: 0 | BH40: 0 | BI40: 0 | BJ40: 0 | BK40: 0 | BL40: 0 | BM40: 0 | BN40: 0 | BO40: 0 | BP40: 0 | BQ40: 0 | BR40: 0 | BS40: 0 | BT40: 0 | BU40: 0 | BV40: 0 | BW40: 0 | BX40: 0 | BY40: 0 | BZ40: 0 | CA40: 0 | CB40: 0 | CC40: 0 | CD40: 0 | CE40: 0 | CF40: 0 | CG40: 0 | CH40: 0 | CI40: 0 | CJ40: 0 | CK40: 0 | CL40: 0 | CM40: 0 | CN40: 0
A41: 37 | C41: 0 | E41: 0 | I41: 0 | M41: 0 | Q41: 0 | U41: 0 | Y41: 0 | AC41: 0 | AG41: 0 | AK41: 0 | AO41: 0 | AS41: 0 | AW41: 0 | AZ41: 0 | BA41: 0 | BB41: 0 | BC41: 0 | BD41: 0 | BE41: 0 | BF41: 0 | BG41: 0 | BH41: 0 | BI41: 0 | BJ41: 0 | BK41: 0 | BL41: 0 | BM41: 0 | BN41: 0 | BO41: 0 | BP41: 0 | BQ41: 0 | BR41: 0 | BS41: 0 | BT41: 0 | BU41: 0 | BV41: 0 | BW41: 0 | BX41: 0 | BY41: 0 | BZ41: 0 | CA41: 0 | CB41: 0 | CC41: 0 | CD41: 0 | CE41: 0 | CF41: 0 | CG41: 0 | CH41: 0 | CI41: 0 | CJ41: 0 | CK41: 0 | CL41: 0 | CM41: 0 | CN41: 0
A42: 38 | C42: 0 | E42: 0 | I42: 0 | M42: 0 | Q42: 0 | U42: 0 | Y42: 0 | AC42: 0 | AG42: 0 | AK42: 0 | AO42: 0 | AS42: 0 | AW42: 0 | AZ42: 0 | BA42: 0 | BB42: 0 | BC42: 0 | BD42: 0 | BE42: 0 | BF42: 0 | BG42: 0 | BH42: 0 | BI42: 0 | BJ42: 0 | BK42: 0 | BL42: 0 | BM42: 0 | BN42: 0 | BO42: 0 | BP42: 0 | BQ42: 0 | BR42: 0 | BS42: 0 | BT42: 0 | BU42: 0 | BV42: 0 | BW42: 0 | BX42: 0 | BY42: 0 | BZ42: 0 | CA42: 0 | CB42: 0 | CC42: 0 | CD42: 0 | CE42: 0 | CF42: 0 | CG42: 0 | CH42: 0 | CI42: 0 | CJ42: 0 | CK42: 0 | CL42: 0 | CM42: 0 | CN42: 0
A43: 39 | C43: 0 | E43: 0 | I43: 0 | M43: 0 | Q43: 0 | U43: 0 | Y43: 0 | AC43: 0 | AG43: 0 | AK43: 0 | AO43: 0 | AS43: 0 | AW43: 0 | AZ43: 0 | BA43: 0 | BB43: 0 | BC43: 0 | BD43: 0 | BE43: 0 | BF43: 0 | BG43: 0 | BH43: 0 | BI43: 0 | BJ43: 0 | BK43: 0 | BL43: 0 | BM43: 0 | BN43: 0 | BO43: 0 | BP43: 0 | BQ43: 0 | BR43: 0 | BS43: 0 | BT43: 0 | BU43: 0 | BV43: 0 | BW43: 0 | BX43: 0 | BY43: 0 | BZ43: 0 | CA43: 0 | CB43: 0 | CC43: 0 | CD43: 0 | CE43: 0 | CF43: 0 | CG43: 0 | CH43: 0 | CI43: 0 | CJ43: 0 | CK43: 0 | CL43: 0 | CM43: 0 | CN43: 0
A44: 40 | C44: 0 | E44: 0 | I44: 0 | M44: 0 | Q44: 0 | U44: 0 | Y44: 0 | AC44: 0 | AG44: 0 | AK44: 0 | AO44: 0 | AS44: 0 | AW44: 0 | AZ44: 0 | BA44: 0 | BB44: 0 | BC44: 0 | BD44: 0 | BE44: 0 | BF44: 0 | BG44: 0 | BH44: 0 | BI44: 0 | BJ44: 0 | BK44: 0 | BL44: 0 | BM44: 0 | BN44: 0 | BO44: 0 | BP44: 0 | BQ44: 0 | BR44: 0 | BS44: 0 | BT44: 0 | BU44: 0 | BV44: 0 | BW44: 0 | BX44: 0 | BY44: 0 | BZ44: 0 | CA44: 0 | CB44: 0 | CC44: 0 | CD44: 0 | CE44: 0 | CF44: 0 | CG44: 0 | CH44: 0 | CI44: 0 | CJ44: 0 | CK44: 0 | CL44: 0 | CM44: 0 | CN44: 0
A45: 41 | C45: 0 | E45: 0 | I45: 0 | M45: 0 | Q45: 0 | U45: 0 | Y45: 0 | AC45: 0 | AG45: 0 | AK45: 0 | AO45: 0 | AS45: 0 | AW45: 0 | AZ45: 0 | BA45: 0 | BB45: 0 | BC45: 0 | BD45: 0 | BE45: 0 | BF45: 0 | BG45: 0 | BH45: 0 | BI45: 0 | BJ45: 0 | BK45: 0 | BL45: 0 | BM45: 0 | BN45: 0 | BO45: 0 | BP45: 0 | BQ45: 0 | BR45: 0 | BS45: 0 | BT45: 0 | BU45: 0 | BV45: 0 | BW45: 0 | BX45: 0 | BY45: 0 | BZ45: 0 | CA45: 0 | CB45: 0 | CC45: 0 | CD45: 0 | CE45: 0 | CF45: 0 | CG45: 0 | CH45: 0 | CI45: 0 | CJ45: 0 | CK45: 0 | CL45: 0 | CM45: 0 | CN45: 0
A46: 42 | C46: 0 | E46: 0 | I46: 0 | M46: 0 | Q46: 0 | U46: 0 | Y46: 0 | AC46: 0 | AG46: 0 | AK46: 0 | AO46: 0 | AS46: 0 | AW46: 0 | AZ46: 0 | BA46: 0 | BB46: 0 | BC46: 0 | BD46: 0 | BE46: 0 | BF46: 0 | BG46: 0 | BH46: 0 | BI46: 0 | BJ46: 0 | BK46: 0 | BL46: 0 | BM46: 0 | BN46: 0 | BO46: 0 | BP46: 0 | BQ46: 0 | BR46: 0 | BS46: 0 | BT46: 0 | BU46: 0 | BV46: 0 | BW46: 0 | BX46: 0 | BY46: 0 | BZ46: 0 | CA46: 0 | CB46: 0 | CC46: 0 | CD46: 0 | CE46: 0 | CF46: 0 | CG46: 0 | CH46: 0 | CI46: 0 | CJ46: 0 | CK46: 0 | CL46: 0 | CM46: 0 | CN46: 0
A47: 43 | C47: 0 | E47: 0 | I47: 0 | M47: 0 | Q47: 0 | U47: 0 | Y47: 0 | AC47: 0 | AG47: 0 | AK47: 0 | AO47: 0 | AS47: 0 | AW47: 0 | AZ47: 0 | BA47: 0 | BB47: 0 | BC47: 0 | BD47: 0 | BE47: 0 | BF47: 0 | BG47: 0 | BH47: 0 | BI47: 0 | BJ47: 0 | BK47: 0 | BL47: 0 | BM47: 0 | BN47: 0 | BO47: 0 | BP47: 0 | BQ47: 0 | BR47: 0 | BS47: 0 | BT47: 0 | BU47: 0 | BV47: 0 | BW47: 0 | BX47: 0 | BY47: 0 | BZ47: 0 | CA47: 0 | CB47: 0 | CC47: 0 | CD47: 0 | CE47: 0 | CF47: 0 | CG47: 0 | CH47: 0 | CI47: 0 | CJ47: 0 | CK47: 0 | CL47: 0 | CM47: 0 | CN47: 0
A48: 44 | C48: 0 | E48: 0 | I48: 0 | M48: 0 | Q48: 0 | U48: 0 | Y48: 0 | AC48: 0 | AG48: 0 | AK48: 0 | AO48: 0 | AS48: 0 | AW48: 0 | AZ48: 0 | BA48: 0 | BB48: 0 | BC48: 0 | BD48: 0 | BE48: 0 | BF48: 0 | BG48: 0 | BH48: 0 | BI48: 0 | BJ48: 0 | BK48: 0 | BL48: 0 | BM48: 0 | BN48: 0 | BO48: 0 | BP48: 0 | BQ48: 0 | BR48: 0 | BS48: 0 | BT48: 0 | BU48: 0 | BV48: 0 | BW48: 0 | BX48: 0 | BY48: 0 | BZ48: 0 | CA48: 0 | CB48: 0 | CC48: 0 | CD48: 0 | CE48: 0 | CF48: 0 | CG48: 0 | CH48: 0 | CI48: 0 | CJ48: 0 | CK48: 0 | CL48: 0 | CM48: 0 | CN48: 0
A49: 45 | C49: 0 | E49: 0 | I49: 0 | M49: 0 | Q49: 0 | U49: 0 | Y49: 0 | AC49: 0 | AG49: 0 | AK49: 0 | AO49: 0 | AS49: 0 | AW49: 0 | AZ49: 0 | BA49: 0 | BB49: 0 | BC49: 0 | BD49: 0 | BE49: 0 | BF49: 0 | BG49: 0 | BH49: 0 | BI49: 0 | BJ49: 0 | BK49: 0 | BL49: 0 | BM49: 0 | BN49: 0 | BO49: 0 | BP49: 0 | BQ49: 0 | BR49: 0 | BS49: 0 | BT49: 0 | BU49: 0 | BV49: 0 | BW49: 0 | BX49: 0 | BY49: 0 | BZ49: 0 | CA49: 0 | CB49: 0 | CC49: 0 | CD49: 0 | CE49: 0 | CF49: 0 | CG49: 0 | CH49: 0 | CI49: 0 | CJ49: 0 | CK49: 0 | CL49: 0 | CM49: 0 | CN49: 0

Sheet Class. elimin. 2 piores res
A1: 2024 | E1: OK | I1: OK | M1: OK | Q1: OK | U1: OK | Y1: OK | AC1: OK | AG1: OK | AK1: OK | AO1: OK | AS1: OK | AW1: OK
D2: 01 ETAPA | H2: 02 ETAPA | L2: 03 ETAPA | P2: 04 ETAPA | T2: 05 ETAPA | X2: 06 ETAPA | AB2: 07 ETAPA | AF2: 08 ETAPA | AJ2: 09 ETAPA | AN2: 10 ETAPA | AR2: 11 ETAPA | AV2: 12 ETAPA
D3: 2024-01-18 | H3: 2024-02-01 | L3: 2024-03-14 | P3: 2024-04-11 | T3: 2024-05-23 | X3: 2024-06-06 | AB3: 2024-07-25 | AF3: 2024-08-01 | AJ3: 2024-09-05 | AN3: 2024-10-31 | AR3: 2024-11-14 | AV3: 2024-12-05
B4: Nome do (a) Piloto (a) | C4: Pontuação Geral | D4: Posição | E4: Pontos | F4: Bônus | G4: Penalidade | H4: Posição | I4: Pontos | J4: Bônus | K4: Penalidade | L4: Posição | M4: Pontos | N4: Bônus | O4: Penalidade | P4: Posição | Q4: Pontos | R4: Bônus | S4: Penalidade | T4: Posição | U4: Pontos | V4: Bônus | W4: Penalidade | X4: Posição | Y4: Pontos | Z4: Bônus | AA4: Penalidade | AB4: Posição | AC4: Pontos | AD4: Bônus | AE4: Penalidade | AF4: Posição | AG4: Pontos | AH4: Bônus | AI4: Penalidade | AJ4: Posição | AK4: Pontos | AL4: Bônus | AM4: Penalidade | AN4: Posição | AO4: Pontos | AP4: Bônus | AQ4: Penalidade | AR4: Posição | AS4: Pontos | AT4: Bônus | AU4: Penalidade | AV4: Posição | AW4: Pontos | AX4: Bônus | AY4: Penalidade | AZ4: 1º LUGAR | BA4: 2º LUGAR | BB4: 3º LUGAR | BC4: 4º LUGAR | BD4: 5º LUGAR | BE4: 6º LUGAR | BF4: 7º LUGAR | BG4: 8º LUGAR | BH4: 9º LUGAR | BI4: 10º LUGAR | BJ4: 11º LUGAR | BK4: 12º LUGAR | BL4: 13º LUGAR | BM4: 14º LUGAR | BN4: 15º LUGAR | BO4: 16º LUGAR | BP4: 17º LUGAR | BQ4: 18º LUGAR | BR4: 19º LUGAR | BS4: 20º LUGAR | BT4: 21º LUGAR | BU4: 22º LUGAR | BV4: 23º LUGAR | BW4: 24º LUGAR | BX4: 25º LUGAR | BY4: 26º LUGAR | BZ4: 27º LUGAR | CA4: 28º LUGAR | CB4: 29º LUGAR | CC4: 30º LUGAR | CD4: 31º LUGAR | CE4: 32º LUGAR | CF4: 33º LUGAR | CG4: 34º LUGAR | CH4: 35º LUGAR | CI4: 36º LUGAR | CJ4: 37º LUGAR | CK4: 38º LUGAR | CL4: 39º LUGAR | CM4: 40º LUGAR | CN4: 41º LUGAR
A5: 1 | B5: Alexandre Melillo | C5: 378 | D5: 7 | E5: 29* | H5: 3 | I5: 37 | L5: 1 | M5: 45 | P5: 3 | Q5: 37 | T5: 2 | U5: 40 | X5: 1 | Y5: 45 | Z5: 1 | AB5: 11 | AC5: 25* | AF5: 3 | AG5: 37 | AJ5: 6 | AK5: 31 | AN5: 3 | AO5: 37 | AR5: 4 | AS5: 35 | AV5: 5 | AW5: 33 | AZ5: 2 | BA5: 1 | BB5: 4 | BC5: 1 | BD5: 1 | BE5: 1 | BF5: 1 | BG5: 0 | BH5: 0 | BI5: 0 | BJ5: 1 | BK5: 0 | BL5: 0 | BM5: 0 | BN5: 0 | BO5: 0 | BP5: 0 | BQ5: 0 | BR5: 0 | BS5: 0 | BT5: 0 | BU5: 0 | BV5: 0 | BW5: 0 | BX5: 0 | BY5: 0 | BZ5: 0 | CA5: 0 | CB5: 0 | CC5: 0 | CD5: 0 | CE5: 0 | CF5: 0 | CG5: 0 | CH5: 0 | CI5: 0 | CJ5: 0 | CK5: 0 | CL5: 0 | CM5: 0 | CN5: 0
A6: 2 | B6: Arthur Santiago | C6: 369 | E6: 0* | I6: 0* | L6: 4 | M6: 35 | P6: 7 | Q6: 29 | T6: 3 | U6: 37 | X6: 2 | Y6: 40 | AB6: 15 | AC6: 21 | AF6: 2 | AG6: 40 | AJ6: 3 | AK6: 37 | AN6: 2 | AO6: 40 | AR6: 1 | AS6: 45 | AV6: 1 | AW6: 45 | AZ6: 2 | BA6: 3 | BB6: 2 | BC6: 1 | BD6: 0 | BE6: 0 | BF6: 1 | BG6: 0 | BH6: 0 | BI6: 0 | BJ6: 0 | BK6: 0 | BL6: 0 | BM6: 0 | BN6: 1 | BO6: 0 | BP6: 0 | BQ6: 0 | BR6: 0 | BS6: 0 | BT6: 0 | BU6: 0 | BV6: 0 | BW6: 0 | BX6: 0 | BY6: 0 | BZ6: 0 | CA6: 0 | CB6: 0 | CC6: 0 | CD6: 0 | CE6: 0 | CF6: 0 | CG6: 0 | CH6: 0 | CI6: 0 | CJ6: 0 | CK6: 0 | CL6: 0 | CM6: 0 | CN6: 0
A7: 3 | B7: Guilherme Rocha | C7: 344 | D7: 4 | E7: 35 | H7: 7 | I7: 29 | L7: 6 | M7: 31 | P7: 1 | Q7: 45 | R7: 1 | T7: 5 | U7: 33 | X7: 5 | Y7: 33 | AC7: 0* | AF7: 4 | AG7: 35 | AH7: 1 | AJ7: 11 | AK7: 25 | AN7: 4 | AO7: 35 | AP7: 1 | AR7: 2 | AS7: 40 | AW7: 0* | AZ7: 1 | BA7: 1 | BB7: 0 | BC7: 3 | BD7: 2 | BE7: 1 | BF7: 1 | BG7: 0 | BH7: 0 | BI7: 0 | BJ7: 1 | BK7: 0 | BL7: 0 | BM7: 0 | BN7: 0 | BO7: 0 | BP7: 0 | BQ7: 0 | BR7: 0 | BS7: 0 | BT7: 0 | BU7: 0 | BV7: 0 | BW7: 0 | BX7: 0 | BY7: 0 | BZ7: 0 | CA7: 0 | CB7: 0 | CC7: 0 | CD7: 0 | CE7: 0 | CF7: 0 | CG7: 0 | CH7: 0 | CI7: 0 | CJ7: 0 | CK7: 0 | CL7: 0 | CM7: 0 | CN7: 0
A8: 4 | B8: Wilson Cristofani | C8: 329 | D8: 1 | E8: 45 | F8: 1 | H8: 2 | I8: 40 | J8: 1 | L8: 17 | M8: 19* | P8: 2 | Q8: 40 | T8: 23 | U8: 13 | W8: SIM | X8: 8 | Y8: 28 | AB8: 1 | AC8: 45 | AF8: 1 | AG8: 45 | AJ8: 21 | AK8: 15 | AL8: 1 | AM8: SIM | AN8: 9 | AO8: 27 | AS8: 0* | AV8: 8 | AW8: 28 | AZ8: 3 | BA8: 2 | BB8: 0 | BC8: 0 | BD8: 0 | BE8: 0 | BF8: 0 | BG8: 2 | BH8: 1 | BI8: 0 | BJ8: 0 | BK8: 0 | BL8: 0 | BM8: 0 | BN8: 0 | BO8: 0 | BP8: 1 | BQ8: 0 | BR8: 0 | BS8: 0 | BT8: 1 | BU8: 0 | BV8: 1 | BW8: 0 | BX8: 0 | BY8: 0 | BZ8: 0 | CA8: 0 | CB8: 0 | CC8: 0 | CD8: 0 | CE8: 0 | CF8: 0 | CG8: 0 | CH8: 0 | CI8: 0 | CJ8: 0 | CK8: 0 | CL8: 0 | CM8: 0 | CN8: 0
A9: 5 | B9: Matheus Dias | C9: 328 | D9: 5 | E9: 33 | I9: 0* | L9: 3 | M9: 37 | P9: 5 | Q9: 33 | T9: 1 | U9: 45 | V9: 1 | X9: 3 | Y9: 37 | AB9: 2 | AC9: 40 | AF9: 5 | AG9: 33 | AJ9: 16 | AK9: 20 | AM9: SIM | AN9: 16 | AO9: 20 | AS9: 0* | AV9: 7 | AW9: 29 | AZ9: 1 | BA9: 1 | BB9: 2 | BC9: 0 | BD9: 3 | BE9: 0 | BF9: 1 | BG9: 0 | BH9: 0 | BI9: 0 | BJ9: 0 | BK9: 0 | BL9: 0 | BM9: 0 | BN9: 0 | BO9: 2 | BP9: 0 | BQ9: 0 | BR9: 0 | BS9: 0 | BT9: 0 | BU9: 0 | BV9: 0 | BW9: 0 | BX9: 0 | BY9: 0 | BZ9: 0 | CA9: 0 | CB9: 0 | CC9: 0 | CD9: 0 | CE9: 0 | CF9: 0 | CG9: 0 | CH9: 0 | CI9: 0 | CJ9: 0 | CK9: 0 | CL9: 0 | CM9: 0 | CN9: 0
A10: 6 | B10: Vitor Diniz | C10: 326 | D10: 9 | E10: 27 | H10: 1 | I10: 45 | L10: 13 | M10: 23* | P10: 10 | Q10: 26* | T10: 10 | U10: 26 | X10: 6 | Y10: 31 | AB10: 7 | AC10: 29 | AF10: 6 | AG10: 31 | AJ10: 1 | AK10: 45 | AN10: 8 | AO10: 28 | AR10: 5 | AS10: 33 | AV10: 6 | AW10: 31 | AZ10: 2 | BA10: 0 | BB10: 0 | BC10: 0 | BD10: 1 | BE10: 3 | BF10: 1 | BG10: 1 | BH10: 1 | BI10: 2 | BJ10: 0 | BK10: 0 | BL10: 1 | BM10: 0 | BN10: 0 | BO10: 0 | BP10: 0 | BQ10: 0 | BR10: 0 | BS10: 0 | BT10: 0 | BU10: 0 | BV10: 0 | BW10: 0 | BX10: 0 | BY10: 0 | BZ10: 0 | CA10: 0 | CB10: 0 | CC10: 0 | CD10: 0 | CE10: 0 | CF10: 0 | CG10: 0 | CH10: 0 | CI10: 0 | CJ10: 0 | CK10: 0 | CL10: 0 | CM10: 0 | CN10: 0
A11: 7 | B11: Luciano Brandão | C11: 319 | D11: 6 | E11: 31 | H11: 5 | I11: 33 | L11: 7 | M11: 29 | P11: 4 | Q11: 35 | T11: 4 | U11: 35 | X11: 7 | Y11: 29 | AC11: 0* | AF11: 10 | AG11: 26 | AJ11: 7 | AK11: 29 | AN11: 13 | AO11: 23* | AR11: 3 | AS11: 37 | AV11: 4 | AW11: 35 | AZ11: 0 | BA11: 0 | BB11: 1 | BC11: 3 | BD11: 1 | BE11: 1 | BF11: 3 | BG11: 0 | BH11: 0 | BI11: 1 | BJ11: 0 | BK11: 0 | BL11: 1 | BM11: 0 | BN11: 0 | BO11: 0 | BP11: 0 | BQ11: 0 | BR11: 0 | BS11: 0 | BT11: 0 | BU11: 0 | BV11: 0 | BW11: 0 | BX11: 0 | BY11: 0 | BZ11: 0 | CA11: 0 | CB11: 0 | CC11: 0 | CD11: 0 | CE11: 0 | CF11: 0 | CG11: 0 | CH11: 0 | CI11: 0 | CJ11: 0 | CK11: 0 | CL11: 0 | CM11: 0 | CN11: 0
A12: 8 | B12: Lúcio Chequer | C12: 310 | E12: 0* | H12: 4 | I12: 35 | L12: 9 | M12: 27 | Q12: 0* | T12: 7 | U12: 29 | X12: 4 | Y12: 35 | AB12: 3 | AC12: 37 | AD12: 1 | AF12: 14 | AG12: 22 | AJ12: 2 | AK12: 40 | AN12: 6 | AO12: 31 | AR12: 7 | AS12: 29 | AV12: 12 | AW12: 24 | AZ12: 0 | BA12: 1 | BB12: 1 | BC12: 2 | BD12: 0 | BE12: 1 | BF12: 2 | BG12: 0 | BH12: 1 | BI12: 0 | BJ12: 0 | BK12: 1 | BL12: 0 | BM12: 1 | BN12: 0 | BO12: 0 | BP12: 0 | BQ12: 0 | BR12: 0 | BS12: 0 | BT12: 0 | BU12: 0 | BV12: 0 | BW12: 0 | BX12: 0 | BY12: 0 | BZ12: 0 | CA12: 0 | CB12: 0 | CC12: 0 | CD12: 0 | CE12: 0 | CF12: 0 | CG12: 0 | CH12: 0 | CI12: 0 | CJ12: 0 | CK12: 0 | CL12: 0 | CM12: 0 | CN12: 0
A13: 9 | B13: Mathias Almeida | C13: 301 | D13: 3 | E13: 37 | H13: 8 | I13: 28 | L13: 2 | M13: 40 | N13: 1 | P13: 8 | Q13: 28 | T13: 0 | U13: 0 | W13: SIM | X13: 12 | Y13: 24* | AB13: 4 | AC13: 35 | AF13: 11 | AG13: 25 | AJ13: 4 | AK13: 35 | AN13: 1 | AO13: 45 | AS13: 0* | AV13: 9 | AW13: 27 | AZ13: 1 | BA13: 1 | BB13: 1 | BC13: 2 | BD13: 0 | BE13: 0 | BF13: 0 | BG13: 2 | BH13: 1 | BI13: 0 | BJ13: 1 | BK13: 1 | BL13: 0 | BM13: 0 | BN13: 0 | BO13: 0 | BP13: 0 | BQ13: 0 | BR13: 0 | BS13: 0 | BT13: 0 | BU13: 0 | BV13: 0 | BW13: 0 | BX13: 0 | BY13: 0 | BZ13: 0 | CA13: 0 | CB13: 0 | CC13: 0 | CD13: 0 | CE13: 0 | CF13: 0 | CG13: 0 | CH13: 0 | CI13: 0 | CJ13: 0 | CK13: 0 | CL13: 0 | CM13: 0 | CN13: 0
A14: 10 | B14: Uilian Albino | C14: 259 | D14: 10 | E14: 26 | H14: 6 | I14: 31 | L14: 8 | M14: 28 | P14: 14 | Q14: 22 | T14: 20 | U14: 16 | W14: SIM | X14: 11 | Y14: 25 | AC14: 0* | AG14: 0* | AJ14: 8 | AK14: 28 | AN14: 11 | AO14: 25 | AR14: 6 | AS14: 31 | AT14: 1 | AV14: 10 | AW14: 26 | AZ14: 0 | BA14: 0 | BB14: 0 | BC14: 0 | BD14: 0 | BE14: 2 | BF14: 0 | BG14: 2 | BH14: 0 | BI14: 2 | BJ14: 2 | BK14: 0 | BL14: 0 | BM14: 1 | BN14: 0 | BO14: 0 | BP14: 0 | BQ14: 0 | BR14: 0 | BS14: 1 | BT14: 0 | BU14: 0 | BV14: 0 | BW14: 0 | BX14: 0 | BY14: 0 | BZ14: 0 | CA14: 0 | CB14: 0 | CC14: 0 | CD14: 0 | CE14: 0 | CF14: 0 | CG14: 0 | CH14: 0 | CI14: 0 | CJ14: 0 | CK14: 0 | CL14: 0 | CM14: 0 | CN14: 0
A15: 11 | B15: Hélio Pedrolli | C15: 251 | E15: 0* | H15: 13 | I15: 23 | M15: 0* | P15: 6 | Q15: 31 | T15: 6 | U15: 31 | Y15: 0 | AB15: 6 | AC15: 31 | AF15: 8 | AG15: 28 | AJ15: 5 | AK15: 33 | AN15: 5 | AO15: 33 | AS15: 0 | AV15: 2 | AW15: 40 | AX15: 1 | AZ15: 0 | BA15: 1 | BB15: 0 | BC15: 0 | BD15: 2 | BE15: 3 | BF15: 0 | BG15: 1 | BH15: 0 | BI15: 0 | BJ15: 0 | BK15: 0 | BL15: 1 | BM15: 0 | BN15: 0 | BO15: 0 | BP15: 0 | BQ15: 0 | BR15: 0 | BS15: 0 | BT15: 0 | BU15: 0 | BV15: 0 | BW15: 0 | BX15: 0 | BY15: 0 | BZ15: 0 | CA15: 0 | CB15: 0 | CC15: 0 | CD15: 0 | CE15: 0 | CF15: 0 | CG15: 0 | CH15: 0 | CI15: 0 | CJ15: 0 | CK15: 0 | CL15: 0 | CM15: 0 | CN15: 0
A16: 12 | B16: Gladson Torres | C16: 248 | D16: 8 | E16: 28 | H16: 10 | I16: 26 | L16: 15 | M16: 21 | P16: 9 | Q16: 27 | U16: 0* | X16: 13 | Y16: 23 | AB16: 13 | AC16: 23 | AF16: 12 | AG16: 24 | AJ16: 10 | AK16: 26 | AN16: 14 | AO16: 22 | AR16: 8 | AS16: 28 | AW16: 0* | AZ16: 0 | BA16: 0 | BB16: 0 | BC16: 0 | BD16: 0 | BE16: 0 | BF16: 0 | BG16: 2 | BH16: 1 | BI16: 2 | BJ16: 0 | BK16: 1 | BL16: 2 | BM16: 1 | BN16: 1 | BO16: 0 | BP16: 0 | BQ16: 0 | BR16: 0 | BS16: 0 | BT16: 0 | BU16: 0 | BV16: 0 | BW16: 0 | BX16: 0 | BY16: 0 | BZ16: 0 | CA16: 0 | CB16: 0 | CC16: 0 | CD16: 0 | CE16: 0 | CF16: 0 | CG16: 0 | CH16: 0 | CI16: 0 | CJ16: 0 | CK16: 0 | CL16: 0 | CM16: 0 | CN16: 0
A17: 13 | B17: Breno Motta | C17: 240 | D17: 2 | E17: 40 | H17: 11 | I17: 25 | L17: 5 | M17: 33 | Q17: 0* | U17: 0* | Y17: 0 | AB17: 5 | AC17: 33 | AG17: 0 | AJ17: 12 | AK17: 24 | AN17: 15 | AO17: 21 | AR17: 9 | AS17: 27 | AV17: 3 | AW17: 37 | AZ17: 0 | BA17: 1 | BB17: 1 | BC17: 0 | BD17: 2 | BE17: 0 | BF17: 0 | BG17: 0 | BH17: 1 | BI17: 0 | BJ17: 1 | BK17: 1 | BL17: 0 | BM17: 0 | BN17: 1 | BO17: 0 | BP17: 0 | BQ17: 0 | BR17: 0 | BS17: 0 | BT17: 0 | BU17: 0 | BV17: 0 | BW17: 0 | BX17: 0 | BY17: 0 | BZ17: 0 | CA17: 0 | CB17: 0 | CC17: 0 | CD17: 0 | CE17: 0 | CF17: 0 | CG17: 0 | CH17: 0 | CI17: 0 | CJ17: 0 | CK17: 0 | CL17: 0 | CM17: 0 | CN17: 0
A18: 14 | B18: Leodegario Junior | C18: 200 | D18: 11 | E18: 25 | H18: 15 | I18: 21 | L18: 11 | M18: 25 | P18: 11 | Q18: 25 | T18: 9 | U18: 27 | X18: 10 | Y18: 26 | AB18: 12 | AC18: 24 | AF18: 9 | AG18: 27 | AK18: 0* | AO18: 0* | AS18: 0 | AW18: 0 | AZ18: 0 | BA18: 0 | BB18: 0 | BC18: 0 | BD18: 0 | BE18: 0 | BF18: 0 | BG18: 0 | BH18: 2 | BI18: 1 | BJ18: 3 | BK18: 1 | BL18: 0 | BM18: 0 | BN18: 1 | BO18: 0 | BP18: 0 | BQ18: 0 | BR18: 0 | BS18: 0 | BT18: 0 | BU18: 0 | BV18: 0 | BW18: 0 | BX18: 0 | BY18: 0 | BZ18: 0 | CA18: 0 | CB18: 0 | CC18: 0 | CD18: 0 | CE18: 0 | CF18: 0 | CG18: 0 | CH18: 0 | CI18: 0 | CJ18: 0 | CK18: 0 | CL18: 0 | CM18: 0 | CN18: 0
A19: 15 | B19: Guilherme Slongo | C19: 166 | E19: 0* | H19: 12 | I19: 24 | L19: 14 | M19: 22 | P19: 12 | Q19: 24 | U19: 0* | X19: 14 | Y19: 22 | AB19: 14 | AC19: 22 | AG19: 0 | AK19: 0 | AN19: 10 | AO19: 26 | AR19: 10 | AS19: 26 | AW19: 0 | AZ19: 0 | BA19: 0 | BB19: 0 | BC19: 0 | BD19: 0 | BE19: 0 | BF19: 0 | BG19: 0 | BH19: 0 | BI19: 2 | BJ19: 0 | BK19: 2 | BL19: 0 | BM19: 3 | BN19: 0 | BO19: 0 | BP19: 0 | BQ19: 0 | BR19: 0 | BS19: 0 | BT19: 0 | BU19: 0 | BV19: 0 | BW19: 0 | BX19: 0 | BY19: 0 | BZ19: 0 | CA19: 0 | CB19: 0 | CC19: 0 | CD19: 0 | CE19: 0 | CF19: 0 | CG19: 0 | CH19: 0 | CI19: 0 | CJ19: 0 | CK19: 0 | CL19: 0 | CM19: 0 | CN19: 0
A20: 16 | B20: Brian Camelo | C20: 158 | E20: 0 | G20: NÃO | I20: 0 | K20: NÃO | L20: 16 | M20: 20 | P20: 13 | Q20: 23 | T20: 21 | U20: 15 | Y20: 0* | AB20: 10 | AC20: 26 | AF20: 13 | AG20: 23 | AJ20: 9 | AK20: 27 | AN20: 12 | AO20: 24 | AS20: 0* | AW20: 0 | AZ20: 0 | BA20: 0 | BB20: 0 | BC20: 0 | BD20: 0 | BE20: 0 | BF20: 0 | BG20: 0 | BH20: 1 | BI20: 1 | BJ20: 0 | BK20: 1 | BL20: 2 | BM20: 0 | BN20: 0 | BO20: 1 | BP20: 0 | BQ20: 0 | BR20: 0 | BS20: 0 | BT20: 1 | BU20: 0 | BV20: 0 | BW20: 0 | BX20: 0 | BY20: 0 | BZ20: 0 | CA20: 0 | CB20: 0 | CC20: 0 | CD20: 0 | CE20: 0 | CF20: 0 | CG20: 0 | CH20: 0 | CI20: 0 | CJ20: 0 | CK20: 0 | CL20: 0 | CM20: 0 | CN20: 0
A21: 17 | B21: Leandro Leite | C21: 121 | E21: 0* | I21: 0* | L21: 12 | M21: 24 | Q21: 0 | U21: 0 | Y21: 0 | AB21: 8 | AC21: 28 | AF21: 7 | AG21: 29 | AK21: 0 | AO21: 0 | AR21: 21 | AS21: 15 | AU21: SIM | AV21: 11 | AW21: 25 | AZ21: 0 | BA21: 0 | BB21: 0 | BC21: 0 | BD21: 0 | BE21: 0 | BF21: 1 | BG21: 1 | BH21: 0 | BI21: 0 | BJ21: 1 | BK21: 1 | BL21: 0 | BM21: 0 | BN21: 0 | BO21: 0 | BP21: 0 | BQ21: 0 | BR21: 0 | BS21: 0 | BT21: 1 | BU21: 0 | BV21: 0 | BW21: 0 | BX21: 0 | BY21: 0 | BZ21: 0 | CA21: 0 | CB21: 0 | CC21: 0 | CD21: 0 | CE21: 0 | CF21: 0 | CG21: 0 | CH21: 0 | CI21: 0 | CJ21: 0 | CK21: 0 | CL21: 0 | CM21: 0 | CN21: 0
A22: 18 | B22: Anderson Oliveira | C22: 107 | E22: 0* | H22: 9 | I22: 27 | L22: 10 | M22: 26 | Q22: 0* | U22: 0 | X22: 9 | Y22: 27 | AB22: 9 | AC22: 27 | AG22: 0 | AK22: 0 | AO22: 0 | AS22: 0 | AW22: 0 | AZ22: 0 | BA22: 0 | BB22: 0 | BC22: 0 | BD22: 0 | BE22: 0 | BF22: 0 | BG22: 0 | BH22: 3 | BI22: 1 | BJ22: 0 | BK22: 0 | BL22: 0 | BM22: 0 | BN22: 0 | BO22: 0 | BP22: 0 | BQ22: 0 | BR22: 0 | BS22: 0 | BT22: 0 | BU22: 0 | BV22: 0 | BW22: 0 | BX22: 0 | BY22: 0 | BZ22: 0 | CA22: 0 | CB22: 0 | CC22: 0 | CD22: 0 | CE22: 0 | CF22: 0 | CG22: 0 | CH22: 0 | CI22: 0 | CJ22: 0 | CK22: 0 | CL22: 0 | CM22: 0 | CN22: 0
A23: 19 | B23: Aparecido Arantes | C23: 101 | D23: 12 | E23: 24 | I23: 0* | M23: 0* | Q23: 0 | T23: 8 | U23: 28 | Y23: 0 | AB23: 16 | AC23: 20 | AG23: 0 | AK23: 0 | AN23: 7 | AO23: 29 | AS23: 0 | AW23: 0 | AZ23: 0 | BA23: 0 | BB23: 0 | BC23: 0 | BD23: 0 | BE23: 0 | BF23: 1 | BG23: 1 | BH23: 0 | BI23: 0 | BJ23: 0 | BK23: 1 | BL23: 0 | BM23: 0 | BN23: 0 | BO23: 1 | BP23: 0 | BQ23: 0 | BR23: 0 | BS23: 0 | BT23: 0 | BU23: 0 | BV23: 0 | BW23: 0 | BX23: 0 | BY23: 0 | BZ23: 0 | CA23: 0 | CB23: 0 | CC23: 0 | CD23: 0 | CE23: 0 | CF23: 0 | CG23: 0 | CH23: 0 | CI23: 0 | CJ23: 0 | CK23: 0 | CL23: 0 | CM23: 0 | CN23: 0
A24: 20 | B24: Bruno Rodovalho | C24: 22 | E24: 0* | H24: 14 | I24: 22 | M24: 0* | Q24: 0 | U24: 0 | Y24: 0 | AC24: 0 | AG24: 0 | AK24: 0 | AO24: 0 | AS24: 0 | AW24: 0 | AZ24: 0 | BA24: 0 | BB24: 0 | BC24: 0 | BD24: 0 | BE24: 0 | BF24: 0 | BG24: 0 | BH24: 0 | BI24: 0 | BJ24: 0 | BK24: 0 | BL24: 0 | BM24: 1 | BN24: 0 | BO24: 0 | BP24: 0 | BQ24: 0 | BR24: 0 | BS24: 0 | BT24: 0 | BU24: 0 | BV24: 0 | BW24: 0 | BX24: 0 | BY24: 0 | BZ24: 0 | CA24: 0 | CB24: 0 | CC24: 0 | CD24: 0 | CE24: 0 | CF24: 0 | CG24: 0 | CH24: 0 | CI24: 0 | CJ24: 0 | CK24: 0 | CL24: 0 | CM24: 0 | CN24: 0
A25: 21 | B25: Agostinho Neves | C25: 0 | E25: 0* | I25: 0* | M25: 0 | Q25: 0 | U25: 0 | Y25: 0 | AC25: 0 | AG25: 0 | AK25: 0 | AO25: 0 | AS25: 0 | AW25: 0 | AZ25: 0 | BA25: 0 | BB25: 0 | BC25: 0 | BD25: 0 | BE25: 0 | BF25: 0 | BG25: 0 | BH25: 0 | BI25: 0 | BJ25: 0 | BK25: 0 | BL25: 0 | BM25: 0 | BN25: 0 | BO25: 0 | BP25: 0 | BQ25: 0 | BR25: 0 | BS25: 0 | BT25: 0 | BU25: 0 | BV25: 0 | BW25: 0 | BX25: 0 | BY25: 0 | BZ25: 0 | CA25: 0 | CB25: 0 | CC25: 0 | CD25: 0 | CE25: 0 | CF25: 0 | CG25: 0 | CH25: 0 | CI25: 0 | CJ25: 0 | CK25: 0 | CL25: 0 | CM25: 0 | CN25: 0
A26: 22 | B26: Leonardo Sousa | C26: 0 | E26: 0* | I26: 0* | M26: 0 | Q26: 0 | U26: 0 | Y26: 0 | AC26: 0 | AG26: 0 | AK26: 0 | AO26: 0 | AS26: 0 | AW26: 0 | AZ26: 0 | BA26: 0 | BB26: 0 | BC26: 0 | BD26: 0 | BE26: 0 | BF26: 0 | BG26: 0 | BH26: 0 | BI26: 0 | BJ26: 0 | BK26: 0 | BL26: 0 | BM26: 0 | BN26: 0 | BO26: 0 | BP26: 0 | BQ26: 0 | BR26: 0 | BS26: 0 | BT26: 0 | BU26: 0 | BV26: 0 | BW26: 0 | BX26: 0 | BY26: 0 | BZ26: 0 | CA26: 0 | CB26: 0 | CC26: 0 | CD26: 0 | CE26: 0 | CF26: 0 | CG26: 0 | CH26: 0 | CI26: 0 | CJ26: 0 | CK26: 0 | CL26: 0 | CM26: 0 | CN26: 0
A27: 23 | C27: 0 | E27: 0 | I27: 0 | M27: 0 | Q27: 0 | U27: 0 | Y27: 0 | AC27: 0 | AG27: 0 | AK27: 0 | AO27: 0 | AS27: 0 | AW27: 0 | AZ27: 0 | BA27: 0 | BB27: 0 | BC27: 0 | BD27: 0 | BE27: 0 | BF27: 0 | BG27: 0 | BH27: 0 | BI27: 0 | BJ27: 0 | BK27: 0 | BL27: 0 | BM27: 0 | BN27: 0 | BO27: 0 | BP27: 0 | BQ27: 0 | BR27: 0 | BS27: 0 | BT27: 0 | BU27: 0 | BV27: 0 | BW27: 0 | BX27: 0 | BY27: 0 | BZ27: 0 | CA27: 0 | CB27: 0 | CC27: 0 | CD27: 0 | CE27: 0 | CF27: 0 | CG27: 0 | CH27: 0 | CI27: 0 | CJ27: 0 | CK27: 0 | CL27: 0 | CM27: 0 | CN27: 0
A28: 24 | C28: 0 | E28: 0 | I28: 0 | M28: 0 | Q28: 0 | U28: 0 | Y28: 0 | AC28: 0 | AG28: 0 | AK28: 0 | AO28: 0 | AS28: 0 | AW28: 0 | AZ28: 0 | BA28: 0 | BB28: 0 | BC28: 0 | BD28: 0 | BE28: 0 | BF28: 0 | BG28: 0 | BH28: 0 | BI28: 0 | BJ28: 0 | BK28: 0 | BL28: 0 | BM28: 0 | BN28: 0 | BO28: 0 | BP28: 0 | BQ28: 0 | BR28: 0 | BS28: 0 | BT28: 0 | BU28: 0 | BV28: 0 | BW28: 0 | BX28: 0 | BY28: 0 | BZ28: 0 | CA28: 0 | CB28: 0 | CC28: 0 | CD28: 0 | CE28: 0 | CF28: 0 | CG28: 0 | CH28: 0 | CI28: 0 | CJ28: 0 | CK28: 0 | CL28: 0 | CM28: 0 | CN28: 0
A29: 25 | C29: 0 | E29: 0 | I29: 0 | M29: 0 | Q29: 0 | U29: 0 | Y29: 0 | AC29: 0 | AG29: 0 | AK29: 0 | AO29: 0 | AS29: 0 | AW29: 0 | AZ29: 0 | BA29: 0 | BB29: 0 | BC29: 0 | BD29: 0 | BE29: 0 | BF29: 0 | BG29: 0 | BH29: 0 | BI29: 0 | BJ29: 0 | BK29: 0 | BL29: 0 | BM29: 0 | BN29: 0 | BO29: 0 | BP29: 0 | BQ29: 0 | BR29: 0 | BS29: 0 | BT29: 0 | BU29: 0 | BV29: 0 | BW29: 0 | BX29: 0 | BY29: 0 | BZ29: 0 | CA29: 0 | CB29: 0 | CC29: 0 | CD29: 0 | CE29: 0 | CF29: 0 | CG29: 0 | CH29: 0 | CI29: 0 | CJ29: 0 | CK29: 0 | CL29: 0 | CM29: 0 | CN29: 0
A30: 26 | C30: 0 | E30: 0 | I30: 0 | M30: 0 | Q30: 0 | U30: 0 | Y30: 0 | AC30: 0 | AG30: 0 | AK30: 0 | AO30: 0 | AS30: 0 | AW30: 0 | AZ30: 0 | BA30: 0 | BB30: 0 | BC30: 0 | BD30: 0 | BE30: 0 | BF30: 0 | BG30: 0 | BH30: 0 | BI30: 0 | BJ30: 0 | BK30: 0 | BL30: 0 | BM30: 0 | BN30: 0 | BO30: 0 | BP30: 0 | BQ30: 0 | BR30: 0 | BS30: 0 | BT30: 0 | BU30: 0 | BV30: 0 | BW30: 0 | BX30: 0 | BY30: 0 | BZ30: 0 | CA30: 0 | CB30: 0 | CC30: 0 | CD30: 0 | CE30: 0 | CF30: 0 | CG30: 0 | CH30: 0 | CI30: 0 | CJ30: 0 | CK30: 0 | CL30: 0 | CM30: 0 | CN30: 0
A31: 27 | C31: 0 | E31: 0 | I31: 0 | M31: 0 | Q31: 0 | U31: 0 | Y31: 0 | AC31: 0 | AG31: 0 | AK31: 0 | AO31: 0 | AS31: 0 | AW31: 0 | AZ31: 0 | BA31: 0 | BB31: 0 | BC31: 0 | BD31: 0 | BE31: 0 | BF31: 0 | BG31: 0 | BH31: 0 | BI31: 0 | BJ31: 0 | BK31: 0 | BL31: 0 | BM31: 0 | BN31: 0 | BO31: 0 | BP31: 0 | BQ31: 0 | BR31: 0 | BS31: 0 | BT31: 0 | BU31: 0 | BV31: 0 | BW31: 0 | BX31: 0 | BY31: 0 | BZ31: 0 | CA31: 0 | CB31: 0 | CC31: 0 | CD31: 0 | CE31: 0 | CF31: 0 | CG31: 0 | CH31: 0 | CI31: 0 | CJ31: 0 | CK31: 0 | CL31: 0 | CM31: 0 | CN31: 0
A32: 28 | C32: 0 | E32: 0 | I32: 0 | M32: 0 | Q32: 0 | U32: 0 | Y32: 0 | AC32: 0 | AG32: 0 | AK32: 0 | AO32: 0 | AS32: 0 | AW32: 0 | AZ32: 0 | BA32: 0 | BB32: 0 | BC32: 0 | BD32: 0 | BE32: 0 | BF32: 0 | BG32: 0 | BH32: 0 | BI32: 0 | BJ32: 0 | BK32: 0 | BL32: 0 | BM32: 0 | BN32: 0 | BO32: 0 | BP32: 0 | BQ32: 0 | BR32: 0 | BS32: 0 | BT32: 0 | BU32: 0 | BV32: 0 | BW32: 0 | BX32: 0 | BY32: 0 | BZ32: 0 | CA32: 0 | CB32: 0 | CC32: 0 | CD32: 0 | CE32: 0 | CF32: 0 | CG32: 0 | CH32: 0 | CI32: 0 | CJ32: 0 | CK32: 0 | CL32: 0 | CM32: 0 | CN32: 0
A33: 29 | C33: 0 | E33: 0 | I33: 0 | M33: 0 | Q33: 0 | U33: 0 | Y33: 0 | AC33: 0 | AG33: 0 | AK33: 0 | AO33: 0 | AS33: 0 | AW33: 0 | AZ33: 0 | BA33: 0 | BB33: 0 | BC33: 0 | BD33: 0 | BE33: 0 | BF33: 0 | BG33: 0 | BH33: 0 | BI33: 0 | BJ33: 0 | BK33: 0 | BL33: 0 | BM33: 0 | BN33: 0 | BO33: 0 | BP33: 0 | BQ33: 0 | BR33: 0 | BS33: 0 | BT33: 0 | BU33: 0 | BV33: 0 | BW33: 0 | BX33: 0 | BY33: 0 | BZ33: 0 | CA33: 0 | CB33: 0 | CC33: 0 | CD33: 0 | CE33: 0 | CF33: 0 | CG33: 0 | CH33: 0 | CI33: 0 | CJ33: 0 | CK33: 0 | CL33: 0 | CM33: 0 | CN33: 0
A34: 30 | C34: 0 | E34: 0 | I34: 0 | M34: 0 | Q34: 0 | U34: 0 | Y34: 0 | AC34: 0 | AG34: 0 | AK34: 0 | AO34: 0 | AS34: 0 | AW34: 0 | AZ34: 0 | BA34: 0 | BB34: 0 | BC34: 0 | BD34: 0 | BE34: 0 | BF34: 0 | BG34: 0 | BH34: 0 | BI34: 0 | BJ34: 0 | BK34: 0 | BL34: 0 | BM34: 0 | BN34: 0 | BO34: 0 | BP34: 0 | BQ34: 0 | BR34: 0 | BS34: 0 | BT34: 0 | BU34: 0 | BV34: 0 | BW34: 0 | BX34: 0 | BY34: 0 | BZ34: 0 | CA34: 0 | CB34: 0 | CC34: 0 | CD34: 0 | CE34: 0 | CF34: 0 | CG34: 0 | CH34: 0 | CI34: 0 | CJ34: 0 | CK34: 0 | CL34: 0 | CM34: 0 | CN34: 0
A35: 31 | C35: 0 | E35: 0 | I35: 0 | M35: 0 | Q35: 0 | U35: 0 | Y35: 0 | AC35: 0 | AG35: 0 | AK35: 0 | AO35: 0 | AS35: 0 | AW35: 0 | AZ35: 0 | BA35: 0 | BB35: 0 | BC35: 0 | BD35: 0 | BE35: 0 | BF35: 0 | BG35: 0 | BH35: 0 | BI35: 0 | BJ35: 0 | BK35: 0 | BL35: 0 | BM35: 0 | BN35: 0 | BO35: 0 | BP35: 0 | BQ35: 0 | BR35: 0 | BS35: 0 | BT35: 0 | BU35: 0 | BV35: 0 | BW35: 0 | BX35: 0 | BY35: 0 | BZ35: 0 | CA35: 0 | CB35: 0 | CC35: 0 | CD35: 0 | CE35: 0 | CF35: 0 | CG35: 0 | CH35: 0 | CI35: 0 | CJ35: 0 | CK35: 0 | CL35: 0 | CM35: 0 | CN35: 0
A36: 32 | C36: 0 | E36: 0 | I36: 0 | M36: 0 | Q36: 0 | U36: 0 | Y36: 0 | AC36: 0 | AG36: 0 | AK36: 0 | AO36: 0 | AS36: 0 | AW36: 0 | AZ36: 0 | BA36: 0 | BB36: 0 | BC36: 0 | BD36: 0 | BE36: 0 | BF36: 0 | BG36: 0 | BH36: 0 | BI36: 0 | BJ36: 0 | BK36: 0 | BL36: 0 | BM36: 0 | BN36: 0 | BO36: 0 | BP36: 0 | BQ36: 0 | BR36: 0 | BS36: 0 | BT36: 0 | BU36: 0 | BV36: 0 | BW36: 0 | BX36: 0 | BY36: 0 | BZ36: 0 | CA36: 0 | CB36: 0 | CC36: 0 | CD36: 0 | CE36: 0 | CF36: 0 | CG36: 0 | CH36: 0 | CI36: 0 | CJ36: 0 | CK36: 0 | CL36: 0 | CM36: 0 | CN36: 0
A37: 33 | C37: 0 | E37: 0 | I37: 0 | M37: 0 | Q37: 0 | U37: 0 | Y37: 0 | AC37: 0 | AG37: 0 | AK37: 0 | AO37: 0 | AS37: 0 | AW37: 0 | AZ37: 0 | BA37: 0 | BB37: 0 | BC37: 0 | BD37: 0 | BE37: 0 | BF37: 0 | BG37: 0 | BH37: 0 | BI37: 0 | BJ37: 0 | BK37: 0 | BL37: 0 | BM37: 0 | BN37: 0 | BO37: 0 | BP37: 0 | BQ37: 0 | BR37: 0 | BS37: 0 | BT37: 0 | BU37: 0 | BV37: 0 | BW37: 0 | BX37: 0 | BY37: 0 | BZ37: 0 | CA37: 0 | CB37: 0 | CC37: 0 | CD37: 0 | CE37: 0 | CF37: 0 | CG37: 0 | CH37: 0 | CI37: 0 | CJ37: 0 | CK37: 0 | CL37: 0 | CM37: 0 | CN37: 0
A38: 34 | C38: 0 | E38: 0 | I38: 0 | M38: 0 | Q38: 0 | U38: 0 | Y38: 0 | AC38: 0 | AG38: 0 | AK38: 0 | AO38: 0 | AS38: 0 | AW38: 0 | AZ38: 0 | BA38: 0 | BB38: 0 | BC38: 0 | BD38: 0 | BE38: 0 | BF38: 0 | BG38: 0 | BH38: 0 | BI38: 0 | BJ38: 0 | BK38: 0 | BL38: 0 | BM38: 0 | BN38: 0 | BO38: 0 | BP38: 0 | BQ38: 0 | BR38: 0 | BS38: 0 | BT38: 0 | BU38: 0 | BV38: 0 | BW38: 0 | BX38: 0 | BY38: 0 | BZ38: 0 | CA38: 0 | CB38: 0 | CC38: 0 | CD38: 0 | CE38: 0 | CF38: 0 | CG38: 0 | CH38: 0 | CI38: 0 | CJ38: 0 | CK38: 0 | CL38: 0 | CM38: 0 | CN38: 0
A39: 35 | C39: 0 | E39: 0 | I39: 0 | M39: 0 | Q39: 0 | U39: 0 | Y39: 0 | AC39: 0 | AG39: 0 | AK39: 0 | AO39: 0 | AS39: 0 | AW39: 0 | AZ39: 0 | BA39: 0 | BB39: 0 | BC39: 0 | BD39: 0 | BE39: 0 | BF39: 0 | BG39: 0 | BH39: 0 | BI39: 0 | BJ39: 0 | BK39: 0 | BL39: 0 | BM39: 0 | BN39: 0 | BO39: 0 | BP39: 0 | BQ39: 0 | BR39: 0 | BS39: 0 | BT39: 0 | BU39: 0 | BV39: 0 | BW39: 0 | BX39: 0 | BY39: 0 | BZ39: 0 | CA39: 0 | CB39: 0 | CC39: 0 | CD39: 0 | CE39: 0 | CF39: 0 | CG39: 0 | CH39: 0 | CI39: 0 | CJ39: 0 | CK39: 0 | CL39: 0 | CM39: 0 | CN39: 0
A40: 36 | C40: 0 | E40: 0 | I40: 0 | M40: 0 | Q40: 0 | U40: 0 | Y40: 0 | AC40: 0 | AG40: 0 | AK40: 0 | AO40: 0 | AS40: 0 | AW40: 0 | AZ40: 0 | BA40: 0 | BB40: 0 | BC40: 0 | BD40: 0 | BE40: 0 | BF40: 0 | BG40: 0 | BH40: 0 | BI40: 0 | BJ40: 0 | BK40: 0 | BL40: 0 | BM40: 0 | BN40: 0 | BO40: 0 | BP40: 0 | BQ40: 0 | BR40: 0 | BS40: 0 | BT40: 0 | BU40: 0 | BV40: 0 | BW40: 0 | BX40: 0 | BY40: 0 | BZ40: 0 | CA40: 0 | CB40: 0 | CC40: 0 | CD40: 0 | CE40: 0 | CF40: 0 | CG40: 0 | CH40: 0 | CI40: 0 | CJ40: 0 | CK40: 0 | CL40: 0 | CM40: 0 | CN40: 0
A41: 37 | C41: 0 | E41: 0 | I41: 0 | M41: 0 | Q41: 0 | U41: 0 | Y41: 0 | AC41: 0 | AG41: 0 | AK41: 0 | AO41: 0 | AS41: 0 | AW41: 0 | AZ41: 0 | BA41: 0 | BB41: 0 | BC41: 0 | BD41: 0 | BE41: 0 | BF41: 0 | BG41: 0 | BH41: 0 | BI41: 0 | BJ41: 0 | BK41: 0 | BL41: 0 | BM41: 0 | BN41: 0 | BO41: 0 | BP41: 0 | BQ41: 0 | BR41: 0 | BS41: 0 | BT41: 0 | BU41: 0 | BV41: 0 | BW41: 0 | BX41: 0 | BY41: 0 | BZ41: 0 | CA41: 0 | CB41: 0 | CC41: 0 | CD41: 0 | CE41: 0 | CF41: 0 | CG41: 0 | CH41: 0 | CI41: 0 | CJ41: 0 | CK41: 0 | CL41: 0 | CM41: 0 | CN41: 0
A42: 38 | C42: 0 | E42: 0 | I42: 0 | M42: 0 | Q42: 0 | U42: 0 | Y42: 0 | AC42: 0 | AG42: 0 | AK42: 0 | AO42: 0 | AS42: 0 | AW42: 0 | AZ42: 0 | BA42: 0 | BB42: 0 | BC42: 0 | BD42: 0 | BE42: 0 | BF42: 0 | BG42: 0 | BH42: 0 | BI42: 0 | BJ42: 0 | BK42: 0 | BL42: 0 | BM42: 0 | BN42: 0 | BO42: 0 | BP42: 0 | BQ42: 0 | BR42: 0 | BS42: 0 | BT42: 0 | BU42: 0 | BV42: 0 | BW42: 0 | BX42: 0 | BY42: 0 | BZ42: 0 | CA42: 0 | CB42: 0 | CC42: 0 | CD42: 0 | CE42: 0 | CF42: 0 | CG42: 0 | CH42: 0 | CI42: 0 | CJ42: 0 | CK42: 0 | CL42: 0 | CM42: 0 | CN42: 0
A43: 39 | C43: 0 | E43: 0 | I43: 0 | M43: 0 | Q43: 0 | U43: 0 | Y43: 0 | AC43: 0 | AG43: 0 | AK43: 0 | AO43: 0 | AS43: 0 | AW43: 0 | AZ43: 0 | BA43: 0 | BB43: 0 | BC43: 0 | BD43: 0 | BE43: 0 | BF43: 0 | BG43: 0 | BH43: 0 | BI43: 0 | BJ43: 0 | BK43: 0 | BL43: 0 | BM43: 0 | BN43: 0 | BO43: 0 | BP43: 0 | BQ43: 0 | BR43: 0 | BS43: 0 | BT43: 0 | BU43: 0 | BV43: 0 | BW43: 0 | BX43: 0 | BY43: 0 | BZ43: 0 | CA43: 0 | CB43: 0 | CC43: 0 | CD43: 0 | CE43: 0 | CF43: 0 | CG43: 0 | CH43: 0 | CI43: 0 | CJ43: 0 | CK43: 0 | CL43: 0 | CM43: 0 | CN43: 0
A44: 40 | C44: 0 | E44: 0 | I44: 0 | M44: 0 | Q44: 0 | U44: 0 | Y44: 0 | AC44: 0 | AG44: 0 | AK44: 0 | AO44: 0 | AS44: 0 | AW44: 0 | AZ44: 0 | BA44: 0 | BB44: 0 | BC44: 0 | BD44: 0 | BE44: 0 | BF44: 0 | BG44: 0 | BH44: 0 | BI44: 0 | BJ44: 0 | BK44: 0 | BL44: 0 | BM44: 0 | BN44: 0 | BO44: 0 | BP44: 0 | BQ44: 0 | BR44: 0 | BS44: 0 | BT44: 0 | BU44: 0 | BV44: 0 | BW44: 0 | BX44: 0 | BY44: 0 | BZ44: 0 | CA44: 0 | CB44: 0 | CC44: 0 | CD44: 0 | CE44: 0 | CF44: 0 | CG44: 0 | CH44: 0 | CI44: 0 | CJ44: 0 | CK44: 0 | CL44: 0 | CM44: 0 | CN44: 0
A45: 41 | C45: 0 | E45: 0 | I45: 0 | M45: 0 | Q45: 0 | U45: 0 | Y45: 0 | AC45: 0 | AG45: 0 | AK45: 0 | AO45: 0 | AS45: 0 | AW45: 0 | AZ45: 0 | BA45: 0 | BB45: 0 | BC45: 0 | BD45: 0 | BE45: 0 | BF45: 0 | BG45: 0 | BH45: 0 | BI45: 0 | BJ45: 0 | BK45: 0 | BL45: 0 | BM45: 0 | BN45: 0 | BO45: 0 | BP45: 0 | BQ45: 0 | BR45: 0 | BS45: 0 | BT45: 0 | BU45: 0 | BV45: 0 | BW45: 0 | BX45: 0 | BY45: 0 | BZ45: 0 | CA45: 0 | CB45: 0 | CC45: 0 | CD45: 0 | CE45: 0 | CF45: 0 | CG45: 0 | CH45: 0 | CI45: 0 | CJ45: 0 | CK45: 0 | CL45: 0 | CM45: 0 | CN45: 0
A46: 42 | C46: 0 | E46: 0 | I46: 0 | M46: 0 | Q46: 0 | U46: 0 | Y46: 0 | AC46: 0 | AG46: 0 | AK46: 0 | AO46: 0 | AS46: 0 | AW46: 0 | AZ46: 0 | BA46: 0 | BB46: 0 | BC46: 0 | BD46: 0 | BE46: 0 | BF46: 0 | BG46: 0 | BH46: 0 | BI46: 0 | BJ46: 0 | BK46: 0 | BL46: 0 | BM46: 0 | BN46: 0 | BO46: 0 | BP46: 0 | BQ46: 0 | BR46: 0 | BS46: 0 | BT46: 0 | BU46: 0 | BV46: 0 | BW46: 0 | BX46: 0 | BY46: 0 | BZ46: 0 | CA46: 0 | CB46: 0 | CC46: 0 | CD46: 0 | CE46: 0 | CF46: 0 | CG46: 0 | CH46: 0 | CI46: 0 | CJ46: 0 | CK46: 0 | CL46: 0 | CM46: 0 | CN46: 0
A47: 43 | C47: 0 | E47: 0 | I47: 0 | M47: 0 | Q47: 0 | U47: 0 | Y47: 0 | AC47: 0 | AG47: 0 | AK47: 0 | AO47: 0 | AS47: 0 | AW47: 0 | AZ47: 0 | BA47: 0 | BB47: 0 | BC47: 0 | BD47: 0 | BE47: 0 | BF47: 0 | BG47: 0 | BH47: 0 | BI47: 0 | BJ47: 0 | BK47: 0 | BL47: 0 | BM47: 0 | BN47: 0 | BO47: 0 | BP47: 0 | BQ47: 0 | BR47: 0 | BS47: 0 | BT47: 0 | BU47: 0 | BV47: 0 | BW47: 0 | BX47: 0 | BY47: 0 | BZ47: 0 | CA47: 0 | CB47: 0 | CC47: 0 | CD47: 0 | CE47: 0 | CF47: 0 | CG47: 0 | CH47: 0 | CI47: 0 | CJ47: 0 | CK47: 0 | CL47: 0 | CM47: 0 | CN47: 0
A48: 44 | C48: 0 | E48: 0 | I48: 0 | M48: 0 | Q48: 0 | U48: 0 | Y48: 0 | AC48: 0 | AG48: 0 | AK48: 0 | AO48: 0 | AS48: 0 | AW48: 0 | AZ48: 0 | BA48: 0 | BB48: 0 | BC48: 0 | BD48: 0 | BE48: 0 | BF48: 0 | BG48: 0 | BH48: 0 | BI48: 0 | BJ48: 0 | BK48: 0 | BL48: 0 | BM48: 0 | BN48: 0 | BO48: 0 | BP48: 0 | BQ48: 0 | BR48: 0 | BS48: 0 | BT48: 0 | BU48: 0 | BV48: 0 | BW48: 0 | BX48: 0 | BY48: 0 | BZ48: 0 | CA48: 0 | CB48: 0 | CC48: 0 | CD48: 0 | CE48: 0 | CF48: 0 | CG48: 0 | CH48: 0 | CI48: 0 | CJ48: 0 | CK48: 0 | CL48: 0 | CM48: 0 | CN48: 0
A49: 45 | C49: 0 | E49: 0 | I49: 0 | M49: 0 | Q49: 0 | U49: 0 | Y49: 0 | AC49: 0 | AG49: 0 | AK49: 0 | AO49: 0 | AS49: 0 | AW49: 0 | AZ49: 0 | BA49: 0 | BB49: 0 | BC49: 0 | BD49: 0 | BE49: 0 | BF49: 0 | BG49: 0 | BH49: 0 | BI49: 0 | BJ49: 0 | BK49: 0 | BL49: 0 | BM49: 0 | BN49: 0 | BO49: 0 | BP49: 0 | BQ49: 0 | BR49: 0 | BS49: 0 | BT49: 0 | BU49: 0 | BV49: 0 | BW49: 0 | BX49: 0 | BY49: 0 | BZ49: 0 | CA49: 0 | CB49: 0 | CC49: 0 | CD49: 0 | CE49: 0 | CF49: 0 | CG49: 0 | CH49: 0 | CI49: 0 | CJ49: 0 | CK49: 0 | CL49: 0 | CM49: 0 | CN49: 0

Sheet Tabela Equipes
A1: 2024 | D1: OK | H1: OK | L1: OK | P1: OK | T1: OK | X1: OK | AB1: OK | AF1: OK | AJ1: OK | AN1: OK | AR1: OK | AV1: OK
C2: 01 ETAPA | G2: 02 ETAPA | K2: 03 ETAPA | O2: 04 ETAPA | S2: 05 ETAPA | W2: 06 ETAPA | AA2: 07 ETAPA | AE2: 08 ETAPA | AI2: 09 ETAPA | AM2: 10 ETAPA | AQ2: 11 ETAPA | AU2: 12 ETAPA
C3: 2024-01-18 | G3: 2024-02-01 | K3: 2024-03-14 | O3: 2024-04-11 | S3: 2024-05-23 | W3: 2024-06-06 | AA3: 2024-07-25 | AE3: 2024-08-01 | AI3: 2024-09-05 | AM3: 2024-10-31 | AQ3: 2024-11-14 | AU3: 2024-12-05
A4: EQUIPES | B4: Pontuação Geral | C4: Posição | D4: Pontos | E4: Bônus | F4: Penalidade | G4: Posição | H4: Pontos | I4: Bônus | J4: Penalidade | K4: Posição | L4: Pontos | M4: Bônus | N4: Penalidade | O4: Posição | P4: Pontos | Q4: Bônus | R4: Penalidade | S4: Posição | T4: Pontos | U4: Bônus | V4: Penalidade | W4: Posição | X4: Pontos | Y4: Bônus | Z4: Penalidade | AA4: Posição | AB4: Pontos | AC4: Bônus | AD4: Penalidade | AE4: Posição | AF4: Pontos | AG4: Bônus | AH4: Penalidade | AI4: Posição | AJ4: Pontos | AK4: Bônus | AL4: Penalidade | AM4: Posição | AN4: Pontos | AO4: Bônus | AP4: Penalidade | AQ4: Posição | AR4: Pontos | AS4: Bônus | AT4: Penalidade | AU4: Posição | AV4: Pontos | AW4: Bônus | AX4: Penalidade
A5: Multiseg | B5: 1060 | D5: 72 | E5: 0 | H5: 79 | I5: 0 | L5: 106 | M5: 1 | P5: 102 | Q5: 1 | T5: 70 | U5: 0 | X5: 97 | Y5: 0 | AB5: 56 | AC5: 0 | AF5: 100 | AG5: 1 | AJ5: 97 | AK5: 0 | AN5: 120 | AO5: 1 | AR5: 85 | AS5: 0 | AV5: 72 | AW5: 0
A6: Guilherme Rocha | B6: 344 | C6: 4 | D6: 35 | E6: 0 | G6: 7 | H6: 29 | I6: 0 | K6: 6 | L6: 31 | M6: 0 | O6: 1 | P6: 45 | Q6: 1 | S6: 5 | T6: 33 | U6: 0 | W6: 5 | X6: 33 | Y6: 0 | AB6: 0 | AC6: 0 | AE6: 4 | AF6: 35 | AG6: 1 | AI6: 11 | AJ6: 25 | AK6: 0 | AM6: 4 | AN6: 35 | AO6: 1 | AQ6: 2 | AR6: 40 | AS6: 0 | AV6: 0 | AW6: 0
A7: Mathias Almeida | B7: 325 | C7: 3 | D7: 37 | E7: 0 | G7: 8 | H7: 28 | I7: 0 | K7: 2 | L7: 40 | M7: 1 | O7: 8 | P7: 28 | Q7: 0 | S7: 0 | T7: 0 | U7: 0 | W7: 12 | X7: 24 | Y7: 0 | AA7: 4 | AB7: 35 | AC7: 0 | AE7: 11 | AF7: 25 | AG7: 0 | AI7: 4 | AJ7: 35 | AK7: 0 | AM7: 1 | AN7: 45 | AO7: 0 | AR7: 0 | AS7: 0 | AU7: 9 | AV7: 27 | AW7: 0
A8: Arthur Santiago | B8: 369 | D8: 0 | E8: 0 | H8: 0 | I8: 0 | K8: 4 | L8: 35 | M8: 0 | O8: 7 | P8: 29 | Q8: 0 | S8: 3 | T8: 37 | U8: 0 | W8: 2 | X8: 40 | Y8: 0 | AA8: 15 | AB8: 21 | AC8: 0 | AE8: 2 | AF8: 40 | AG8: 0 | AI8: 3 | AJ8: 37 | AK8: 0 | AM8: 2 | AN8: 40 | AO8: 0 | AQ8: 1 | AR8: 45 | AS8: 0 | AU8: 1 | AV8: 45 | AW8: 0
A9: Bruno Rodovalho | B9: 22 | D9: 0 | E9: 0 | G9: 14 | H9: 22 | I9: 0 | L9: 0 | M9: 0 | P9: 0 | Q9: 0 | T9: 0 | U9: 0 | X9: 0 | Y9: 0 | AB9: 0 | AC9: 0 | AF9: 0 | AG9: 0 | AJ9: 0 | AK9: 0 | AN9: 0 | AO9: 0 | AR9: 0 | AS9: 0 | AV9: 0 | AW9: 0
A10: X | B10: 0
A11: ComOferta | B11: 816 | D11: 101 | E11: 0 | H11: 51 | I11: 0 | L11: 91 | M11: 0 | P11: 60 | Q11: 0 | T11: 45 | U11: 1 | X11: 60 | Y11: 0 | AB11: 96 | AC11: 0 | AF11: 57 | AG11: 0 | AJ11: 70 | AK11: 0 | AN11: 63 | AO11: 0 | AR11: 55 | AS11: 0 | AV11: 66 | AW11: 0
A12: Matheus Dias | B12: 328 | C12: 5 | D12: 33 | E12: 0 | H12: 0 | I12: 0 | K12: 3 | L12: 37 | M12: 0 | O12: 5 | P12: 33 | Q12: 0 | S12: 1 | T12: 45 | U12: 1 | W12: 3 | X12: 37 | Y12: 0 | AA12: 2 | AB12: 40 | AC12: 0 | AE12: 5 | AF12: 33 | AG12: 0 | AI12: 16 | AJ12: 20 | AK12: 0 | AM12: 16 | AN12: 20 | AO12: 0 | AR12: 0 | AS12: 0 | AU12: 7 | AV12: 29 | AW12: 0
A13: Breno Motta | B13: 240 | C13: 2 | D13: 40 | E13: 0 | G13: 11 | H13: 25 | I13: 0 | K13: 5 | L13: 33 | M13: 0 | P13: 0 | Q13: 0 | T13: 0 | U13: 0 | X13: 0 | Y13: 0 | AA13: 5 | AB13: 33 | AC13: 0 | AF13: 0 | AG13: 0 | AI13: 12 | AJ13: 24 | AK13: 0 | AM13: 15 | AN13: 21 | AO13: 0 | AQ13: 9 | AR13: 27 | AS13: 0 | AU13: 3 | AV13: 37 | AW13: 0
A14: Gladson Torres | B14: 248 | C14: 8 | D14: 28 | E14: 0 | G14: 10 | H14: 26 | I14: 0 | K14: 15 | L14: 21 | M14: 0 | O14: 9 | P14: 27 | Q14: 0 | T14: 0 | U14: 0 | W14: 13 | X14: 23 | Y14: 0 | AA14: 13 | AB14: 23 | AC14: 0 | AE14: 12 | AF14: 24 | AG14: 0 | AI14: 10 | AJ14: 26 | AK14: 0 | AM14: 14 | AN14: 22 | AO14: 0 | AQ14: 8 | AR14: 28 | AS14: 0 | AV14: 0 | AW14: 0
A15: XX
A16: XX
A17: Essencia Studio | B17: 798 | D17: 54 | E17: 0 | H17: 82 | I17: 0 | L17: 92 | M17: 0 | P17: 86 | Q17: 0 | T17: 67 | U17: 0 | X17: 93 | Y17: 1 | AB17: 71 | AC17: 0 | AF17: 64 | AG17: 0 | AJ17: 31 | AK17: 0 | AN17: 63 | AO17: 0 | AR17: 61 | AS17: 0 | AV17: 33 | AW17: 0
A18: Alexandre Melillo | B18: 432 | C18: 7 | D18: 29 | E18: 0 | G18: 3 | H18: 37 | I18: 0 | K18: 1 | L18: 45 | M18: 0 | O18: 3 | P18: 37 | Q18: 0 | S18: 2 | T18: 40 | U18: 0 | W18: 1 | X18: 45 | Y18: 1 | AA18: 11 | AB18: 25 | AC18: 0 | AE18: 3 | AF18: 37 | AG18: 0 | AI18: 6 | AJ18: 31 | AK18: 0 | AM18: 3 | AN18: 37 | AO18: 0 | AQ18: 4 | AR18: 35 | AS18: 0 | AU18: 5 | AV18: 33 | AW18: 0
A19: Leodegario Junior | B19: 200 | C19: 11 | D19: 25 | E19: 0 | G19: 15 | H19: 21 | I19: 0 | K19: 11 | L19: 25 | M19: 0 | O19: 11 | P19: 25 | Q19: 0 | S19: 9 | T19: 27 | U19: 0 | W19: 10 | X19: 26 | Y19: 0 | AA19: 12 | AB19: 24 | AC19: 0 | AE19: 9 | AF19: 27 | AG19: 0 | AJ19: 0 | AK19: 0 | AN19: 0 | AO19: 0 | AR19: 0 | AS19: 0 | AV19: 0 | AW19: 0
A20: Guilherme Slongo | B20: 166 | D20: 0 | E20: 0 | G20: 12 | H20: 24 | I20: 0 | K20: 14 | L20: 22 | M20: 0 | O20: 12 | P20: 24 | Q20: 0 | T20: 0 | U20: 0 | W20: 14 | X20: 22 | Y20: 0 | AA20: 14 | AB20: 22 | AC20: 0 | AF20: 0 | AG20: 0 | AJ20: 0 | AK20: 0 | AM20: 10 | AN20: 26 | AO20: 0 | AQ20: 10 | AR20: 26 | AS20: 0 | AV20: 0 | AW20: 0
A21: XXX
A22: XXX | B22: 0
A23: AST Estrutura | B23: 449 | D23: 31 | E23: 0 | H23: 60 | I23: 0 | L23: 55 | M23: 0 | P23: 35 | Q23: 0 | T23: 35 | U23: 0 | X23: 56 | Y23: 0 | AB23: 27 | AC23: 0 | AF23: 26 | AG23: 0 | AJ23: 29 | AK23: 0 | AN23: 23 | AO23: 0 | AR23: 37 | AS23: 0 | AV23: 35 | AW23: 0
A24: Luciano Brandão | B24: 342 | C24: 6 | D24: 31 | E24: 0 | G24: 5 | H24: 33 | I24: 0 | K24: 7 | L24: 29 | M24: 0 | O24: 4 | P24: 35 | Q24: 0 | S24: 4 | T24: 35 | U24: 0 | W24: 7 | X24: 29 | Y24: 0 | AB24: 0 | AC24: 0 | AE24: 10 | AF24: 26 | AG24: 0 | AI24: 7 | AJ24: 29 | AK24: 0 | AM24: 13 | AN24: 23 | AO24: 0 | AQ24: 3 | AR24: 37 | AS24: 0 | AU24: 4 | AV24: 35 | AW24: 0
A25: Anderson Oliveira | B25: 107 | D25: 0 | E25: 0 | G25: 9 | H25: 27 | I25: 0 | K25: 10 | L25: 26 | M25: 0 | P25: 0 | Q25: 0 | T25: 0 | U25: 0 | W25: 9 | X25: 27 | Y25: 0 | AA25: 9 | AB25: 27 | AC25: 0 | AF25: 0 | AG25: 0 | AJ25: 0 | AK25: 0 | AN25: 0 | AO25: 0 | AR25: 0 | AS25: 0 | AV25: 0 | AW25: 0
A26: Leonardo Sousa | B26: 0 | D26: 0 | E26: 0 | H26: 0 | I26: 0 | L26: 0 | M26: 0 | P26: 0 | Q26: 0 | T26: 0 | U26: 0 | X26: 0 | Y26: 0 | AB26: 0 | AC26: 0 | AF26: 0 | AG26: 0 | AJ26: 0 | AK26: 0 | AN26: 0 | AO26: 0 | AR26: 0 | AS26: 0 | AV26: 0 | AW26: 0
A27: XXXX | B27: 0
A28: XXXX | B28: 0
A29: Inovesa | B29: 727 | D29: 26 | E29: 0 | H29: 66 | I29: 0 | L29: 75 | M29: 0 | P29: 45 | Q29: 0 | T29: 60 | U29: 0 | X29: 60 | Y29: 0 | AB29: 63 | AC29: 1 | AF29: 45 | AG29: 0 | AJ29: 95 | AK29: 0 | AN29: 80 | AO29: 0 | AR29: 60 | AS29: 1 | AV29: 50 | AW29: 0
A30: Brian Camelo | B30: 158 | D30: 0 | E30: 0 | H30: 0 | I30: 0 | K30: 16 | L30: 20 | M30: 0 | O30: 13 | P30: 23 | Q30: 0 | S30: 21 | T30: 15 | U30: 0 | X30: 0 | Y30: 0 | AA30: 10 | AB30: 26 | AC30: 0 | AE30: 13 | AF30: 23 | AG30: 0 | AI30: 9 | AJ30: 27 | AK30: 0 | AM30: 12 | AN30: 24 | AO30: 0 | AR30: 0 | AS30: 0 | AV30: 0 | AW30: 0
A31: Lúcio Chequer | B31: 310 | D31: 0 | E31: 0 | G31: 4 | H31: 35 | I31: 0 | K31: 9 | L31: 27 | M31: 0 | P31: 0 | Q31: 0 | S31: 7 | T31: 29 | U31: 0 | W31: 4 | X31: 35 | Y31: 0 | AA31: 3 | AB31: 37 | AC31: 1 | AE31: 14 | AF31: 22 | AG31: 0 | AI31: 2 | AJ31: 40 | AK31: 0 | AM31: 6 | AN31: 31 | AO31: 0 | AQ31: 7 | AR31: 29 | AS31: 0 | AU31: 12 | AV31: 24 | AW31: 0
A32: Uilian Albino | B32: 259 | C32: 10 | D32: 26 | E32: 0 | G32: 6 | H32: 31 | I32: 0 | K32: 8 | L32: 28 | M32: 0 | O32: 14 | P32: 22 | Q32: 0 | S32: 20 | T32: 16 | U32: 0 | W32: 11 | X32: 25 | Y32: 0 | AB32: 0 | AC32: 0 | AF32: 0 | AG32: 0 | AI32: 8 | AJ32: 28 | AK32: 0 | AM32: 11 | AN32: 25 | AO32: 0 | AQ32: 6 | AR32: 31 | AS32: 1 | AU32: 10 | AV32: 26 | AW32: 0
A33: XXXXX
A34: XXXXX | B34: 0
A35: Grupo Santiago | B35: 974 | D35: 72 | E35: 1 | H35: 108 | I35: 1 | L35: 42 | M35: 0 | P35: 97 | Q35: 0 | T35: 70 | U35: 0 | X35: 59 | Y35: 0 | AB35: 105 | AC35: 0 | AF35: 104 | AG35: 0 | AJ35: 93 | AK35: 1 | AN35: 88 | AO35: 0 | AR35: 33 | AS35: 0 | AV35: 99 | AW35: 1
A36: Wilson Cristofani | B36: 348 | C36: 1 | D36: 45 | E36: 1 | G36: 2 | H36: 40 | I36: 1 | K36: 17 | L36: 19 | M36: 0 | O36: 2 | P36: 40 | Q36: 0 | S36: 23 | T36: 13 | U36: 0 | W36: 8 | X36: 28 | Y36: 0 | AA36: 1 | AB36: 45 | AC36: 0 | AE36: 1 | AF36: 45 | AG36: 0 | AI36: 21 | AJ36: 15 | AK36: 1 | AM36: 9 | AN36: 27 | AO36: 0 | AR36: 0 | AS36: 0 | AU36: 8 | AV36: 28 | AW36: 0
A37: Vitor Diniz | B37: 375 | C37: 9 | D37: 27 | E37: 0 | G37: 1 | H37: 45 | I37: 0 | K37: 13 | L37: 23 | M37: 0 | O37: 10 | P37: 26 | Q37: 0 | S37: 10 | T37: 26 | U37: 0 | W37: 6 | X37: 31 | Y37: 0 | AA37: 7 | AB37: 29 | AC37: 0 | AE37: 6 | AF37: 31 | AG37: 0 | AI37: 1 | AJ37: 45 | AK37: 0 | AM37: 8 | AN37: 28 | AO37: 0 | AQ37: 5 | AR37: 33 | AS37: 0 | AU37: 6 | AV37: 31 | AW37: 0
A38: Hélio Pedrolli | B38: 251 | D38: 0 | E38: 0 | G38: 13 | H38: 23 | I38: 0 | L38: 0 | M38: 0 | O38: 6 | P38: 31 | Q38: 0 | S38: 6 | T38: 31 | U38: 0 | X38: 0 | Y38: 0 | AA38: 6 | AB38: 31 | AC38: 0 | AE38: 8 | AF38: 28 | AG38: 0 | AI38: 5 | AJ38: 33 | AK38: 0 | AM38: 5 | AN38: 33 | AO38: 0 | AR38: 0 | AS38: 0 | AU38: 2 | AV38: 40 | AW38: 1
A39: XXXXXX
A40: XXXXXX | B40: 0
A41: Os Piratas | B41: 222 | D41: 24 | E41: 0 | H41: 0 | I41: 0 | L41: 24 | M41: 0 | P41: 0 | Q41: 0 | T41: 28 | U41: 0 | X41: 0 | Y41: 0 | AB41: 48 | AC41: 0 | AF41: 29 | AG41: 0 | AJ41: 0 | AK41: 0 | AN41: 29 | AO41: 0 | AR41: 15 | AS41: 0 | AV41: 25 | AW41: 0
A42: Agostinho Neves | B42: 0 | D42: 0 | E42: 0 | H42: 0 | I42: 0 | L42: 0 | M42: 0 | P42: 0 | Q42: 0 | T42: 0 | U42: 0 | X42: 0 | Y42: 0 | AB42: 0 | AC42: 0 | AF42: 0 | AG42: 0 | AJ42: 0 | AK42: 0 | AN42: 0 | AO42: 0 | AR42: 0 | AS42: 0 | AV42: 0 | AW42: 0
A43: Leandro Leite | B43: 121 | D43: 0 | E43: 0 | H43: 0 | I43: 0 | K43: 12 | L43: 24 | M43: 0 | P43: 0 | Q43: 0 | T43: 0 | U43: 0 | X43: 0 | Y43: 0 | AA43: 8 | AB43: 28 | AC43: 0 | AE43: 7 | AF43: 29 | AG43: 0 | AJ43: 0 | AK43: 0 | AN43: 0 | AO43: 0 | AQ43: 21 | AR43: 15 | AS43: 0 | AU43: 11 | AV43: 25 | AW43: 0
A44: Aparecido Arantes | B44: 101 | C44: 12 | D44: 24 | E44: 0 | H44: 0 | I44: 0 | L44: 0 | M44: 0 | P44: 0 | Q44: 0 | S44: 8 | T44: 28 | U44: 0 | X44: 0 | Y44: 0 | AA44: 16 | AB44: 20 | AC44: 0 | AF44: 0 | AG44: 0 | AJ44: 0 | AK44: 0 | AM44: 7 | AN44: 29 | AO44: 0 | AR44: 0 | AS44: 0 | AV44: 0 | AW44: 0
A45: XXXXXXX
A46: XXXXXXX | B46: 0

Sheet Class Elimin 2 Piores Equip
A1: 2024 | D1: OK | H1: OK | L1: OK | P1: OK | T1: OK | X1: OK | AB1: OK | AF1: OK | AJ1: OK | AN1: OK | AR1: OK | AV1: OK
C2: 01 ETAPA | G2: 02 ETAPA | K2: 03 ETAPA | O2: 04 ETAPA | S2: 05 ETAPA | W2: 06 ETAPA | AA2: 07 ETAPA | AE2: 08 ETAPA | AI2: 09 ETAPA | AM2: 10 ETAPA | AQ2: 11 ETAPA | AU2: 12 ETAPA
C3: 2024-01-18 | G3: 2024-02-01 | K3: 2024-03-14 | O3: 2024-04-11 | S3: 2024-05-23 | W3: 2024-06-06 | AA3: 2024-07-25 | AE3: 2024-08-01 | AI3: 2024-09-05 | AM3: 2024-10-31 | AQ3: 2024-11-14 | AU3: 2024-12-05
A4: EQUIPES | B4: Pontuação Geral | C4: Posição | D4: Pontos | E4: Bônus | F4: Penalidade | G4: Posição | H4: Pontos | I4: Bônus | J4: Penalidade | K4: Posição | L4: Pontos | M4: Bônus | N4: Penalidade | O4: Posição | P4: Pontos | Q4: Bônus | R4: Penalidade | S4: Posição | T4: Pontos | U4: Bônus | V4: Penalidade | W4: Posição | X4: Pontos | Y4: Bônus | Z4: Penalidade | AA4: Posição | AB4: Pontos | AC4: Bônus | AD4: Penalidade | AE4: Posição | AF4: Pontos | AG4: Bônus | AH4: Penalidade | AI4: Posição | AJ4: Pontos | AK4: Bônus | AL4: Penalidade | AM4: Posição | AN4: Pontos | AO4: Bônus | AP4: Penalidade | AQ4: Posição | AR4: Pontos | AS4: Bônus | AT4: Penalidade | AU4: Posição | AV4: Pontos | AW4: Bônus | AX4: Penalidade
A5: Multiseg | B5: 757 | D5: 72 | E5: 0 | H5: 57* | I5: 0 | L5: 75 | M5: 1 | P5: 74 | Q5: 1 | T5: 70 | U5: 0 | X5: 73 | Y5: 0 | AB5: 56* | AC5: 0 | AF5: 75 | AG5: 1 | AJ5: 72 | AK5: 0 | AN5: 85 | AO5: 1 | AR5: 85 | AS5: 0 | AV5: 72 | AW5: 0
A6: Guilherme Rocha | B6: 224 | C6: 4 | D6: 35 | E6: 0 | G6: 7 | H6: 29* | I6: 0 | K6: 6 | L6: 31* | M6: 0 | O6: 1 | P6: 45 | Q6: 1 | S6: 5 | T6: 33 | U6: 0 | W6: 5 | X6: 33 | Y6: 0 | AB6: 0* | AC6: 0 | AE6: 4 | AF6: 35 | AG6: 1 | AI6: 11 | AJ6: 25* | AK6: 0 | AM6: 4 | AN6: 35* | AO6: 1 | AQ6: 2 | AR6: 40 | AS6: 0 | AV6: 0 | AW6: 0
A7: Mathias Almeida | B7: 185 | C7: 3 | D7: 37 | E7: 0 | G7: 8 | H7: 28* | I7: 0 | K7: 2 | L7: 40 | M7: 1 | O7: 8 | P7: 28* | Q7: 0 | S7: 0 | T7: 0 | U7: 0 | W7: 12 | X7: 24* | Y7: 0 | AA7: 4 | AB7: 35* | AC7: 0 | AE7: 11 | AF7: 25* | AG7: 0 | AI7: 4 | AJ7: 35 | AK7: 0 | AM7: 1 | AN7: 45 | AO7: 0 | AR7: 0 | AS7: 0 | AU7: 9 | AV7: 27 | AW7: 0
A8: Arthur Santiago | B8: 348 | D8: 0 | E8: 0 | H8: 0* | I8: 0 | K8: 4 | L8: 35 | M8: 0 | O8: 7 | P8: 29 | Q8: 0 | S8: 3 | T8: 37 | U8: 0 | W8: 2 | X8: 40 | Y8: 0 | AA8: 15 | AB8: 21* | AC8: 0 | AE8: 2 | AF8: 40 | AG8: 0 | AI8: 3 | AJ8: 37 | AK8: 0 | AM8: 2 | AN8: 40 | AO8: 0 | AQ8: 1 | AR8: 45 | AS8: 0 | AU8: 1 | AV8: 45 | AW8: 0
A9: Bruno Rodovalho | B9: 0 | D9: 0 | E9: 0 | G9: 14 | H9: 22** | I9: 0 | L9: 0 | M9: 0 | P9: 0 | Q9: 0 | T9: 0 | U9: 0 | X9: 0 | Y9: 0 | AB9: 0* | AC9: 0 | AF9: 0 | AG9: 0 | AJ9: 0 | AK9: 0 | AN9: 0 | AO9: 0 | AR9: 0 | AS9: 0 | AV9: 0 | AW9: 0
A10: X | B10: 0 | H10: * | AB10: *
A11: Grupo Santiago | B11: 710 | D11: 72 | E11: 1 | H11: 85 | I11: 1 | L11: 42* | M11: 0 | P11: 71 | Q11: 0 | T11: 57 | U11: 0 | X11: 59 | Y11: 0 | AB11: 76 | AC11: 0 | AF11: 76 | AG11: 0 | AJ11: 78 | AK11: 1 | AN11: 61 | AO11: 0 | AR11: 33* | AS11: 0 | AV11: 71 | AW11: 1
A12: Wilson Cristofani | B12: 246 | C12: 1 | D12: 45 | E12: 1 | G12: 2 | H12: 40 | I12: 1 | K12: 17 | L12: 19* | M12: 0 | O12: 2 | P12: 40 | Q12: 0 | S12: 23 | T12: 13* | U12: 0 | W12: 8 | X12: 28 | Y12: 0 | AA12: 1 | AB12: 45 | AC12: 0 | AE12: 1 | AF12: 45 | AG12: 0 | AI12: 21 | AJ12: 15* | AK12: 1 | AM12: 9 | AN12: 27* | AO12: 0 | AR12: 0* | AS12: 0 | AU12: 8 | AV12: 28* | AW12: 0
A13: Vitor Diniz | B13: 264 | C13: 9 | D13: 27 | E13: 0 | G13: 1 | H13: 45 | I13: 0 | K13: 13 | L13: 23* | M13: 0 | O13: 10 | P13: 26* | Q13: 0 | S13: 10 | T13: 26 | U13: 0 | W13: 6 | X13: 31 | Y13: 0 | AA13: 7 | AB13: 29* | AC13: 0 | AE13: 6 | AF13: 31 | AG13: 0 | AI13: 1 | AJ13: 45 | AK13: 0 | AM13: 8 | AN13: 28 | AO13: 0 | AQ13: 5 | AR13: 33* | AS13: 0 | AU13: 6 | AV13: 31 | AW13: 0
A14: Hélio Pedrolli | B14: 200 | D14: 0 | E14: 0 | G14: 13 | H14: 23* | I14: 0 | L14: 0* | M14: 0 | O14: 6 | P14: 31 | Q14: 0 | S14: 6 | T14: 31 | U14: 0 | X14: 0 | Y14: 0 | AA14: 6 | AB14: 31 | AC14: 0 | AE14: 8 | AF14: 28* | AG14: 0 | AI14: 5 | AJ14: 33 | AK14: 0 | AM14: 5 | AN14: 33 | AO14: 0 | AR14: 0* | AS14: 0 | AU14: 2 | AV14: 40 | AW14: 1
A15: XXXXXX | L15: * | AR15: *
A16: XXXXXX | B16: 0 | L16: * | AR16: *
A17: Essencia Studio | B17: 623 | D17: 54 | E17: 0 | H17: 61 | I17: 0 | L17: 70 | M17: 0 | P17: 62 | Q17: 0 | T17: 67 | U17: 0 | X17: 71 | Y17: 1 | AB17: 49 | AC17: 0 | AF17: 64 | AG17: 0 | AJ17: 31* | AK17: 0 | AN17: 63 | AO17: 0 | AR17: 61 | AS17: 0 | AV17: 33* | AW17: 0
A18: Alexandre Melillo | B18: 368 | C18: 7 | D18: 29 | E18: 0 | G18: 3 | H18: 37 | I18: 0 | K18: 1 | L18: 45 | M18: 0 | O18: 3 | P18: 37 | Q18: 0 | S18: 2 | T18: 40 | U18: 0 | W18: 1 | X18: 45 | Y18: 1 | AA18: 11 | AB18: 25 | AC18: 0 | AE18: 3 | AF18: 37 | AG18: 0 | AI18: 6 | AJ18: 31* | AK18: 0 | AM18: 3 | AN18: 37 | AO18: 0 | AQ18: 4 | AR18: 35 | AS18: 0 | AU18: 5 | AV18: 33* | AW18: 0
A19: Leodegario Junior | B19: 179 | C19: 11 | D19: 25 | E19: 0 | G19: 15 | H19: 21* | I19: 0 | K19: 11 | L19: 25 | M19: 0 | O19: 11 | P19: 25 | Q19: 0 | S19: 9 | T19: 27 | U19: 0 | W19: 10 | X19: 26 | Y19: 0 | AA19: 12 | AB19: 24 | AC19: 0 | AE19: 9 | AF19: 27 | AG19: 0 | AJ19: 0* | AK19: 0 | AN19: 0 | AO19: 0 | AR19: 0 | AS19: 0 | AV19: 0* | AW19: 0
A20: Guilherme Slongo | B20: 76 | D20: 0 | E20: 0 | G20: 12 | H20: 24 | I20: 0 | K20: 14 | L20: 22* | M20: 0 | O20: 12 | P20: 24* | Q20: 0 | T20: 0 | U20: 0 | W20: 14 | X20: 22* | Y20: 0 | AA20: 14 | AB20: 22* | AC20: 0 | AF20: 0 | AG20: 0 | AJ20: 0* | AK20: 0 | AM20: 10 | AN20: 26 | AO20: 0 | AQ20: 10 | AR20: 26 | AS20: 0 | AV20: 0* | AW20: 0
A21: XXX | AJ21: * | AV21: *
A22: XXX | B22: 0 | AJ22: * | AV22: *
A23: ComOferta | B23: 616 | D23: 73 | E23: 0 | H23: 51 | I23: 0 | L23: 70 | M23: 0 | P23: 60 | Q23: 0 | T23: 45* | U23: 1 | X23: 60 | Y23: 0 | AB23: 73 | AC23: 0 | AF23: 57 | AG23: 0 | AJ23: 50 | AK23: 0 | AN23: 43* | AO23: 0 | AR23: 55 | AS23: 0 | AV23: 66 | AW23: 0
A24: Matheus Dias | B24: 243 | C24: 5 | D24: 33 | E24: 0 | H24: 0 | I24: 0 | K24: 3 | L24: 37 | M24: 0 | O24: 5 | P24: 33 | Q24: 0 | S24: 1 | T24: 45* | U24: 1 | W24: 3 | X24: 37 | Y24: 0 | AA24: 2 | AB24: 40 | AC24: 0 | AE24: 5 | AF24: 33 | AG24: 0 | AI24: 16 | AJ24: 20* | AK24: 0 | AM24: 16 | AN24: 20** | AO24: 0 | AR24: 0 | AS24: 0 | AU24: 7 | AV24: 29 | AW24: 0
A25: Breno Motta | B25: 219 | C25: 2 | D25: 40 | E25: 0 | G25: 11 | H25: 25 | I25: 0 | K25: 5 | L25: 33 | M25: 0 | P25: 0 | Q25: 0 | T25: 0* | U25: 0 | X25: 0 | Y25: 0 | AA25: 5 | AB25: 33 | AC25: 0 | AF25: 0 | AG25: 0 | AI25: 12 | AJ25: 24 | AK25: 0 | AM25: 15 | AN25: 21* | AO25: 0 | AQ25: 9 | AR25: 27 | AS25: 0 | AU25: 3 | AV25: 37 | AW25: 0
A26: Gladson Torres | B26: 154 | C26: 8 | D26: 28* | E26: 0 | G26: 10 | H26: 26 | I26: 0 | K26: 15 | L26: 21* | M26: 0 | O26: 9 | P26: 27 | Q26: 0 | T26: 0* | U26: 0 | W26: 13 | X26: 23 | Y26: 0 | AA26: 13 | AB26: 23* | AC26: 0 | AE26: 12 | AF26: 24 | AG26: 0 | AI26: 10 | AJ26: 26 | AK26: 0 | AM26: 14 | AN26: 22* | AO26: 0 | AQ26: 8 | AR26: 28 | AS26: 0 | AV26: 0 | AW26: 0
A27: XX | T27: * | AN27: *
A28: XX | T28: * | AN28: *
A29: Inovesa | B29: 570 | D29: 26* | E29: 0 | H29: 66 | I29: 0 | L29: 55 | M29: 0 | P29: 45 | Q29: 0 | T29: 45 | U29: 0 | X29: 60 | Y29: 0 | AB29: 63 | AC29: 1 | AF29: 45* | AG29: 0 | AJ29: 68 | AK29: 0 | AN29: 56 | AO29: 0 | AR29: 60 | AS29: 1 | AV29: 50 | AW29: 0
A30: Brian Camelo | B30: 49 | D30: 0* | E30: 0 | H30: 0 | I30: 0 | K30: 16 | L30: 20* | M30: 0 | O30: 13 | P30: 23 | Q30: 0 | S30: 21 | T30: 15* | U30: 0 | X30: 0 | Y30: 0 | AA30: 10 | AB30: 26 | AC30: 0 | AE30: 13 | AF30: 23* | AG30: 0 | AI30: 9 | AJ30: 27* | AK30: 0 | AM30: 12 | AN30: 24* | AO30: 0 | AR30: 0 | AS30: 0 | AV30: 0 | AW30: 0
A31: Lúcio Chequer | B31: 288 | D31: 0* | E31: 0 | G31: 4 | H31: 35 | I31: 0 | K31: 9 | L31: 27 | M31: 0 | P31: 0 | Q31: 0 | S31: 7 | T31: 29 | U31: 0 | W31: 4 | X31: 35 | Y31: 0 | AA31: 3 | AB31: 37 | AC31: 1 | AE31: 14 | AF31: 22* | AG31: 0 | AI31: 2 | AJ31: 40 | AK31: 0 | AM31: 6 | AN31: 31 | AO31: 0 | AQ31: 7 | AR31: 29 | AS31: 0 | AU31: 12 | AV31: 24 | AW31: 0
A32: Uilian Albino | B32: 233 | C32: 10 | D32: 26* | E32: 0 | G32: 6 | H32: 31 | I32: 0 | K32: 8 | L32: 28 | M32: 0 | O32: 14 | P32: 22 | Q32: 0 | S32: 20 | T32: 16 | U32: 0 | W32: 11 | X32: 25 | Y32: 0 | AB32: 0 | AC32: 0 | AF32: 0* | AG32: 0 | AI32: 8 | AJ32: 28 | AK32: 0 | AM32: 11 | AN32: 25 | AO32: 0 | AQ32: 6 | AR32: 31 | AS32: 1 | AU32: 10 | AV32: 26 | AW32: 0
A33: XXXXX | D33: * | AF33: *
A34: XXXXX | B34: 0 | D34: * | AF34: *
A35: AST Estrutura | B35: 400 | D35: 31 | E35: 0 | H35: 60 | I35: 0 | L35: 55 | M35: 0 | P35: 35 | Q35: 0 | T35: 35 | U35: 0 | X35: 56 | Y35: 0 | AB35: 27 | AC35: 0 | AF35: 26* | AG35: 0 | AJ35: 29 | AK35: 0 | AN35: 23* | AO35: 0 | AR35: 37 | AS35: 0 | AV35: 35 | AW35: 0
A36: Luciano Brandão | B36: 293 | C36: 6 | D36: 31 | E36: 0 | G36: 5 | H36: 33 | I36: 0 | K36: 7 | L36: 29 | M36: 0 | O36: 4 | P36: 35 | Q36: 0 | S36: 4 | T36: 35 | U36: 0 | W36: 7 | X36: 29 | Y36: 0 | AB36: 0 | AC36: 0 | AE36: 10 | AF36: 26* | AG36: 0 | AI36: 7 | AJ36: 29 | AK36: 0 | AM36: 13 | AN36: 23* | AO36: 0 | AQ36: 3 | AR36: 37 | AS36: 0 | AU36: 4 | AV36: 35 | AW36: 0
A37: Anderson Oliveira | B37: 107 | D37: 0 | E37: 0 | G37: 9 | H37: 27 | I37: 0 | K37: 10 | L37: 26 | M37: 0 | P37: 0 | Q37: 0 | T37: 0 | U37: 0 | W37: 9 | X37: 27 | Y37: 0 | AA37: 9 | AB37: 27 | AC37: 0 | AF37: 0* | AG37: 0 | AJ37: 0 | AK37: 0 | AN37: 0* | AO37: 0 | AR37: 0 | AS37: 0 | AV37: 0 | AW37: 0
A38: Leonardo Sousa | B38: 0 | D38: 0 | E38: 0 | H38: 0 | I38: 0 | L38: 0 | M38: 0 | P38: 0 | Q38: 0 | T38: 0 | U38: 0 | X38: 0 | Y38: 0 | AB38: 0 | AC38: 0 | AF38: 0* | AG38: 0 | AJ38: 0 | AK38: 0 | AN38: 0* | AO38: 0 | AR38: 0 | AS38: 0 | AV38: 0 | AW38: 0
A39: XXXX | B39: 0 | AF39: * | AN39: *
A40: XXXX | B40: 0 | AF40: * | AN40: *
A41: Os Piratas | B41: 222 | D41: 24 | E41: 0 | H41: 0 | I41: 0 | L41: 24 | M41: 0 | P41: 0 | Q41: 0 | T41: 28 | U41: 0 | X41: 0* | Y41: 0 | AB41: 48 | AC41: 0 | AF41: 29 | AG41: 0 | AJ41: 0* | AK41: 0 | AN41: 29 | AO41: 0 | AR41: 15 | AS41: 0 | AV41: 25 | AW41: 0
A42: Agostinho Neves | B42: 0 | D42: 0 | E42: 0 | H42: 0 | I42: 0 | L42: 0 | M42: 0 | P42: 0 | Q42: 0 | T42: 0 | U42: 0 | X42: 0* | Y42: 0 | AB42: 0 | AC42: 0 | AF42: 0 | AG42: 0 | AJ42: 0* | AK42: 0 | AN42: 0 | AO42: 0 | AR42: 0 | AS42: 0 | AV42: 0 | AW42: 0
A43: Leandro Leite | B43: 121 | D43: 0 | E43: 0 | H43: 0 | I43: 0 | K43: 12 | L43: 24 | M43: 0 | P43: 0 | Q43: 0 | T43: 0 | U43: 0 | X43: 0* | Y43: 0 | AA43: 8 | AB43: 28 | AC43: 0 | AE43: 7 | AF43: 29 | AG43: 0 | AJ43: 0* | AK43: 0 | AN43: 0 | AO43: 0 | AQ43: 21 | AR43: 15 | AS43: 0 | AU43: 11 | AV43: 25 | AW43: 0
A44: Aparecido Arantes | B44: 101 | C44: 12 | D44: 24 | E44: 0 | H44: 0 | I44: 0 | L44: 0 | M44: 0 | P44: 0 | Q44: 0 | S44: 8 | T44: 28 | U44: 0 | X44: 0* | Y44: 0 | AA44: 16 | AB44: 20 | AC44: 0 | AF44: 0 | AG44: 0 | AJ44: 0* | AK44: 0 | AM44: 7 | AN44: 29 | AO44: 0 | AR44: 0 | AS44: 0 | AV44: 0 | AW44: 0
A45: XXXXXXX | X45: * | AJ45: *
A46: XXXXXXX | B46: 0 | X46: * | AJ46: *

Sheet Posição x Pontos
H1: Posição | I1: Pontos
H2: 1 | I2: 45
H3: 2 | I3: 40
H4: 3 | I4: 37
H5: 4 | I5: 35
H6: 5 | I6: 33
H7: 6 | I7: 31
H8: 7 | I8: 29
H9: 8 | I9: 28
H10: 9 | I10: 27
H11: 10 | I11: 26
H12: 11 | I12: 25
H13: 12 | I13: 24
H14: 13 | I14: 23
H15: 14 | I15: 22
H16: 15 | I16: 21
H17: 16 | I17: 20
H18: 17 | I18: 19
H19: 18 | I19: 18
H20: 19 | I20: 17
H21: 20 | I21: 16
H22: 21 | I22: 15
H23: 22 | I23: 14
H24: 23 | I24: 13
H25: 24 | I25: 12
H26: 25 | I26: 11
H27: 26 | I27: 10
H28: 27 | I28: 9
H29: 28 | I29: 8
H30: 29 | I30: 7
H31: 30 | I31: 6
H32: 31 | I32: 5
H33: 32 | I33: 4
H34: 33 | I34: 3
H35: 34 | I35: 2
H36: 35 | I36: 1
H37: 36 | I37: 1
